Council Name,Date,TransNo,Amount � (Excl VAT),Supplier name,Supplier Category,Expense Area,Expense Type,Expense Code
London Borough of Sutton,06/03/2024,50473650,502.99,A R G Europe Limited,CONSTRUCTION INDUSTRY,HRA,Payments to Contractors,C14000
London Borough of Sutton,12/03/2024,50473653,747.69,A R G Europe Limited,CONSTRUCTION INDUSTRY,HRA,Payments to Contractors,C14000
London Borough of Sutton,01/02/2024,50469805,"28,130.00",A Wilderness Way Ltd,CHILDREN'S SERVICES - FOSTERING & ADOPTION SERVICES,People's Services,Residential Care-Children,A56115
London Borough of Sutton,01/02/2024,50469805,"28,130.00",A Wilderness Way Ltd,CHILDREN'S SERVICES - FOSTERING & ADOPTION SERVICES,People's Services,Residential Care-Children,A56115
London Borough of Sutton,01/03/2024,50476067,"30,070.00",A Wilderness Way Ltd,CHILDREN'S SERVICES - FOSTERING & ADOPTION SERVICES,People's Services,Residential Care-Children,A56115
London Borough of Sutton,01/03/2024,50476067,"30,070.00",A Wilderness Way Ltd,CHILDREN'S SERVICES - FOSTERING & ADOPTION SERVICES,People's Services,Residential Care-Children,A56115
London Borough of Sutton,15/03/2024,50472663,-750.40,Abbey Care Centre,SOCIAL SERVICES RESIDENTIAL,People's Services,Nursing Care - 3rd party top up payment,A56023
London Borough of Sutton,15/03/2024,50472663,-750.40,Abbey Care Centre,SOCIAL SERVICES RESIDENTIAL,People's Services,Nursing Care - 3rd party top up payment,A56023
London Borough of Sutton,15/03/2024,50472663,"-1,492.80",Abbey Care Centre,SOCIAL SERVICES RESIDENTIAL,People's Services,Nursing Care - 3rd party top up payment,A56023
London Borough of Sutton,15/03/2024,50472663,"-1,492.80",Abbey Care Centre,SOCIAL SERVICES RESIDENTIAL,People's Services,Nursing Care - 3rd party top up payment,A56023
London Borough of Sutton,15/03/2024,50472663,"3,848.24",Abbey Care Centre,SOCIAL SERVICES RESIDENTIAL,People's Services,Nursing Care - Ext Provider,A56025
London Borough of Sutton,15/03/2024,50472663,"3,848.24",Abbey Care Centre,SOCIAL SERVICES RESIDENTIAL,People's Services,Nursing Care - Ext Provider,A56025
London Borough of Sutton,15/03/2024,50472762,-878.84,Abbey Care Centre,SOCIAL SERVICES RESIDENTIAL,People's Services,Nursing Care - 3rd party top up payment,A56023
London Borough of Sutton,15/03/2024,50472762,-878.84,Abbey Care Centre,SOCIAL SERVICES RESIDENTIAL,People's Services,Nursing Care - 3rd party top up payment,A56023
London Borough of Sutton,15/03/2024,50472762,"4,096.12",Abbey Care Centre,SOCIAL SERVICES RESIDENTIAL,People's Services,Nursing Care - Ext Provider,A56025
London Borough of Sutton,15/03/2024,50472762,"4,096.12",Abbey Care Centre,SOCIAL SERVICES RESIDENTIAL,People's Services,Nursing Care - Ext Provider,A56025
London Borough of Sutton,15/03/2024,50472814,-878.84,Abbey Care Centre,SOCIAL SERVICES RESIDENTIAL,People's Services,Nursing Care - 3rd party top up payment,A56023
London Borough of Sutton,15/03/2024,50472814,-878.84,Abbey Care Centre,SOCIAL SERVICES RESIDENTIAL,People's Services,Nursing Care - 3rd party top up payment,A56023
London Borough of Sutton,15/03/2024,50472814,"4,560.00",Abbey Care Centre,SOCIAL SERVICES RESIDENTIAL,People's Services,Nursing Care Short Term,A56026
London Borough of Sutton,15/03/2024,50472814,"4,560.00",Abbey Care Centre,SOCIAL SERVICES RESIDENTIAL,People's Services,Nursing Care Short Term,A56026
London Borough of Sutton,15/03/2024,50472866,-878.84,Abbey Care Centre,SOCIAL SERVICES RESIDENTIAL,People's Services,Nursing Care - 3rd party top up payment,A56023
London Borough of Sutton,15/03/2024,50472866,-878.84,Abbey Care Centre,SOCIAL SERVICES RESIDENTIAL,People's Services,Nursing Care - 3rd party top up payment,A56023
London Borough of Sutton,15/03/2024,50472866,"4,678.84",Abbey Care Centre,SOCIAL SERVICES RESIDENTIAL,People's Services,Nursing Care - Ext Provider,A56025
London Borough of Sutton,15/03/2024,50472866,"4,678.84",Abbey Care Centre,SOCIAL SERVICES RESIDENTIAL,People's Services,Nursing Care - Ext Provider,A56025
London Borough of Sutton,12/03/2024,50469159,"5,885.28",ABC Pre-School Beddington LLP,ACADEMIC INSTNS - OTHER,People's Services,Payment - Nursery Funding,A51056
London Borough of Sutton,12/03/2024,50469287,"1,654.85",ABC Pre-School Beddington LLP,ACADEMIC INSTNS - OTHER,People's Services,Payment - Nursery Funding,A51056
London Borough of Sutton,12/03/2024,50469352,558.00,ABC Pre-School Beddington LLP,ACADEMIC INSTNS - OTHER,People's Services,Early Years Pupil Premium,A60031
London Borough of Sutton,14/03/2024,50471592,505.08,ABC Pre-School Beddington LLP,ACADEMIC INSTNS - OTHER,People's Services,Payment - school supplementary grant,A51062
London Borough of Sutton,14/03/2024,50471720,758.88,ABC Pre-School Beddington LLP,ACADEMIC INSTNS - OTHER,People's Services,Payment - school supplementary grant,A51062
London Borough of Sutton,14/03/2024,50471894,505.08,ABC Pre-School Beddington LLP,ACADEMIC INSTNS - OTHER,People's Services,Payment - school supplementary grant,A51062
London Borough of Sutton,14/03/2024,50472022,758.88,ABC Pre-School Beddington LLP,ACADEMIC INSTNS - OTHER,People's Services,Payment - school supplementary grant,A51062
London Borough of Sutton,21/03/2024,50475529,708.40,ABC Pre-School Beddington LLP,ACADEMIC INSTNS - OTHER,People's Services,Payment - school supplementary grant,A51062
London Borough of Sutton,01/03/2024,20071966,"57,574.00",Abel Living,ACCOMMODATION BED & BREAKFAST,Environment Housing and Neighbourhoods,Bed & Breakfast,A56000
London Borough of Sutton,08/03/2024,20071967,"-3,760.00",Abel Living,ACCOMMODATION BED & BREAKFAST,Environment Housing and Neighbourhoods,Bed & Breakfast,A56000
London Borough of Sutton,04/03/2024,20071139,"6,371.00",Absolute Care Services Ltd,SOCIAL SERVICES DAY CARE,People's Services,Homecare Core Services,A56020
London Borough of Sutton,04/03/2024,20071140,"7,304.59",Absolute Care Services Ltd,SOCIAL SERVICES DAY CARE,People's Services,Homecare Core Services,A56020
London Borough of Sutton,04/03/2024,20071141,"6,144.50",Absolute Care Services Ltd,SOCIAL SERVICES DAY CARE,People's Services,Homecare Core Services,A56020
London Borough of Sutton,11/03/2024,20071672,"6,371.00",Absolute Care Services Ltd,SOCIAL SERVICES DAY CARE,People's Services,Homecare Core Services,A56020
London Borough of Sutton,11/03/2024,20071675,"7,304.59",Absolute Care Services Ltd,SOCIAL SERVICES DAY CARE,People's Services,Homecare Core Services,A56020
London Borough of Sutton,11/03/2024,20071693,"6,144.50",Absolute Care Services Ltd,SOCIAL SERVICES DAY CARE,People's Services,Homecare Core Services,A56020
London Borough of Sutton,11/12/2023,20072222,"7,304.59",Absolute Care Services Ltd,SOCIAL SERVICES DAY CARE,People's Services,Homecare Core Services,A56020
London Borough of Sutton,11/12/2023,20072223,"6,144.50",Absolute Care Services Ltd,SOCIAL SERVICES DAY CARE,People's Services,Homecare Core Services,A56020
London Borough of Sutton,11/12/2023,20072224,"6,371.00",Absolute Care Services Ltd,SOCIAL SERVICES DAY CARE,People's Services,Homecare Core Services,A56020
London Borough of Sutton,18/03/2024,20072267,"6,371.00",Absolute Care Services Ltd,SOCIAL SERVICES DAY CARE,People's Services,Homecare Core Services,A56020
London Borough of Sutton,18/03/2024,20072268,"6,144.50",Absolute Care Services Ltd,SOCIAL SERVICES DAY CARE,People's Services,Homecare Core Services,A56020
London Borough of Sutton,18/03/2024,20072269,"7,304.59",Absolute Care Services Ltd,SOCIAL SERVICES DAY CARE,People's Services,Homecare Core Services,A56020
London Borough of Sutton,11/02/2024,50467438,683.27,Absolute Care Services Ltd,SOCIAL SERVICES DAY CARE,People's Services,Home Care Services,A56019
London Borough of Sutton,11/02/2024,50467438,683.27,Absolute Care Services Ltd,SOCIAL SERVICES DAY CARE,People's Services,Home Care Services,A56019
London Borough of Sutton,18/02/2024,50467440,705.87,Absolute Care Services Ltd,SOCIAL SERVICES DAY CARE,People's Services,Home Care Services,A56019
London Borough of Sutton,18/02/2024,50467440,705.87,Absolute Care Services Ltd,SOCIAL SERVICES DAY CARE,People's Services,Home Care Services,A56019
London Borough of Sutton,11/02/2024,50467450,829.58,Absolute Care Services Ltd,SOCIAL SERVICES DAY CARE,People's Services,Home Care Services,A56019
London Borough of Sutton,11/02/2024,50467450,829.58,Absolute Care Services Ltd,SOCIAL SERVICES DAY CARE,People's Services,Home Care Services,A56019
London Borough of Sutton,18/02/2024,50467451,796.43,Absolute Care Services Ltd,SOCIAL SERVICES DAY CARE,People's Services,Home Care Services,A56019
London Borough of Sutton,18/02/2024,50467451,796.43,Absolute Care Services Ltd,SOCIAL SERVICES DAY CARE,People's Services,Home Care Services,A56019
London Borough of Sutton,11/02/2024,50467458,541.72,Absolute Care Services Ltd,SOCIAL SERVICES DAY CARE,People's Services,Home Care Services,A56019
London Borough of Sutton,11/02/2024,50467458,541.72,Absolute Care Services Ltd,SOCIAL SERVICES DAY CARE,People's Services,Home Care Services,A56019
London Borough of Sutton,11/02/2024,50467458,167.21,Absolute Care Services Ltd,SOCIAL SERVICES DAY CARE,People's Services,Home Care Services,A56019
London Borough of Sutton,11/02/2024,50467458,167.21,Absolute Care Services Ltd,SOCIAL SERVICES DAY CARE,People's Services,Home Care Services,A56019
London Borough of Sutton,18/02/2024,50467459,495.03,Absolute Care Services Ltd,SOCIAL SERVICES DAY CARE,People's Services,Home Care Services,A56019
London Borough of Sutton,18/02/2024,50467459,495.03,Absolute Care Services Ltd,SOCIAL SERVICES DAY CARE,People's Services,Home Care Services,A56019
London Borough of Sutton,18/02/2024,50467459,167.21,Absolute Care Services Ltd,SOCIAL SERVICES DAY CARE,People's Services,Home Care Services,A56019
London Borough of Sutton,18/02/2024,50467459,167.21,Absolute Care Services Ltd,SOCIAL SERVICES DAY CARE,People's Services,Home Care Services,A56019
London Borough of Sutton,18/02/2024,50467465,395.73,Absolute Care Services Ltd,SOCIAL SERVICES DAY CARE,People's Services,Home Care Services,A56019
London Borough of Sutton,18/02/2024,50467465,395.73,Absolute Care Services Ltd,SOCIAL SERVICES DAY CARE,People's Services,Home Care Services,A56019
London Borough of Sutton,18/02/2024,50467465,146.30,Absolute Care Services Ltd,SOCIAL SERVICES DAY CARE,People's Services,Home Care Services,A56019
London Borough of Sutton,18/02/2024,50467465,146.30,Absolute Care Services Ltd,SOCIAL SERVICES DAY CARE,People's Services,Home Care Services,A56019
London Borough of Sutton,18/02/2024,50467507,676.27,Absolute Care Services Ltd,SOCIAL SERVICES DAY CARE,People's Services,Home Care Services,A56019
London Borough of Sutton,18/02/2024,50467507,676.27,Absolute Care Services Ltd,SOCIAL SERVICES DAY CARE,People's Services,Home Care Services,A56019
London Borough of Sutton,11/02/2024,50467723,549.11,Absolute Care Services Ltd,SOCIAL SERVICES DAY CARE,People's Services,Home Care Services,A56019
London Borough of Sutton,11/02/2024,50467723,549.11,Absolute Care Services Ltd,SOCIAL SERVICES DAY CARE,People's Services,Home Care Services,A56019
London Borough of Sutton,11/02/2024,50467733,544.88,Absolute Care Services Ltd,SOCIAL SERVICES DAY CARE,People's Services,Home Care Services,A56019
London Borough of Sutton,11/02/2024,50467733,544.88,Absolute Care Services Ltd,SOCIAL SERVICES DAY CARE,People's Services,Home Care Services,A56019
London Borough of Sutton,18/02/2024,50467752,557.62,Absolute Care Services Ltd,SOCIAL SERVICES DAY CARE,People's Services,Home Care Services,A56019
London Borough of Sutton,18/02/2024,50467752,557.62,Absolute Care Services Ltd,SOCIAL SERVICES DAY CARE,People's Services,Home Care Services,A56019
London Borough of Sutton,18/02/2024,50467752,60.55,Absolute Care Services Ltd,SOCIAL SERVICES DAY CARE,People's Services,Home Care Services,A56019
London Borough of Sutton,18/02/2024,50467752,60.55,Absolute Care Services Ltd,SOCIAL SERVICES DAY CARE,People's Services,Home Care Services,A56019
London Borough of Sutton,25/02/2024,50468496,677.95,Absolute Care Services Ltd,SOCIAL SERVICES DAY CARE,People's Services,Home Care Services,A56019
London Borough of Sutton,25/02/2024,50468496,677.95,Absolute Care Services Ltd,SOCIAL SERVICES DAY CARE,People's Services,Home Care Services,A56019
London Borough of Sutton,25/02/2024,50468496,62.73,Absolute Care Services Ltd,SOCIAL SERVICES DAY CARE,People's Services,Home Care Services,A56019
London Borough of Sutton,25/02/2024,50468496,62.73,Absolute Care Services Ltd,SOCIAL SERVICES DAY CARE,People's Services,Home Care Services,A56019
London Borough of Sutton,25/02/2024,50468553,387.00,Absolute Care Services Ltd,SOCIAL SERVICES DAY CARE,People's Services,Home Care Services,A56019
London Borough of Sutton,25/02/2024,50468553,387.00,Absolute Care Services Ltd,SOCIAL SERVICES DAY CARE,People's Services,Home Care Services,A56019
London Borough of Sutton,25/02/2024,50468553,167.21,Absolute Care Services Ltd,SOCIAL SERVICES DAY CARE,People's Services,Home Care Services,A56019
London Borough of Sutton,25/02/2024,50468553,167.21,Absolute Care Services Ltd,SOCIAL SERVICES DAY CARE,People's Services,Home Care Services,A56019
London Borough of Sutton,25/02/2024,50468783,484.12,Absolute Care Services Ltd,SOCIAL SERVICES DAY CARE,People's Services,Home Care Services,A56019
London Borough of Sutton,25/02/2024,50468783,484.12,Absolute Care Services Ltd,SOCIAL SERVICES DAY CARE,People's Services,Home Care Services,A56019
London Borough of Sutton,25/02/2024,50468783,242.06,Absolute Care Services Ltd,SOCIAL SERVICES DAY CARE,People's Services,Home Care Services,A56019
London Borough of Sutton,25/02/2024,50468783,242.06,Absolute Care Services Ltd,SOCIAL SERVICES DAY CARE,People's Services,Home Care Services,A56019
London Borough of Sutton,25/02/2024,50468794,471.17,Absolute Care Services Ltd,SOCIAL SERVICES DAY CARE,People's Services,Home Care Services,A56019
London Borough of Sutton,25/02/2024,50468794,471.17,Absolute Care Services Ltd,SOCIAL SERVICES DAY CARE,People's Services,Home Care Services,A56019
London Borough of Sutton,25/02/2024,50468794,60.55,Absolute Care Services Ltd,SOCIAL SERVICES DAY CARE,People's Services,Home Care Services,A56019
London Borough of Sutton,25/02/2024,50468794,60.55,Absolute Care Services Ltd,SOCIAL SERVICES DAY CARE,People's Services,Home Care Services,A56019
London Borough of Sutton,25/02/2024,50468820,181.58,Absolute Care Services Ltd,SOCIAL SERVICES DAY CARE,People's Services,Home Care Services,A56019
London Borough of Sutton,25/02/2024,50468820,181.58,Absolute Care Services Ltd,SOCIAL SERVICES DAY CARE,People's Services,Home Care Services,A56019
London Borough of Sutton,25/02/2024,50468820,307.02,Absolute Care Services Ltd,SOCIAL SERVICES DAY CARE,People's Services,Home Care Services,A56019
London Borough of Sutton,25/02/2024,50468820,307.02,Absolute Care Services Ltd,SOCIAL SERVICES DAY CARE,People's Services,Home Care Services,A56019
London Borough of Sutton,25/02/2024,50468820,121.03,Absolute Care Services Ltd,SOCIAL SERVICES DAY CARE,People's Services,Home Care Services,A56019
London Borough of Sutton,25/02/2024,50468820,121.03,Absolute Care Services Ltd,SOCIAL SERVICES DAY CARE,People's Services,Home Care Services,A56019
London Borough of Sutton,25/02/2024,50468821,423.85,Absolute Care Services Ltd,SOCIAL SERVICES DAY CARE,People's Services,Home Care Services,A56019
London Borough of Sutton,25/02/2024,50468821,423.85,Absolute Care Services Ltd,SOCIAL SERVICES DAY CARE,People's Services,Home Care Services,A56019
London Borough of Sutton,25/02/2024,50468821,121.03,Absolute Care Services Ltd,SOCIAL SERVICES DAY CARE,People's Services,Home Care Services,A56019
London Borough of Sutton,25/02/2024,50468821,121.03,Absolute Care Services Ltd,SOCIAL SERVICES DAY CARE,People's Services,Home Care Services,A56019
London Borough of Sutton,25/02/2024,50468836,544.88,Absolute Care Services Ltd,SOCIAL SERVICES DAY CARE,People's Services,Home Care Services,A56019
London Borough of Sutton,25/02/2024,50468836,544.88,Absolute Care Services Ltd,SOCIAL SERVICES DAY CARE,People's Services,Home Care Services,A56019
London Borough of Sutton,25/02/2024,50468836,17.29,Absolute Care Services Ltd,SOCIAL SERVICES DAY CARE,People's Services,Home Care Services,A56019
London Borough of Sutton,25/02/2024,50468836,17.29,Absolute Care Services Ltd,SOCIAL SERVICES DAY CARE,People's Services,Home Care Services,A56019
London Borough of Sutton,25/02/2024,50468849,544.88,Absolute Care Services Ltd,SOCIAL SERVICES DAY CARE,People's Services,Home Care Services,A56019
London Borough of Sutton,25/02/2024,50468849,544.88,Absolute Care Services Ltd,SOCIAL SERVICES DAY CARE,People's Services,Home Care Services,A56019
London Borough of Sutton,25/02/2024,50468849,34.58,Absolute Care Services Ltd,SOCIAL SERVICES DAY CARE,People's Services,Home Care Services,A56019
London Borough of Sutton,25/02/2024,50468849,34.58,Absolute Care Services Ltd,SOCIAL SERVICES DAY CARE,People's Services,Home Care Services,A56019
London Borough of Sutton,25/02/2024,50470610,758.15,Absolute Care Services Ltd,SOCIAL SERVICES DAY CARE,People's Services,Home Care Services,A56019
London Borough of Sutton,25/02/2024,50470610,758.15,Absolute Care Services Ltd,SOCIAL SERVICES DAY CARE,People's Services,Home Care Services,A56019
London Borough of Sutton,03/03/2024,50470611,737.25,Absolute Care Services Ltd,SOCIAL SERVICES DAY CARE,People's Services,Home Care Services,A56019
London Borough of Sutton,03/03/2024,50470611,737.25,Absolute Care Services Ltd,SOCIAL SERVICES DAY CARE,People's Services,Home Care Services,A56019
London Borough of Sutton,25/02/2024,50470614,420.13,Absolute Care Services Ltd,SOCIAL SERVICES DAY CARE,People's Services,Home Care Services,A56019
London Borough of Sutton,25/02/2024,50470614,420.13,Absolute Care Services Ltd,SOCIAL SERVICES DAY CARE,People's Services,Home Care Services,A56019
London Borough of Sutton,25/02/2024,50470614,146.30,Absolute Care Services Ltd,SOCIAL SERVICES DAY CARE,People's Services,Home Care Services,A56019
London Borough of Sutton,25/02/2024,50470614,146.30,Absolute Care Services Ltd,SOCIAL SERVICES DAY CARE,People's Services,Home Care Services,A56019
London Borough of Sutton,03/03/2024,50470615,400.94,Absolute Care Services Ltd,SOCIAL SERVICES DAY CARE,People's Services,Home Care Services,A56019
London Borough of Sutton,03/03/2024,50470615,400.94,Absolute Care Services Ltd,SOCIAL SERVICES DAY CARE,People's Services,Home Care Services,A56019
London Borough of Sutton,03/03/2024,50470615,146.30,Absolute Care Services Ltd,SOCIAL SERVICES DAY CARE,People's Services,Home Care Services,A56019
London Borough of Sutton,03/03/2024,50470615,146.30,Absolute Care Services Ltd,SOCIAL SERVICES DAY CARE,People's Services,Home Care Services,A56019
London Borough of Sutton,25/02/2024,50470626,684.96,Absolute Care Services Ltd,SOCIAL SERVICES DAY CARE,People's Services,Home Care Services,A56019
London Borough of Sutton,25/02/2024,50470626,684.96,Absolute Care Services Ltd,SOCIAL SERVICES DAY CARE,People's Services,Home Care Services,A56019
London Borough of Sutton,03/03/2024,50470627,686.71,Absolute Care Services Ltd,SOCIAL SERVICES DAY CARE,People's Services,Home Care Services,A56019
London Borough of Sutton,03/03/2024,50470627,686.71,Absolute Care Services Ltd,SOCIAL SERVICES DAY CARE,People's Services,Home Care Services,A56019
London Borough of Sutton,25/02/2024,50470630,815.62,Absolute Care Services Ltd,SOCIAL SERVICES DAY CARE,People's Services,Home Care Services,A56019
London Borough of Sutton,25/02/2024,50470630,815.62,Absolute Care Services Ltd,SOCIAL SERVICES DAY CARE,People's Services,Home Care Services,A56019
London Borough of Sutton,03/03/2024,50470632,833.05,Absolute Care Services Ltd,SOCIAL SERVICES DAY CARE,People's Services,Home Care Services,A56019
London Borough of Sutton,03/03/2024,50470632,833.05,Absolute Care Services Ltd,SOCIAL SERVICES DAY CARE,People's Services,Home Care Services,A56019
London Borough of Sutton,03/03/2024,50470676,691.91,Absolute Care Services Ltd,SOCIAL SERVICES DAY CARE,People's Services,Home Care Services,A56019
London Borough of Sutton,03/03/2024,50470676,691.91,Absolute Care Services Ltd,SOCIAL SERVICES DAY CARE,People's Services,Home Care Services,A56019
London Borough of Sutton,03/03/2024,50470676,62.73,Absolute Care Services Ltd,SOCIAL SERVICES DAY CARE,People's Services,Home Care Services,A56019
London Borough of Sutton,03/03/2024,50470676,62.73,Absolute Care Services Ltd,SOCIAL SERVICES DAY CARE,People's Services,Home Care Services,A56019
London Borough of Sutton,03/03/2024,50470694,406.20,Absolute Care Services Ltd,SOCIAL SERVICES DAY CARE,People's Services,Home Care Services,A56019
London Borough of Sutton,03/03/2024,50470694,406.20,Absolute Care Services Ltd,SOCIAL SERVICES DAY CARE,People's Services,Home Care Services,A56019
London Borough of Sutton,03/03/2024,50470694,167.21,Absolute Care Services Ltd,SOCIAL SERVICES DAY CARE,People's Services,Home Care Services,A56019
London Borough of Sutton,03/03/2024,50470694,167.21,Absolute Care Services Ltd,SOCIAL SERVICES DAY CARE,People's Services,Home Care Services,A56019
London Borough of Sutton,03/03/2024,50470729,181.58,Absolute Care Services Ltd,SOCIAL SERVICES DAY CARE,People's Services,Home Care Services,A56019
London Borough of Sutton,03/03/2024,50470729,181.58,Absolute Care Services Ltd,SOCIAL SERVICES DAY CARE,People's Services,Home Care Services,A56019
London Borough of Sutton,03/03/2024,50470729,307.02,Absolute Care Services Ltd,SOCIAL SERVICES DAY CARE,People's Services,Home Care Services,A56019
London Borough of Sutton,03/03/2024,50470729,307.02,Absolute Care Services Ltd,SOCIAL SERVICES DAY CARE,People's Services,Home Care Services,A56019
London Borough of Sutton,03/03/2024,50470729,121.03,Absolute Care Services Ltd,SOCIAL SERVICES DAY CARE,People's Services,Home Care Services,A56019
London Borough of Sutton,03/03/2024,50470729,121.03,Absolute Care Services Ltd,SOCIAL SERVICES DAY CARE,People's Services,Home Care Services,A56019
London Borough of Sutton,03/03/2024,50470730,423.85,Absolute Care Services Ltd,SOCIAL SERVICES DAY CARE,People's Services,Home Care Services,A56019
London Borough of Sutton,03/03/2024,50470730,423.85,Absolute Care Services Ltd,SOCIAL SERVICES DAY CARE,People's Services,Home Care Services,A56019
London Borough of Sutton,03/03/2024,50470730,121.03,Absolute Care Services Ltd,SOCIAL SERVICES DAY CARE,People's Services,Home Care Services,A56019
London Borough of Sutton,03/03/2024,50470730,121.03,Absolute Care Services Ltd,SOCIAL SERVICES DAY CARE,People's Services,Home Care Services,A56019
London Borough of Sutton,03/03/2024,50470769,544.89,Absolute Care Services Ltd,SOCIAL SERVICES DAY CARE,People's Services,Home Care Services,A56019
London Borough of Sutton,03/03/2024,50470769,544.89,Absolute Care Services Ltd,SOCIAL SERVICES DAY CARE,People's Services,Home Care Services,A56019
London Borough of Sutton,03/03/2024,50470769,17.29,Absolute Care Services Ltd,SOCIAL SERVICES DAY CARE,People's Services,Home Care Services,A56019
London Borough of Sutton,03/03/2024,50470769,17.29,Absolute Care Services Ltd,SOCIAL SERVICES DAY CARE,People's Services,Home Care Services,A56019
London Borough of Sutton,03/03/2024,50470845,544.88,Absolute Care Services Ltd,SOCIAL SERVICES DAY CARE,People's Services,Home Care Services,A56019
London Borough of Sutton,03/03/2024,50470845,544.88,Absolute Care Services Ltd,SOCIAL SERVICES DAY CARE,People's Services,Home Care Services,A56019
London Borough of Sutton,03/03/2024,50470845,34.58,Absolute Care Services Ltd,SOCIAL SERVICES DAY CARE,People's Services,Home Care Services,A56019
London Borough of Sutton,03/03/2024,50470845,34.58,Absolute Care Services Ltd,SOCIAL SERVICES DAY CARE,People's Services,Home Care Services,A56019
London Borough of Sutton,03/03/2024,50470972,484.12,Absolute Care Services Ltd,SOCIAL SERVICES DAY CARE,People's Services,Home Care Services,A56019
London Borough of Sutton,03/03/2024,50470972,484.12,Absolute Care Services Ltd,SOCIAL SERVICES DAY CARE,People's Services,Home Care Services,A56019
London Borough of Sutton,03/03/2024,50470972,242.06,Absolute Care Services Ltd,SOCIAL SERVICES DAY CARE,People's Services,Home Care Services,A56019
London Borough of Sutton,03/03/2024,50470972,242.06,Absolute Care Services Ltd,SOCIAL SERVICES DAY CARE,People's Services,Home Care Services,A56019
London Borough of Sutton,03/03/2024,50470985,471.17,Absolute Care Services Ltd,SOCIAL SERVICES DAY CARE,People's Services,Home Care Services,A56019
London Borough of Sutton,03/03/2024,50470985,471.17,Absolute Care Services Ltd,SOCIAL SERVICES DAY CARE,People's Services,Home Care Services,A56019
London Borough of Sutton,03/03/2024,50470985,60.55,Absolute Care Services Ltd,SOCIAL SERVICES DAY CARE,People's Services,Home Care Services,A56019
London Borough of Sutton,03/03/2024,50470985,60.55,Absolute Care Services Ltd,SOCIAL SERVICES DAY CARE,People's Services,Home Care Services,A56019
London Borough of Sutton,10/03/2024,50473359,423.85,Absolute Care Services Ltd,SOCIAL SERVICES DAY CARE,People's Services,Home Care Services,A56019
London Borough of Sutton,10/03/2024,50473359,423.85,Absolute Care Services Ltd,SOCIAL SERVICES DAY CARE,People's Services,Home Care Services,A56019
London Borough of Sutton,10/03/2024,50473359,121.03,Absolute Care Services Ltd,SOCIAL SERVICES DAY CARE,People's Services,Home Care Services,A56019
London Borough of Sutton,10/03/2024,50473359,121.03,Absolute Care Services Ltd,SOCIAL SERVICES DAY CARE,People's Services,Home Care Services,A56019
London Borough of Sutton,10/03/2024,50473362,181.58,Absolute Care Services Ltd,SOCIAL SERVICES DAY CARE,People's Services,Home Care Services,A56019
London Borough of Sutton,10/03/2024,50473362,181.58,Absolute Care Services Ltd,SOCIAL SERVICES DAY CARE,People's Services,Home Care Services,A56019
London Borough of Sutton,10/03/2024,50473362,307.02,Absolute Care Services Ltd,SOCIAL SERVICES DAY CARE,People's Services,Home Care Services,A56019
London Borough of Sutton,10/03/2024,50473362,307.02,Absolute Care Services Ltd,SOCIAL SERVICES DAY CARE,People's Services,Home Care Services,A56019
London Borough of Sutton,10/03/2024,50473362,121.03,Absolute Care Services Ltd,SOCIAL SERVICES DAY CARE,People's Services,Home Care Services,A56019
London Borough of Sutton,10/03/2024,50473362,121.03,Absolute Care Services Ltd,SOCIAL SERVICES DAY CARE,People's Services,Home Care Services,A56019
London Borough of Sutton,10/03/2024,50473376,544.88,Absolute Care Services Ltd,SOCIAL SERVICES DAY CARE,People's Services,Home Care Services,A56019
London Borough of Sutton,10/03/2024,50473376,544.88,Absolute Care Services Ltd,SOCIAL SERVICES DAY CARE,People's Services,Home Care Services,A56019
London Borough of Sutton,10/03/2024,50473376,17.29,Absolute Care Services Ltd,SOCIAL SERVICES DAY CARE,People's Services,Home Care Services,A56019
London Borough of Sutton,10/03/2024,50473376,17.29,Absolute Care Services Ltd,SOCIAL SERVICES DAY CARE,People's Services,Home Care Services,A56019
London Borough of Sutton,10/03/2024,50473396,544.88,Absolute Care Services Ltd,SOCIAL SERVICES DAY CARE,People's Services,Home Care Services,A56019
London Borough of Sutton,10/03/2024,50473396,544.88,Absolute Care Services Ltd,SOCIAL SERVICES DAY CARE,People's Services,Home Care Services,A56019
London Borough of Sutton,10/03/2024,50473396,34.58,Absolute Care Services Ltd,SOCIAL SERVICES DAY CARE,People's Services,Home Care Services,A56019
London Borough of Sutton,10/03/2024,50473396,34.58,Absolute Care Services Ltd,SOCIAL SERVICES DAY CARE,People's Services,Home Care Services,A56019
London Borough of Sutton,10/03/2024,50473482,484.12,Absolute Care Services Ltd,SOCIAL SERVICES DAY CARE,People's Services,Home Care Services,A56019
London Borough of Sutton,10/03/2024,50473482,484.12,Absolute Care Services Ltd,SOCIAL SERVICES DAY CARE,People's Services,Home Care Services,A56019
London Borough of Sutton,10/03/2024,50473482,242.06,Absolute Care Services Ltd,SOCIAL SERVICES DAY CARE,People's Services,Home Care Services,A56019
London Borough of Sutton,10/03/2024,50473482,242.06,Absolute Care Services Ltd,SOCIAL SERVICES DAY CARE,People's Services,Home Care Services,A56019
London Borough of Sutton,10/03/2024,50473489,471.17,Absolute Care Services Ltd,SOCIAL SERVICES DAY CARE,People's Services,Home Care Services,A56019
London Borough of Sutton,10/03/2024,50473489,471.17,Absolute Care Services Ltd,SOCIAL SERVICES DAY CARE,People's Services,Home Care Services,A56019
London Borough of Sutton,10/03/2024,50473489,60.55,Absolute Care Services Ltd,SOCIAL SERVICES DAY CARE,People's Services,Home Care Services,A56019
London Borough of Sutton,10/03/2024,50473489,60.55,Absolute Care Services Ltd,SOCIAL SERVICES DAY CARE,People's Services,Home Care Services,A56019
London Borough of Sutton,17/12/2023,50473971,544.88,Absolute Care Services Ltd,SOCIAL SERVICES DAY CARE,People's Services,Home Care Services,A56019
London Borough of Sutton,17/12/2023,50473971,544.88,Absolute Care Services Ltd,SOCIAL SERVICES DAY CARE,People's Services,Home Care Services,A56019
London Borough of Sutton,11/02/2024,50473998,423.65,Absolute Care Services Ltd,SOCIAL SERVICES DAY CARE,People's Services,Home Care Services,A56019
London Borough of Sutton,11/02/2024,50473998,423.65,Absolute Care Services Ltd,SOCIAL SERVICES DAY CARE,People's Services,Home Care Services,A56019
London Borough of Sutton,11/02/2024,50473998,90.79,Absolute Care Services Ltd,SOCIAL SERVICES DAY CARE,People's Services,Home Care Services,A56019
London Borough of Sutton,11/02/2024,50473998,90.79,Absolute Care Services Ltd,SOCIAL SERVICES DAY CARE,People's Services,Home Care Services,A56019
London Borough of Sutton,14/01/2024,50474001,423.65,Absolute Care Services Ltd,SOCIAL SERVICES DAY CARE,People's Services,Home Care Services,A56019
London Borough of Sutton,14/01/2024,50474001,423.65,Absolute Care Services Ltd,SOCIAL SERVICES DAY CARE,People's Services,Home Care Services,A56019
London Borough of Sutton,14/01/2024,50474001,90.79,Absolute Care Services Ltd,SOCIAL SERVICES DAY CARE,People's Services,Home Care Services,A56019
London Borough of Sutton,14/01/2024,50474001,90.79,Absolute Care Services Ltd,SOCIAL SERVICES DAY CARE,People's Services,Home Care Services,A56019
London Borough of Sutton,10/12/2023,50475170,805.15,Absolute Care Services Ltd,SOCIAL SERVICES DAY CARE,People's Services,Home Care Services,A56019
London Borough of Sutton,10/12/2023,50475170,805.15,Absolute Care Services Ltd,SOCIAL SERVICES DAY CARE,People's Services,Home Care Services,A56019
London Borough of Sutton,10/12/2023,50475170,62.73,Absolute Care Services Ltd,SOCIAL SERVICES DAY CARE,People's Services,Home Care Services,A56019
London Borough of Sutton,10/12/2023,50475170,62.73,Absolute Care Services Ltd,SOCIAL SERVICES DAY CARE,People's Services,Home Care Services,A56019
London Borough of Sutton,10/03/2024,50475171,639.63,Absolute Care Services Ltd,SOCIAL SERVICES DAY CARE,People's Services,Home Care Services,A56019
London Borough of Sutton,10/03/2024,50475171,639.63,Absolute Care Services Ltd,SOCIAL SERVICES DAY CARE,People's Services,Home Care Services,A56019
London Borough of Sutton,10/03/2024,50475171,62.73,Absolute Care Services Ltd,SOCIAL SERVICES DAY CARE,People's Services,Home Care Services,A56019
London Borough of Sutton,10/03/2024,50475171,62.73,Absolute Care Services Ltd,SOCIAL SERVICES DAY CARE,People's Services,Home Care Services,A56019
London Borough of Sutton,10/12/2023,50475180,732.06,Absolute Care Services Ltd,SOCIAL SERVICES DAY CARE,People's Services,Home Care Services,A56019
London Borough of Sutton,10/12/2023,50475180,732.06,Absolute Care Services Ltd,SOCIAL SERVICES DAY CARE,People's Services,Home Care Services,A56019
London Borough of Sutton,10/03/2024,50475252,393.90,Absolute Care Services Ltd,SOCIAL SERVICES DAY CARE,People's Services,Home Care Services,A56019
London Borough of Sutton,10/03/2024,50475252,393.90,Absolute Care Services Ltd,SOCIAL SERVICES DAY CARE,People's Services,Home Care Services,A56019
London Borough of Sutton,10/03/2024,50475252,167.21,Absolute Care Services Ltd,SOCIAL SERVICES DAY CARE,People's Services,Home Care Services,A56019
London Borough of Sutton,10/03/2024,50475252,167.21,Absolute Care Services Ltd,SOCIAL SERVICES DAY CARE,People's Services,Home Care Services,A56019
London Borough of Sutton,10/03/2024,50475287,353.89,Absolute Care Services Ltd,SOCIAL SERVICES DAY CARE,People's Services,Home Care Services,A56019
London Borough of Sutton,10/03/2024,50475287,353.89,Absolute Care Services Ltd,SOCIAL SERVICES DAY CARE,People's Services,Home Care Services,A56019
London Borough of Sutton,10/03/2024,50475287,146.30,Absolute Care Services Ltd,SOCIAL SERVICES DAY CARE,People's Services,Home Care Services,A56019
London Borough of Sutton,10/03/2024,50475287,146.30,Absolute Care Services Ltd,SOCIAL SERVICES DAY CARE,People's Services,Home Care Services,A56019
London Borough of Sutton,10/12/2023,50475302,658.84,Absolute Care Services Ltd,SOCIAL SERVICES DAY CARE,People's Services,Home Care Services,A56019
London Borough of Sutton,10/12/2023,50475302,658.84,Absolute Care Services Ltd,SOCIAL SERVICES DAY CARE,People's Services,Home Care Services,A56019
London Borough of Sutton,10/12/2023,50475325,392.20,Absolute Care Services Ltd,SOCIAL SERVICES DAY CARE,People's Services,Home Care Services,A56019
London Borough of Sutton,10/12/2023,50475325,392.20,Absolute Care Services Ltd,SOCIAL SERVICES DAY CARE,People's Services,Home Care Services,A56019
London Borough of Sutton,10/12/2023,50475325,180.13,Absolute Care Services Ltd,SOCIAL SERVICES DAY CARE,People's Services,Home Care Services,A56019
London Borough of Sutton,10/12/2023,50475325,180.13,Absolute Care Services Ltd,SOCIAL SERVICES DAY CARE,People's Services,Home Care Services,A56019
London Borough of Sutton,10/12/2023,50475325,115.19,Absolute Care Services Ltd,SOCIAL SERVICES DAY CARE,People's Services,Home Care Services,A56019
London Borough of Sutton,10/12/2023,50475325,115.19,Absolute Care Services Ltd,SOCIAL SERVICES DAY CARE,People's Services,Home Care Services,A56019
London Borough of Sutton,10/12/2023,50475327,544.88,Absolute Care Services Ltd,SOCIAL SERVICES DAY CARE,People's Services,Home Care Services,A56019
London Borough of Sutton,10/12/2023,50475327,544.88,Absolute Care Services Ltd,SOCIAL SERVICES DAY CARE,People's Services,Home Care Services,A56019
London Borough of Sutton,10/12/2023,50475327,17.29,Absolute Care Services Ltd,SOCIAL SERVICES DAY CARE,People's Services,Home Care Services,A56019
London Borough of Sutton,10/12/2023,50475327,17.29,Absolute Care Services Ltd,SOCIAL SERVICES DAY CARE,People's Services,Home Care Services,A56019
London Borough of Sutton,10/12/2023,50475403,484.12,Absolute Care Services Ltd,SOCIAL SERVICES DAY CARE,People's Services,Home Care Services,A56019
London Borough of Sutton,10/12/2023,50475403,484.12,Absolute Care Services Ltd,SOCIAL SERVICES DAY CARE,People's Services,Home Care Services,A56019
London Borough of Sutton,10/12/2023,50475403,242.06,Absolute Care Services Ltd,SOCIAL SERVICES DAY CARE,People's Services,Home Care Services,A56019
London Borough of Sutton,10/12/2023,50475403,242.06,Absolute Care Services Ltd,SOCIAL SERVICES DAY CARE,People's Services,Home Care Services,A56019
London Borough of Sutton,10/12/2023,50475406,536.25,Absolute Care Services Ltd,SOCIAL SERVICES DAY CARE,People's Services,Home Care Services,A56019
London Borough of Sutton,10/12/2023,50475406,536.25,Absolute Care Services Ltd,SOCIAL SERVICES DAY CARE,People's Services,Home Care Services,A56019
London Borough of Sutton,10/12/2023,50475406,51.87,Absolute Care Services Ltd,SOCIAL SERVICES DAY CARE,People's Services,Home Care Services,A56019
London Borough of Sutton,10/12/2023,50475406,51.87,Absolute Care Services Ltd,SOCIAL SERVICES DAY CARE,People's Services,Home Care Services,A56019
London Borough of Sutton,10/12/2023,50475410,458.20,Absolute Care Services Ltd,SOCIAL SERVICES DAY CARE,People's Services,Home Care Services,A56019
London Borough of Sutton,10/12/2023,50475410,458.20,Absolute Care Services Ltd,SOCIAL SERVICES DAY CARE,People's Services,Home Care Services,A56019
London Borough of Sutton,10/12/2023,50475410,60.55,Absolute Care Services Ltd,SOCIAL SERVICES DAY CARE,People's Services,Home Care Services,A56019
London Borough of Sutton,10/12/2023,50475410,60.55,Absolute Care Services Ltd,SOCIAL SERVICES DAY CARE,People's Services,Home Care Services,A56019
London Borough of Sutton,10/12/2023,50475437,544.88,Absolute Care Services Ltd,SOCIAL SERVICES DAY CARE,People's Services,Home Care Services,A56019
London Borough of Sutton,10/12/2023,50475437,544.88,Absolute Care Services Ltd,SOCIAL SERVICES DAY CARE,People's Services,Home Care Services,A56019
London Borough of Sutton,10/12/2023,50475437,17.29,Absolute Care Services Ltd,SOCIAL SERVICES DAY CARE,People's Services,Home Care Services,A56019
London Borough of Sutton,10/12/2023,50475437,17.29,Absolute Care Services Ltd,SOCIAL SERVICES DAY CARE,People's Services,Home Care Services,A56019
London Borough of Sutton,17/03/2024,50476377,423.85,Absolute Care Services Ltd,SOCIAL SERVICES DAY CARE,People's Services,Home Care Services,A56019
London Borough of Sutton,17/03/2024,50476377,423.85,Absolute Care Services Ltd,SOCIAL SERVICES DAY CARE,People's Services,Home Care Services,A56019
London Borough of Sutton,17/03/2024,50476377,121.03,Absolute Care Services Ltd,SOCIAL SERVICES DAY CARE,People's Services,Home Care Services,A56019
London Borough of Sutton,17/03/2024,50476377,121.03,Absolute Care Services Ltd,SOCIAL SERVICES DAY CARE,People's Services,Home Care Services,A56019
London Borough of Sutton,17/03/2024,50476392,528.13,Absolute Care Services Ltd,SOCIAL SERVICES DAY CARE,People's Services,Home Care Services,A56019
London Borough of Sutton,17/03/2024,50476392,528.13,Absolute Care Services Ltd,SOCIAL SERVICES DAY CARE,People's Services,Home Care Services,A56019
London Borough of Sutton,17/03/2024,50476392,16.76,Absolute Care Services Ltd,SOCIAL SERVICES DAY CARE,People's Services,Home Care Services,A56019
London Borough of Sutton,17/03/2024,50476392,16.76,Absolute Care Services Ltd,SOCIAL SERVICES DAY CARE,People's Services,Home Care Services,A56019
London Borough of Sutton,17/03/2024,50476405,544.88,Absolute Care Services Ltd,SOCIAL SERVICES DAY CARE,People's Services,Home Care Services,A56019
London Borough of Sutton,17/03/2024,50476405,544.88,Absolute Care Services Ltd,SOCIAL SERVICES DAY CARE,People's Services,Home Care Services,A56019
London Borough of Sutton,17/03/2024,50476405,34.58,Absolute Care Services Ltd,SOCIAL SERVICES DAY CARE,People's Services,Home Care Services,A56019
London Borough of Sutton,17/03/2024,50476405,34.58,Absolute Care Services Ltd,SOCIAL SERVICES DAY CARE,People's Services,Home Care Services,A56019
London Borough of Sutton,17/03/2024,50477504,362.60,Absolute Care Services Ltd,SOCIAL SERVICES DAY CARE,People's Services,Home Care Services,A56019
London Borough of Sutton,17/03/2024,50477504,362.60,Absolute Care Services Ltd,SOCIAL SERVICES DAY CARE,People's Services,Home Care Services,A56019
London Borough of Sutton,17/03/2024,50477504,146.30,Absolute Care Services Ltd,SOCIAL SERVICES DAY CARE,People's Services,Home Care Services,A56019
London Borough of Sutton,17/03/2024,50477504,146.30,Absolute Care Services Ltd,SOCIAL SERVICES DAY CARE,People's Services,Home Care Services,A56019
London Borough of Sutton,17/03/2024,50477522,702.35,Absolute Care Services Ltd,SOCIAL SERVICES DAY CARE,People's Services,Home Care Services,A56019
London Borough of Sutton,17/03/2024,50477522,702.35,Absolute Care Services Ltd,SOCIAL SERVICES DAY CARE,People's Services,Home Care Services,A56019
London Borough of Sutton,17/03/2024,50477522,62.73,Absolute Care Services Ltd,SOCIAL SERVICES DAY CARE,People's Services,Home Care Services,A56019
London Borough of Sutton,17/03/2024,50477522,62.73,Absolute Care Services Ltd,SOCIAL SERVICES DAY CARE,People's Services,Home Care Services,A56019
London Borough of Sutton,17/03/2024,50477570,393.93,Absolute Care Services Ltd,SOCIAL SERVICES DAY CARE,People's Services,Home Care Services,A56019
London Borough of Sutton,17/03/2024,50477570,393.93,Absolute Care Services Ltd,SOCIAL SERVICES DAY CARE,People's Services,Home Care Services,A56019
London Borough of Sutton,17/03/2024,50477570,167.21,Absolute Care Services Ltd,SOCIAL SERVICES DAY CARE,People's Services,Home Care Services,A56019
London Borough of Sutton,17/03/2024,50477570,167.21,Absolute Care Services Ltd,SOCIAL SERVICES DAY CARE,People's Services,Home Care Services,A56019
London Borough of Sutton,17/03/2024,50477595,484.12,Absolute Care Services Ltd,SOCIAL SERVICES DAY CARE,People's Services,Home Care Services,A56019
London Borough of Sutton,17/03/2024,50477595,484.12,Absolute Care Services Ltd,SOCIAL SERVICES DAY CARE,People's Services,Home Care Services,A56019
London Borough of Sutton,17/03/2024,50477595,242.06,Absolute Care Services Ltd,SOCIAL SERVICES DAY CARE,People's Services,Home Care Services,A56019
London Borough of Sutton,17/03/2024,50477595,242.06,Absolute Care Services Ltd,SOCIAL SERVICES DAY CARE,People's Services,Home Care Services,A56019
London Borough of Sutton,17/03/2024,50477626,181.58,Absolute Care Services Ltd,SOCIAL SERVICES DAY CARE,People's Services,Home Care Services,A56019
London Borough of Sutton,17/03/2024,50477626,181.58,Absolute Care Services Ltd,SOCIAL SERVICES DAY CARE,People's Services,Home Care Services,A56019
London Borough of Sutton,17/03/2024,50477626,307.02,Absolute Care Services Ltd,SOCIAL SERVICES DAY CARE,People's Services,Home Care Services,A56019
London Borough of Sutton,17/03/2024,50477626,307.02,Absolute Care Services Ltd,SOCIAL SERVICES DAY CARE,People's Services,Home Care Services,A56019
London Borough of Sutton,17/03/2024,50477626,121.03,Absolute Care Services Ltd,SOCIAL SERVICES DAY CARE,People's Services,Home Care Services,A56019
London Borough of Sutton,17/03/2024,50477626,121.03,Absolute Care Services Ltd,SOCIAL SERVICES DAY CARE,People's Services,Home Care Services,A56019
London Borough of Sutton,06/03/2024,20071383,"250,346.65",Access UK Limited,TAXI AND COACH HIRE,People's Services,Childrens Social Care Transport,A32009
London Borough of Sutton,13/03/2024,20071984,"214,007.25",Access UK Limited,TAXI AND COACH HIRE,People's Services,Childrens Social Care Transport,A32009
London Borough of Sutton,20/03/2024,20072479,"259,372.69",Access UK Limited,TAXI AND COACH HIRE,People's Services,Childrens Social Care Transport,A32009
London Borough of Sutton,27/03/2024,20073045,"208,873.92",Access UK Limited,TAXI AND COACH HIRE,People's Services,Childrens Social Care Transport,A32009
London Borough of Sutton,04/03/2024,50473935,"3,195.81",Accomplish Group Ltd,SOCIAL SERVICES RESIDENTIAL,People's Services,Supported Living,A56088
London Borough of Sutton,04/03/2024,50473935,"3,195.81",Accomplish Group Ltd,SOCIAL SERVICES RESIDENTIAL,People's Services,Supported Living,A56088
London Borough of Sutton,04/03/2024,50473948,"4,847.17",Accomplish Group Ltd,SOCIAL SERVICES RESIDENTIAL,People's Services,Supported Living,A56088
London Borough of Sutton,04/03/2024,50473948,"4,847.17",Accomplish Group Ltd,SOCIAL SERVICES RESIDENTIAL,People's Services,Supported Living,A56088
London Borough of Sutton,04/03/2024,50473959,"5,251.98",Accomplish Group Ltd,SOCIAL SERVICES RESIDENTIAL,People's Services,Supported Living,A56088
London Borough of Sutton,04/03/2024,50473959,"5,251.98",Accomplish Group Ltd,SOCIAL SERVICES RESIDENTIAL,People's Services,Supported Living,A56088
London Borough of Sutton,15/03/2024,50472518,-483.20,Achieve Together Limited,SOCIAL SERVICES RESIDENTIAL,People's Services,Residential Care - Client Cont ( Net Paymt ),A56113
London Borough of Sutton,15/03/2024,50472518,-483.20,Achieve Together Limited,SOCIAL SERVICES RESIDENTIAL,People's Services,Residential Care - Client Cont ( Net Paymt ),A56113
London Borough of Sutton,15/03/2024,50472518,"5,620.60",Achieve Together Limited,SOCIAL SERVICES RESIDENTIAL,People's Services,Residential Care - Ext Provider,A56114
London Borough of Sutton,15/03/2024,50472518,"5,620.60",Achieve Together Limited,SOCIAL SERVICES RESIDENTIAL,People's Services,Residential Care - Ext Provider,A56114
London Borough of Sutton,15/03/2024,50472572,"11,047.88",Achieve Together Limited,SOCIAL SERVICES RESIDENTIAL,People's Services,Residential Care - Ext Provider,A56114
London Borough of Sutton,15/03/2024,50472572,"11,047.88",Achieve Together Limited,SOCIAL SERVICES RESIDENTIAL,People's Services,Residential Care - Ext Provider,A56114
London Borough of Sutton,15/03/2024,50472583,"8,716.00",Achieve Together Limited,SOCIAL SERVICES RESIDENTIAL,People's Services,Residential Care - Ext Provider,A56114
London Borough of Sutton,15/03/2024,50472583,"8,716.00",Achieve Together Limited,SOCIAL SERVICES RESIDENTIAL,People's Services,Residential Care - Ext Provider,A56114
London Borough of Sutton,15/03/2024,50472617,-467.20,Achieve Together Limited,SOCIAL SERVICES RESIDENTIAL,People's Services,Residential Care - Client Cont ( Net Paymt ),A56113
London Borough of Sutton,15/03/2024,50472617,-467.20,Achieve Together Limited,SOCIAL SERVICES RESIDENTIAL,People's Services,Residential Care - Client Cont ( Net Paymt ),A56113
London Borough of Sutton,15/03/2024,50472617,"8,103.64",Achieve Together Limited,SOCIAL SERVICES RESIDENTIAL,People's Services,Residential Care - Ext Provider,A56114
London Borough of Sutton,15/03/2024,50472617,"8,103.64",Achieve Together Limited,SOCIAL SERVICES RESIDENTIAL,People's Services,Residential Care - Ext Provider,A56114
London Borough of Sutton,15/03/2024,50472618,"4,653.76",Achieve Together Limited,SOCIAL SERVICES RESIDENTIAL,People's Services,Residential Care - Ext Provider,A56114
London Borough of Sutton,15/03/2024,50472618,"4,653.76",Achieve Together Limited,SOCIAL SERVICES RESIDENTIAL,People's Services,Residential Care - Ext Provider,A56114
London Borough of Sutton,15/03/2024,50472657,"5,810.56",Achieve Together Limited,SOCIAL SERVICES RESIDENTIAL,People's Services,Residential Care - Ext Provider,A56114
London Borough of Sutton,15/03/2024,50472657,"5,810.56",Achieve Together Limited,SOCIAL SERVICES RESIDENTIAL,People's Services,Residential Care - Ext Provider,A56114
London Borough of Sutton,15/03/2024,50472696,"7,303.88",Achieve Together Limited,SOCIAL SERVICES RESIDENTIAL,People's Services,Residential Care - Ext Provider,A56114
London Borough of Sutton,15/03/2024,50472696,"7,303.88",Achieve Together Limited,SOCIAL SERVICES RESIDENTIAL,People's Services,Residential Care - Ext Provider,A56114
London Borough of Sutton,15/03/2024,50472709,-537.00,Achieve Together Limited,SOCIAL SERVICES RESIDENTIAL,People's Services,Residential Care - Client Cont ( Net Paymt ),A56113
London Borough of Sutton,15/03/2024,50472709,-537.00,Achieve Together Limited,SOCIAL SERVICES RESIDENTIAL,People's Services,Residential Care - Client Cont ( Net Paymt ),A56113
London Borough of Sutton,15/03/2024,50472709,"4,682.44",Achieve Together Limited,SOCIAL SERVICES RESIDENTIAL,People's Services,Residential Care - Ext Provider,A56114
London Borough of Sutton,15/03/2024,50472709,"4,682.44",Achieve Together Limited,SOCIAL SERVICES RESIDENTIAL,People's Services,Residential Care - Ext Provider,A56114
London Borough of Sutton,15/03/2024,50472746,390.00,Achieve Together Limited,SOCIAL SERVICES RESIDENTIAL,People's Services,One to One Care,A56108
London Borough of Sutton,15/03/2024,50472746,390.00,Achieve Together Limited,SOCIAL SERVICES RESIDENTIAL,People's Services,One to One Care,A56108
London Borough of Sutton,15/03/2024,50472746,-549.00,Achieve Together Limited,SOCIAL SERVICES RESIDENTIAL,People's Services,Residential Care - Client Cont ( Net Paymt ),A56113
London Borough of Sutton,15/03/2024,50472746,-549.00,Achieve Together Limited,SOCIAL SERVICES RESIDENTIAL,People's Services,Residential Care - Client Cont ( Net Paymt ),A56113
London Borough of Sutton,15/03/2024,50472746,"4,375.48",Achieve Together Limited,SOCIAL SERVICES RESIDENTIAL,People's Services,Residential Care - Ext Provider,A56114
London Borough of Sutton,15/03/2024,50472746,"4,375.48",Achieve Together Limited,SOCIAL SERVICES RESIDENTIAL,People's Services,Residential Care - Ext Provider,A56114
London Borough of Sutton,15/03/2024,50472797,"5,100.00",Achieve Together Limited,SOCIAL SERVICES RESIDENTIAL,People's Services,Residential Care - Ext Provider,A56114
London Borough of Sutton,15/03/2024,50472797,"5,100.00",Achieve Together Limited,SOCIAL SERVICES RESIDENTIAL,People's Services,Residential Care - Ext Provider,A56114
London Borough of Sutton,18/03/2024,50473527,"4,878.87",Achieve Together Limited,SOCIAL SERVICES RESIDENTIAL,People's Services,Supported Living,A56088
London Borough of Sutton,18/03/2024,50473527,"4,878.87",Achieve Together Limited,SOCIAL SERVICES RESIDENTIAL,People's Services,Supported Living,A56088
London Borough of Sutton,18/03/2024,50473534,"3,315.45",Achieve Together Limited,SOCIAL SERVICES RESIDENTIAL,People's Services,Supported Living,A56088
London Borough of Sutton,18/03/2024,50473534,"3,315.45",Achieve Together Limited,SOCIAL SERVICES RESIDENTIAL,People's Services,Supported Living,A56088
London Borough of Sutton,18/03/2024,50473534,994.83,Achieve Together Limited,SOCIAL SERVICES RESIDENTIAL,People's Services,Supported Living,A56088
London Borough of Sutton,18/03/2024,50473534,994.83,Achieve Together Limited,SOCIAL SERVICES RESIDENTIAL,People's Services,Supported Living,A56088
London Borough of Sutton,18/03/2024,50473534,"2,301.88",Achieve Together Limited,SOCIAL SERVICES RESIDENTIAL,People's Services,Supported Living,A56088
London Borough of Sutton,18/03/2024,50473534,"2,301.88",Achieve Together Limited,SOCIAL SERVICES RESIDENTIAL,People's Services,Supported Living,A56088
London Borough of Sutton,18/03/2024,50473534,449.46,Achieve Together Limited,SOCIAL SERVICES RESIDENTIAL,People's Services,Supported Living,A56088
London Borough of Sutton,18/03/2024,50473534,449.46,Achieve Together Limited,SOCIAL SERVICES RESIDENTIAL,People's Services,Supported Living,A56088
London Borough of Sutton,18/03/2024,50473539,"1,087.48",Achieve Together Limited,SOCIAL SERVICES RESIDENTIAL,People's Services,Supported Living,A56088
London Borough of Sutton,18/03/2024,50473539,"1,087.48",Achieve Together Limited,SOCIAL SERVICES RESIDENTIAL,People's Services,Supported Living,A56088
London Borough of Sutton,18/03/2024,50473539,908.12,Achieve Together Limited,SOCIAL SERVICES RESIDENTIAL,People's Services,Supported Living,A56088
London Borough of Sutton,18/03/2024,50473539,908.12,Achieve Together Limited,SOCIAL SERVICES RESIDENTIAL,People's Services,Supported Living,A56088
London Borough of Sutton,18/03/2024,50473539,"1,087.48",Achieve Together Limited,SOCIAL SERVICES RESIDENTIAL,People's Services,Supported Living,A56088
London Borough of Sutton,18/03/2024,50473539,"1,087.48",Achieve Together Limited,SOCIAL SERVICES RESIDENTIAL,People's Services,Supported Living,A56088
London Borough of Sutton,18/03/2024,50473540,"2,718.70",Achieve Together Limited,SOCIAL SERVICES RESIDENTIAL,People's Services,Supported Living,A56088
London Borough of Sutton,18/03/2024,50473540,"2,718.70",Achieve Together Limited,SOCIAL SERVICES RESIDENTIAL,People's Services,Supported Living,A56088
London Borough of Sutton,18/03/2024,50473609,"2,446.83",Achieve Together Limited,SOCIAL SERVICES RESIDENTIAL,People's Services,Supported Living,A56088
London Borough of Sutton,18/03/2024,50473609,"2,446.83",Achieve Together Limited,SOCIAL SERVICES RESIDENTIAL,People's Services,Supported Living,A56088
London Borough of Sutton,18/03/2024,50473609,656.00,Achieve Together Limited,SOCIAL SERVICES RESIDENTIAL,People's Services,Supported Living,A56088
London Borough of Sutton,18/03/2024,50473609,656.00,Achieve Together Limited,SOCIAL SERVICES RESIDENTIAL,People's Services,Supported Living,A56088
London Borough of Sutton,18/03/2024,50473609,634.61,Achieve Together Limited,SOCIAL SERVICES RESIDENTIAL,People's Services,Supported Living,A56088
London Borough of Sutton,18/03/2024,50473609,634.61,Achieve Together Limited,SOCIAL SERVICES RESIDENTIAL,People's Services,Supported Living,A56088
London Borough of Sutton,18/03/2024,50473629,"3,012.31",Achieve Together Limited,SOCIAL SERVICES RESIDENTIAL,People's Services,Supported Living,A56088
London Borough of Sutton,18/03/2024,50473629,"3,012.31",Achieve Together Limited,SOCIAL SERVICES RESIDENTIAL,People's Services,Supported Living,A56088
London Borough of Sutton,18/03/2024,50473629,"3,184.32",Achieve Together Limited,SOCIAL SERVICES RESIDENTIAL,People's Services,Supported Living,A56088
London Borough of Sutton,18/03/2024,50473629,"3,184.32",Achieve Together Limited,SOCIAL SERVICES RESIDENTIAL,People's Services,Supported Living,A56088
London Borough of Sutton,04/03/2024,50477354,"3,118.00",Achieve Together Limited,SOCIAL SERVICES RESIDENTIAL,People's Services,Home Care Services,A56019
London Borough of Sutton,04/03/2024,50477354,"3,118.00",Achieve Together Limited,SOCIAL SERVICES RESIDENTIAL,People's Services,Home Care Services,A56019
London Borough of Sutton,01/03/2024,50469917,"31,499.51",Achieving Above Average Ltd,CHILDREN'S SERVICES - RESIDENTIAL,People's Services,Residential Care-Children,A56115
London Borough of Sutton,01/03/2024,50469917,"31,499.51",Achieving Above Average Ltd,CHILDREN'S SERVICES - RESIDENTIAL,People's Services,Residential Care-Children,A56115
London Borough of Sutton,12/03/2024,50471035,"52,015.85",Achieving For Children Limited,SOCIAL SERVICES - OTHER,People's Services,Top-up Funding,A51016
London Borough of Sutton,12/03/2024,50471035,"27,666.15",Achieving For Children Limited,SOCIAL SERVICES - OTHER,People's Services,Top-up Funding,A51016
London Borough of Sutton,19/03/2024,50474030,780.00,Achieving For Children Limited,SOCIAL SERVICES - OTHER,People's Services,Special Educational Needs,A51015
London Borough of Sutton,15/03/2024,50472587,"5,844.00",Acorn Residential Home,SOCIAL SERVICES RESIDENTIAL,People's Services,Residential Care - Ext Provider,A56114
London Borough of Sutton,15/03/2024,50472587,"5,844.00",Acorn Residential Home,SOCIAL SERVICES RESIDENTIAL,People's Services,Residential Care - Ext Provider,A56114
London Borough of Sutton,15/11/2023,50468977,"1,085.00",Activate Learning,ACADEMIC INSTNS - OTHER,People's Services,Top-up Funding,A51016
London Borough of Sutton,15/03/2024,50472477,-702.40,Active Prospects,SOCIAL SERVICES DAY CARE,People's Services,Residential Care - Client Cont ( Net Paymt ),A56113
London Borough of Sutton,15/03/2024,50472477,-702.40,Active Prospects,SOCIAL SERVICES DAY CARE,People's Services,Residential Care - Client Cont ( Net Paymt ),A56113
London Borough of Sutton,15/03/2024,50472477,"8,918.80",Active Prospects,SOCIAL SERVICES DAY CARE,People's Services,Residential Care - Ext Provider,A56114
London Borough of Sutton,15/03/2024,50472477,"8,918.80",Active Prospects,SOCIAL SERVICES DAY CARE,People's Services,Residential Care - Ext Provider,A56114
London Borough of Sutton,15/03/2024,50472541,"6,441.84",Active Prospects,SOCIAL SERVICES DAY CARE,People's Services,Residential Care - Ext Provider,A56114
London Borough of Sutton,15/03/2024,50472541,"6,441.84",Active Prospects,SOCIAL SERVICES DAY CARE,People's Services,Residential Care - Ext Provider,A56114
London Borough of Sutton,27/02/2024,20071198,"14,400.00",Adapted4 Limited,GRANTS & EX GRATIA PAYMENTS,Environment Housing and Neighbourhoods,Grants Given For Capital Purposes,C20004
London Borough of Sutton,15/03/2024,50472483,"1,458.00",Admiral Healthcare Ltd.,SOCIAL SERVICES RESIDENTIAL,People's Services,Residential Care - Ext Provider,A56114
London Borough of Sutton,15/03/2024,50472483,"1,458.00",Admiral Healthcare Ltd.,SOCIAL SERVICES RESIDENTIAL,People's Services,Residential Care - Ext Provider,A56114
London Borough of Sutton,15/03/2024,50472538,"6,000.00",Admiral Healthcare Ltd.,SOCIAL SERVICES RESIDENTIAL,People's Services,Residential Care - Ext Provider,A56114
London Borough of Sutton,15/03/2024,50472538,"6,000.00",Admiral Healthcare Ltd.,SOCIAL SERVICES RESIDENTIAL,People's Services,Residential Care - Ext Provider,A56114
London Borough of Sutton,27/02/2024,50469793,"3,103.29",Affinity Fostering Services Ltd,CHILDREN'S SERVICES - FOSTERING & ADOPTION SERVICES,People's Services,Foster Parents Support,A44110
London Borough of Sutton,27/02/2024,50469793,"3,103.29",Affinity Fostering Services Ltd,CHILDREN'S SERVICES - FOSTERING & ADOPTION SERVICES,People's Services,Foster Parents Support,A44110
London Borough of Sutton,27/02/2024,50469794,"3,299.91",Affinity Fostering Services Ltd,CHILDREN'S SERVICES - FOSTERING & ADOPTION SERVICES,People's Services,Foster Parents Support,A44110
London Borough of Sutton,27/02/2024,50469794,"3,299.91",Affinity Fostering Services Ltd,CHILDREN'S SERVICES - FOSTERING & ADOPTION SERVICES,People's Services,Foster Parents Support,A44110
London Borough of Sutton,27/02/2024,50469795,"3,475.65",Affinity Fostering Services Ltd,CHILDREN'S SERVICES - FOSTERING & ADOPTION SERVICES,People's Services,Foster Parents Support,A44110
London Borough of Sutton,27/02/2024,50469795,"3,475.65",Affinity Fostering Services Ltd,CHILDREN'S SERVICES - FOSTERING & ADOPTION SERVICES,People's Services,Foster Parents Support,A44110
London Borough of Sutton,27/02/2024,50469873,"3,268.59",Affinity Fostering Services Ltd,CHILDREN'S SERVICES - FOSTERING & ADOPTION SERVICES,People's Services,Foster Parents Support,A44110
London Borough of Sutton,27/02/2024,50469873,"3,268.59",Affinity Fostering Services Ltd,CHILDREN'S SERVICES - FOSTERING & ADOPTION SERVICES,People's Services,Foster Parents Support,A44110
London Borough of Sutton,19/03/2024,20072437,"46,500.00",Age UK Sutton,SOCIAL SERVICES - OTHER,People's Services,Provider Contract Payments,A44290
London Borough of Sutton,19/03/2024,20072437,"46,500.00",Age UK Sutton,SOCIAL SERVICES - OTHER,People's Services,Provider Contract Payments,A44290
London Borough of Sutton,18/03/2024,50473622,"2,024.21",Agincare Enable Limited,SOCIAL SERVICES RESIDENTIAL,People's Services,One to One Care,A56108
London Borough of Sutton,18/03/2024,50473622,"2,024.21",Agincare Enable Limited,SOCIAL SERVICES RESIDENTIAL,People's Services,One to One Care,A56108
London Borough of Sutton,18/03/2024,50473622,"2,024.21",Agincare Enable Limited,SOCIAL SERVICES RESIDENTIAL,People's Services,Supported Living,A56088
London Borough of Sutton,18/03/2024,50473622,"2,024.21",Agincare Enable Limited,SOCIAL SERVICES RESIDENTIAL,People's Services,Supported Living,A56088
London Borough of Sutton,18/03/2024,50473622,455.70,Agincare Enable Limited,SOCIAL SERVICES RESIDENTIAL,People's Services,Supported Living,A56088
London Borough of Sutton,18/03/2024,50473622,455.70,Agincare Enable Limited,SOCIAL SERVICES RESIDENTIAL,People's Services,Supported Living,A56088
London Borough of Sutton,04/03/2024,20071133,950.00,Alderton Associates Ltd,TEMP STAFF & CONSULTANCY,HRA,External Fees and Consultants,C20000
London Borough of Sutton,21/03/2024,50475713,"2,032.00",All About Homes Ltd,CARE LEAVERS,People's Services,Education Allowance,A60008
London Borough of Sutton,12/03/2024,50469482,"168,131.43",All Saints Benhilton C Of E,SCHOOL FUNDS,People's Services,Payments to Schools,A51013
London Borough of Sutton,14/03/2024,50471041,"1,518.55",All Saints Benhilton C Of E,SCHOOL FUNDS,People's Services,Payment - school supplementary grant,A51062
London Borough of Sutton,15/03/2024,50471815,"18,585.76",All Saints Benhilton C Of E,SCHOOL FUNDS,People's Services,Payment - Nursery Funding,A51056
London Borough of Sutton,21/03/2024,50475717,"2,633.40",All Saints Benhilton C Of E,SCHOOL FUNDS,People's Services,Payment - school supplementary grant,A51062
London Borough of Sutton,25/03/2024,50476507,"3,915.00",All Saints Benhilton C Of E,SCHOOL FUNDS,Non-Service Cost Centres,Recharge-Teaching Staff,A10600
London Borough of Sutton,25/03/2024,50476549,579.60,All Saints Benhilton C Of E,SCHOOL FUNDS,People's Services,Payment - school supplementary grant,A51062
London Borough of Sutton,25/03/2024,50477124,"1,255.80",All Saints Benhilton C Of E,SCHOOL FUNDS,People's Services,Payment - school supplementary grant,A51062
London Borough of Sutton,26/03/2024,50477184,"38,971.06",All Saints Benhilton C Of E,SCHOOL FUNDS,People's Services,Top-up Funding,A51016
London Borough of Sutton,27/03/2024,50477842,"4,803.66",All Saints Benhilton C Of E,SCHOOL FUNDS,Non-Service Cost Centres,Recharge-Teaching Staff,A10600
London Borough of Sutton,12/03/2024,50469459,"1,717.84",All Saints Carshalton Primary School,SCHOOL FUNDS,People's Services,Disability Access Fund,A56093
London Borough of Sutton,14/03/2024,50471042,"1,362.34",All Saints Carshalton Primary School,SCHOOL FUNDS,People's Services,Payment - school supplementary grant,A51062
London Borough of Sutton,15/03/2024,50471816,"16,673.81",All Saints Carshalton Primary School,SCHOOL FUNDS,People's Services,Payment - Nursery Funding,A51056
London Borough of Sutton,21/03/2024,50475478,"2,300.00",All Saints Carshalton Primary School,SCHOOL FUNDS,People's Services,Predictable Needs funding,A56125
London Borough of Sutton,21/03/2024,50475718,"2,247.00",All Saints Carshalton Primary School,SCHOOL FUNDS,People's Services,Payment - school supplementary grant,A51062
London Borough of Sutton,25/03/2024,50476550,772.80,All Saints Carshalton Primary School,SCHOOL FUNDS,People's Services,Payment - school supplementary grant,A51062
London Borough of Sutton,25/03/2024,50477126,966.00,All Saints Carshalton Primary School,SCHOOL FUNDS,People's Services,Payment - school supplementary grant,A51062
London Borough of Sutton,26/03/2024,50477185,"40,769.51",All Saints Carshalton Primary School,SCHOOL FUNDS,People's Services,Top-up Funding,A51016
London Borough of Sutton,25/03/2024,50477757,814.82,All Saints Carshalton Primary School,SCHOOL FUNDS,People's Services,Top-up Funding,A51016
London Borough of Sutton,29/02/2024,50469881,"8,443.84",All4U Fostering Ltd,CHILDREN'S SERVICES - FOSTERING & ADOPTION SERVICES,People's Services,Foster Parents Support,A44110
London Borough of Sutton,29/02/2024,50469881,"8,443.84",All4U Fostering Ltd,CHILDREN'S SERVICES - FOSTERING & ADOPTION SERVICES,People's Services,Foster Parents Support,A44110
London Borough of Sutton,29/02/2024,50469882,"5,661.09",All4U Fostering Ltd,CHILDREN'S SERVICES - FOSTERING & ADOPTION SERVICES,People's Services,Foster Parents Support,A44110
London Borough of Sutton,29/02/2024,50469882,"5,661.09",All4U Fostering Ltd,CHILDREN'S SERVICES - FOSTERING & ADOPTION SERVICES,People's Services,Foster Parents Support,A44110
London Borough of Sutton,29/02/2024,50469883,"5,389.65",All4U Fostering Ltd,CHILDREN'S SERVICES - FOSTERING & ADOPTION SERVICES,People's Services,Foster Parents Support,A44110
London Borough of Sutton,29/02/2024,50469883,"5,389.65",All4U Fostering Ltd,CHILDREN'S SERVICES - FOSTERING & ADOPTION SERVICES,People's Services,Foster Parents Support,A44110
London Borough of Sutton,15/03/2024,50472531,"4,806.52",Allied Care (Mhs) Ltd,SOCIAL SERVICES - OTHER,People's Services,Residential Care - Ext Provider,A56114
London Borough of Sutton,15/03/2024,50472531,"4,806.52",Allied Care (Mhs) Ltd,SOCIAL SERVICES - OTHER,People's Services,Residential Care - Ext Provider,A56114
London Borough of Sutton,13/03/2024,20072017,"52,583.24",Allies and Morrison LLP,SUNDRY SUPPLIER - ENV SERVICES,Environment Housing and Neighbourhoods,Consultancy Services,A56007
London Borough of Sutton,01/03/2024,20071487,"1,850.00",Alljos Services Ltd,PREMISES - CLEANING & LAUNDRY,Environment Housing and Neighbourhoods,Grants Given For Capital Purposes,C20004
London Borough of Sutton,05/03/2024,20071518,960.00,Alljos Services Ltd,PREMISES - CLEANING & LAUNDRY,Environment Housing and Neighbourhoods,Grants Given For Capital Purposes,C20004
London Borough of Sutton,01/03/2024,20071109,"1,383.43",Allstar Business Solutions,FUEL AND VEHICLE SUPPLIES,Environment Housing and Neighbourhoods,Vehicles -  Fuel,A30015
London Borough of Sutton,15/03/2024,50472695,"6,609.52",Allswell Care Services Ltd,SOCIAL SERVICES RESIDENTIAL,People's Services,Residential Care - Ext Provider,A56114
London Borough of Sutton,15/03/2024,50472695,"6,609.52",Allswell Care Services Ltd,SOCIAL SERVICES RESIDENTIAL,People's Services,Residential Care - Ext Provider,A56114
London Borough of Sutton,15/03/2024,50472908,"5,397.60",Allswell Care Services Ltd,SOCIAL SERVICES RESIDENTIAL,People's Services,Residential Care - Ext Provider,A56114
London Borough of Sutton,15/03/2024,50472908,"5,397.60",Allswell Care Services Ltd,SOCIAL SERVICES RESIDENTIAL,People's Services,Residential Care - Ext Provider,A56114
London Borough of Sutton,15/03/2024,50472996,"5,397.60",Allswell Care Services Ltd,SOCIAL SERVICES RESIDENTIAL,People's Services,Residential Care - Ext Provider,A56114
London Borough of Sutton,15/03/2024,50472996,"5,397.60",Allswell Care Services Ltd,SOCIAL SERVICES RESIDENTIAL,People's Services,Residential Care - Ext Provider,A56114
London Borough of Sutton,28/02/2024,50468508,"1,148.86",Alpenbest Limited,SOCIAL SERVICES DAY CARE,People's Services,Home Care Services,A56019
London Borough of Sutton,28/02/2024,50468508,"1,148.86",Alpenbest Limited,SOCIAL SERVICES DAY CARE,People's Services,Home Care Services,A56019
London Borough of Sutton,28/02/2024,50468509,"1,279.61",Alpenbest Limited,SOCIAL SERVICES DAY CARE,People's Services,Home Care Services,A56019
London Borough of Sutton,28/02/2024,50468509,"1,279.61",Alpenbest Limited,SOCIAL SERVICES DAY CARE,People's Services,Home Care Services,A56019
London Borough of Sutton,28/02/2024,50468514,"1,300.53",Alpenbest Limited,SOCIAL SERVICES DAY CARE,People's Services,Home Care Services,A56019
London Borough of Sutton,28/02/2024,50468514,"1,300.53",Alpenbest Limited,SOCIAL SERVICES DAY CARE,People's Services,Home Care Services,A56019
London Borough of Sutton,28/02/2024,50468559,"1,004.16",Alpenbest Limited,SOCIAL SERVICES DAY CARE,People's Services,Home Care Services,A56019
London Borough of Sutton,28/02/2024,50468559,"1,004.16",Alpenbest Limited,SOCIAL SERVICES DAY CARE,People's Services,Home Care Services,A56019
London Borough of Sutton,28/02/2024,50468560,"2,608.07",Alpenbest Limited,SOCIAL SERVICES DAY CARE,People's Services,Home Care Services,A56019
London Borough of Sutton,28/02/2024,50468560,"2,608.07",Alpenbest Limited,SOCIAL SERVICES DAY CARE,People's Services,Home Care Services,A56019
London Borough of Sutton,28/02/2024,50468561,794.96,Alpenbest Limited,SOCIAL SERVICES DAY CARE,People's Services,Home Care Services,A56019
London Borough of Sutton,28/02/2024,50468561,794.96,Alpenbest Limited,SOCIAL SERVICES DAY CARE,People's Services,Home Care Services,A56019
London Borough of Sutton,28/02/2024,50468562,"2,287.35",Alpenbest Limited,SOCIAL SERVICES DAY CARE,People's Services,Home Care Services,A56019
London Borough of Sutton,28/02/2024,50468562,"2,287.35",Alpenbest Limited,SOCIAL SERVICES DAY CARE,People's Services,Home Care Services,A56019
London Borough of Sutton,28/02/2024,50468565,"3,514.56",Alpenbest Limited,SOCIAL SERVICES DAY CARE,People's Services,Home Care Services,A56019
London Borough of Sutton,28/02/2024,50468565,"3,514.56",Alpenbest Limited,SOCIAL SERVICES DAY CARE,People's Services,Home Care Services,A56019
London Borough of Sutton,28/02/2024,50468565,"1,609.72",Alpenbest Limited,SOCIAL SERVICES DAY CARE,People's Services,Home Care Services,A56019
London Borough of Sutton,28/02/2024,50468565,"1,609.72",Alpenbest Limited,SOCIAL SERVICES DAY CARE,People's Services,Home Care Services,A56019
London Borough of Sutton,28/02/2024,50468566,903.06,Alpenbest Limited,SOCIAL SERVICES DAY CARE,People's Services,Home Care Services,A56019
London Borough of Sutton,28/02/2024,50468566,903.06,Alpenbest Limited,SOCIAL SERVICES DAY CARE,People's Services,Home Care Services,A56019
London Borough of Sutton,28/02/2024,50468567,"1,316.22",Alpenbest Limited,SOCIAL SERVICES DAY CARE,People's Services,Home Care Services,A56019
London Borough of Sutton,28/02/2024,50468567,"1,316.22",Alpenbest Limited,SOCIAL SERVICES DAY CARE,People's Services,Home Care Services,A56019
London Borough of Sutton,28/02/2024,50468568,"1,316.22",Alpenbest Limited,SOCIAL SERVICES DAY CARE,People's Services,Home Care Services,A56019
London Borough of Sutton,28/02/2024,50468568,"1,316.22",Alpenbest Limited,SOCIAL SERVICES DAY CARE,People's Services,Home Care Services,A56019
London Borough of Sutton,28/02/2024,50468569,716.52,Alpenbest Limited,SOCIAL SERVICES DAY CARE,People's Services,Home Care Services,A56019
London Borough of Sutton,28/02/2024,50468569,716.52,Alpenbest Limited,SOCIAL SERVICES DAY CARE,People's Services,Home Care Services,A56019
London Borough of Sutton,28/02/2024,50468571,732.20,Alpenbest Limited,SOCIAL SERVICES DAY CARE,People's Services,Home Care Services,A56019
London Borough of Sutton,28/02/2024,50468571,732.20,Alpenbest Limited,SOCIAL SERVICES DAY CARE,People's Services,Home Care Services,A56019
London Borough of Sutton,28/02/2024,50468573,911.53,Alpenbest Limited,SOCIAL SERVICES DAY CARE,People's Services,Home Care Services,A56019
London Borough of Sutton,28/02/2024,50468573,911.53,Alpenbest Limited,SOCIAL SERVICES DAY CARE,People's Services,Home Care Services,A56019
London Borough of Sutton,28/02/2024,50468574,512.31,Alpenbest Limited,SOCIAL SERVICES DAY CARE,People's Services,Home Care Services,A56019
London Borough of Sutton,28/02/2024,50468574,512.31,Alpenbest Limited,SOCIAL SERVICES DAY CARE,People's Services,Home Care Services,A56019
London Borough of Sutton,28/02/2024,50468577,946.47,Alpenbest Limited,SOCIAL SERVICES DAY CARE,People's Services,Home Care Services,A56019
London Borough of Sutton,28/02/2024,50468577,946.47,Alpenbest Limited,SOCIAL SERVICES DAY CARE,People's Services,Home Care Services,A56019
London Borough of Sutton,28/02/2024,50468578,723.49,Alpenbest Limited,SOCIAL SERVICES DAY CARE,People's Services,Home Care Services,A56019
London Borough of Sutton,28/02/2024,50468578,723.49,Alpenbest Limited,SOCIAL SERVICES DAY CARE,People's Services,Home Care Services,A56019
London Borough of Sutton,28/02/2024,50468579,"2,327.35",Alpenbest Limited,SOCIAL SERVICES DAY CARE,People's Services,Home Care Services,A56019
London Borough of Sutton,28/02/2024,50468579,"2,327.35",Alpenbest Limited,SOCIAL SERVICES DAY CARE,People's Services,Home Care Services,A56019
London Borough of Sutton,28/02/2024,50468580,964.06,Alpenbest Limited,SOCIAL SERVICES DAY CARE,People's Services,Home Care Services,A56019
London Borough of Sutton,28/02/2024,50468580,964.06,Alpenbest Limited,SOCIAL SERVICES DAY CARE,People's Services,Home Care Services,A56019
London Borough of Sutton,28/02/2024,50468581,"3,011.94",Alpenbest Limited,SOCIAL SERVICES DAY CARE,People's Services,Home Care Services,A56019
London Borough of Sutton,28/02/2024,50468581,"3,011.94",Alpenbest Limited,SOCIAL SERVICES DAY CARE,People's Services,Home Care Services,A56019
London Borough of Sutton,28/02/2024,50468581,"2,007.08",Alpenbest Limited,SOCIAL SERVICES DAY CARE,People's Services,Home Care Services,A56019
London Borough of Sutton,28/02/2024,50468581,"2,007.08",Alpenbest Limited,SOCIAL SERVICES DAY CARE,People's Services,Home Care Services,A56019
London Borough of Sutton,28/02/2024,50468582,"1,711.56",Alpenbest Limited,SOCIAL SERVICES DAY CARE,People's Services,Home Care Services,A56019
London Borough of Sutton,28/02/2024,50468582,"1,711.56",Alpenbest Limited,SOCIAL SERVICES DAY CARE,People's Services,Home Care Services,A56019
London Borough of Sutton,28/02/2024,50468583,"1,335.32",Alpenbest Limited,SOCIAL SERVICES DAY CARE,People's Services,Home Care Services,A56019
London Borough of Sutton,28/02/2024,50468583,"1,335.32",Alpenbest Limited,SOCIAL SERVICES DAY CARE,People's Services,Home Care Services,A56019
London Borough of Sutton,28/02/2024,50468604,669.40,Alpenbest Limited,SOCIAL SERVICES DAY CARE,People's Services,Home Care Services,A56019
London Borough of Sutton,28/02/2024,50468604,669.40,Alpenbest Limited,SOCIAL SERVICES DAY CARE,People's Services,Home Care Services,A56019
London Borough of Sutton,28/02/2024,50468622,"1,317.96",Alpenbest Limited,SOCIAL SERVICES DAY CARE,People's Services,Home Care Services,A56019
London Borough of Sutton,28/02/2024,50468622,"1,317.96",Alpenbest Limited,SOCIAL SERVICES DAY CARE,People's Services,Home Care Services,A56019
London Borough of Sutton,28/02/2024,50468623,739.17,Alpenbest Limited,SOCIAL SERVICES DAY CARE,People's Services,Home Care Services,A56019
London Borough of Sutton,28/02/2024,50468623,739.17,Alpenbest Limited,SOCIAL SERVICES DAY CARE,People's Services,Home Care Services,A56019
London Borough of Sutton,03/03/2024,50471411,585.20,Alpenbest Limited,SOCIAL SERVICES DAY CARE,People's Services,Home Care Services,A56019
London Borough of Sutton,03/03/2024,50471411,585.20,Alpenbest Limited,SOCIAL SERVICES DAY CARE,People's Services,Home Care Services,A56019
London Borough of Sutton,03/03/2024,50471422,752.54,Alpenbest Limited,SOCIAL SERVICES DAY CARE,People's Services,Home Care Services,A56019
London Borough of Sutton,03/03/2024,50471422,752.54,Alpenbest Limited,SOCIAL SERVICES DAY CARE,People's Services,Home Care Services,A56019
London Borough of Sutton,03/03/2024,50471422,146.30,Alpenbest Limited,SOCIAL SERVICES DAY CARE,People's Services,Home Care Services,A56019
London Borough of Sutton,03/03/2024,50471422,146.30,Alpenbest Limited,SOCIAL SERVICES DAY CARE,People's Services,Home Care Services,A56019
London Borough of Sutton,03/03/2024,50471490,"1,170.87",Alpenbest Limited,SOCIAL SERVICES DAY CARE,People's Services,Home Care Services,A56019
London Borough of Sutton,03/03/2024,50471490,"1,170.87",Alpenbest Limited,SOCIAL SERVICES DAY CARE,People's Services,Home Care Services,A56019
London Borough of Sutton,03/03/2024,50471490,402.43,Alpenbest Limited,SOCIAL SERVICES DAY CARE,People's Services,Home Care Services,A56019
London Borough of Sutton,03/03/2024,50471490,402.43,Alpenbest Limited,SOCIAL SERVICES DAY CARE,People's Services,Home Care Services,A56019
London Borough of Sutton,03/03/2024,50473053,668.85,Alpenbest Limited,SOCIAL SERVICES DAY CARE,People's Services,Home Care Services,A56019
London Borough of Sutton,03/03/2024,50473053,668.85,Alpenbest Limited,SOCIAL SERVICES DAY CARE,People's Services,Home Care Services,A56019
London Borough of Sutton,28/02/2024,50473080,658.99,Alpenbest Limited,SOCIAL SERVICES DAY CARE,People's Services,Home Care Services,A56019
London Borough of Sutton,28/02/2024,50473080,658.99,Alpenbest Limited,SOCIAL SERVICES DAY CARE,People's Services,Home Care Services,A56019
London Borough of Sutton,10/03/2024,50475107,655.33,Alpenbest Limited,SOCIAL SERVICES DAY CARE,People's Services,Home Care Services,A56019
London Borough of Sutton,10/03/2024,50475107,655.33,Alpenbest Limited,SOCIAL SERVICES DAY CARE,People's Services,Home Care Services,A56019
London Borough of Sutton,10/03/2024,50475124,578.09,Alpenbest Limited,SOCIAL SERVICES DAY CARE,People's Services,Home Care Services,A56019
London Borough of Sutton,10/03/2024,50475124,578.09,Alpenbest Limited,SOCIAL SERVICES DAY CARE,People's Services,Home Care Services,A56019
London Borough of Sutton,10/03/2024,50475135,752.54,Alpenbest Limited,SOCIAL SERVICES DAY CARE,People's Services,Home Care Services,A56019
London Borough of Sutton,10/03/2024,50475135,752.54,Alpenbest Limited,SOCIAL SERVICES DAY CARE,People's Services,Home Care Services,A56019
London Borough of Sutton,10/03/2024,50475135,146.30,Alpenbest Limited,SOCIAL SERVICES DAY CARE,People's Services,Home Care Services,A56019
London Borough of Sutton,10/03/2024,50475135,146.30,Alpenbest Limited,SOCIAL SERVICES DAY CARE,People's Services,Home Care Services,A56019
London Borough of Sutton,10/03/2024,50475138,651.38,Alpenbest Limited,SOCIAL SERVICES DAY CARE,People's Services,Home Care Services,A56019
London Borough of Sutton,10/03/2024,50475138,651.38,Alpenbest Limited,SOCIAL SERVICES DAY CARE,People's Services,Home Care Services,A56019
London Borough of Sutton,10/03/2024,50475153,"1,170.87",Alpenbest Limited,SOCIAL SERVICES DAY CARE,People's Services,Home Care Services,A56019
London Borough of Sutton,10/03/2024,50475153,"1,170.87",Alpenbest Limited,SOCIAL SERVICES DAY CARE,People's Services,Home Care Services,A56019
London Borough of Sutton,10/03/2024,50475153,402.43,Alpenbest Limited,SOCIAL SERVICES DAY CARE,People's Services,Home Care Services,A56019
London Borough of Sutton,10/03/2024,50475153,402.43,Alpenbest Limited,SOCIAL SERVICES DAY CARE,People's Services,Home Care Services,A56019
London Borough of Sutton,18/01/2024,50476181,"11,214.85",Alpenbest Limited,SOCIAL SERVICES DAY CARE,People's Services,Home Care Services,A56019
London Borough of Sutton,18/01/2024,50476181,"11,214.85",Alpenbest Limited,SOCIAL SERVICES DAY CARE,People's Services,Home Care Services,A56019
London Borough of Sutton,18/01/2024,50476181,"5,231.59",Alpenbest Limited,SOCIAL SERVICES DAY CARE,People's Services,Home Care Services,A56019
London Borough of Sutton,18/01/2024,50476181,"5,231.59",Alpenbest Limited,SOCIAL SERVICES DAY CARE,People's Services,Home Care Services,A56019
London Borough of Sutton,17/03/2024,50477363,"1,170.87",Alpenbest Limited,SOCIAL SERVICES DAY CARE,People's Services,Home Care Services,A56019
London Borough of Sutton,17/03/2024,50477363,"1,170.87",Alpenbest Limited,SOCIAL SERVICES DAY CARE,People's Services,Home Care Services,A56019
London Borough of Sutton,17/03/2024,50477363,402.43,Alpenbest Limited,SOCIAL SERVICES DAY CARE,People's Services,Home Care Services,A56019
London Borough of Sutton,17/03/2024,50477363,402.43,Alpenbest Limited,SOCIAL SERVICES DAY CARE,People's Services,Home Care Services,A56019
London Borough of Sutton,17/03/2024,50477436,656.66,Alpenbest Limited,SOCIAL SERVICES DAY CARE,People's Services,Home Care Services,A56019
London Borough of Sutton,17/03/2024,50477436,656.66,Alpenbest Limited,SOCIAL SERVICES DAY CARE,People's Services,Home Care Services,A56019
London Borough of Sutton,17/03/2024,50477447,585.20,Alpenbest Limited,SOCIAL SERVICES DAY CARE,People's Services,Home Care Services,A56019
London Borough of Sutton,17/03/2024,50477447,585.20,Alpenbest Limited,SOCIAL SERVICES DAY CARE,People's Services,Home Care Services,A56019
London Borough of Sutton,17/03/2024,50477451,752.54,Alpenbest Limited,SOCIAL SERVICES DAY CARE,People's Services,Home Care Services,A56019
London Borough of Sutton,17/03/2024,50477451,752.54,Alpenbest Limited,SOCIAL SERVICES DAY CARE,People's Services,Home Care Services,A56019
London Borough of Sutton,17/03/2024,50477451,146.30,Alpenbest Limited,SOCIAL SERVICES DAY CARE,People's Services,Home Care Services,A56019
London Borough of Sutton,17/03/2024,50477451,146.30,Alpenbest Limited,SOCIAL SERVICES DAY CARE,People's Services,Home Care Services,A56019
London Borough of Sutton,17/03/2024,50477456,656.66,Alpenbest Limited,SOCIAL SERVICES DAY CARE,People's Services,Home Care Services,A56019
London Borough of Sutton,17/03/2024,50477456,656.66,Alpenbest Limited,SOCIAL SERVICES DAY CARE,People's Services,Home Care Services,A56019
London Borough of Sutton,01/03/2024,20071801,785.73,Angel Lettings,ACCOMMODATION BED & BREAKFAST,Environment Housing and Neighbourhoods,Temporary Protection - Homeless Persons,A62028
London Borough of Sutton,10/03/2024,50472460,"3,327.50",Ansacare Fostering Agency Ltd,CHILDREN'S SERVICES - FOSTERING & ADOPTION SERVICES,People's Services,Foster Parents Support,A44110
London Borough of Sutton,10/03/2024,50472460,"3,327.50",Ansacare Fostering Agency Ltd,CHILDREN'S SERVICES - FOSTERING & ADOPTION SERVICES,People's Services,Foster Parents Support,A44110
London Borough of Sutton,29/02/2024,20071186,"9,047.86",Apetito Ltd,FOOD & DRINK,Health and Wellbeing,Catering Contract - Frozen Meals,A41001
London Borough of Sutton,29/02/2024,20071289,"8,168.00",Apex Housing Solutions Ltd,SOCIAL SERVICES DAY CARE,Environment Housing and Neighbourhoods,Bed & Breakfast,A56000
London Borough of Sutton,01/03/2024,20071213,"6,728.00",APL Properties,ACCOMMODATION BED & BREAKFAST,Environment Housing and Neighbourhoods,Bed & Breakfast,A56000
London Borough of Sutton,15/03/2024,50472475,-878.84,Aria Healthcare Group Ltd,SOCIAL SERVICES RESIDENTIAL,People's Services,Nursing Care - 3rd party top up payment,A56023
London Borough of Sutton,15/03/2024,50472475,-878.84,Aria Healthcare Group Ltd,SOCIAL SERVICES RESIDENTIAL,People's Services,Nursing Care - 3rd party top up payment,A56023
London Borough of Sutton,15/03/2024,50472475,"4,096.12",Aria Healthcare Group Ltd,SOCIAL SERVICES RESIDENTIAL,People's Services,Nursing Care - Ext Provider,A56025
London Borough of Sutton,15/03/2024,50472475,"4,096.12",Aria Healthcare Group Ltd,SOCIAL SERVICES RESIDENTIAL,People's Services,Nursing Care - Ext Provider,A56025
London Borough of Sutton,01/02/2024,50477718,"1,630.28",Ashlong House Ltd,SOCIAL SERVICES RESIDENTIAL,People's Services,Supported Living,A56088
London Borough of Sutton,01/02/2024,50477718,"1,630.28",Ashlong House Ltd,SOCIAL SERVICES RESIDENTIAL,People's Services,Supported Living,A56088
London Borough of Sutton,15/03/2024,50472558,-836.76,Ashton Care Homes Ltd.,SOCIAL SERVICES RESIDENTIAL,People's Services,Nursing Care - 3rd party top up payment,A56023
London Borough of Sutton,15/03/2024,50472558,-836.76,Ashton Care Homes Ltd.,SOCIAL SERVICES RESIDENTIAL,People's Services,Nursing Care - 3rd party top up payment,A56023
London Borough of Sutton,15/03/2024,50472558,"3,821.24",Ashton Care Homes Ltd.,SOCIAL SERVICES RESIDENTIAL,People's Services,Nursing Care - Ext Provider,A56025
London Borough of Sutton,15/03/2024,50472558,"3,821.24",Ashton Care Homes Ltd.,SOCIAL SERVICES RESIDENTIAL,People's Services,Nursing Care - Ext Provider,A56025
London Borough of Sutton,15/03/2024,50472611,"-1,990.00",Ashurst Lodge Healthcare Ltd,CHILDREN'S SERVICES - RESIDENTIAL,People's Services,Nursing Care - 3rd party top up payment,A56023
London Borough of Sutton,15/03/2024,50472611,"-1,990.00",Ashurst Lodge Healthcare Ltd,CHILDREN'S SERVICES - RESIDENTIAL,People's Services,Nursing Care - 3rd party top up payment,A56023
London Borough of Sutton,15/03/2024,50472611,"3,980.00",Ashurst Lodge Healthcare Ltd,CHILDREN'S SERVICES - RESIDENTIAL,People's Services,Residential Care - Ext Provider,A56114
London Borough of Sutton,15/03/2024,50472611,"3,980.00",Ashurst Lodge Healthcare Ltd,CHILDREN'S SERVICES - RESIDENTIAL,People's Services,Residential Care - Ext Provider,A56114
London Borough of Sutton,15/03/2024,50472512,-878.84,Aspen Place,SOCIAL SERVICES DAY CARE,People's Services,Nursing Care - 3rd party top up payment,A56023
London Borough of Sutton,15/03/2024,50472512,-878.84,Aspen Place,SOCIAL SERVICES DAY CARE,People's Services,Nursing Care - 3rd party top up payment,A56023
London Borough of Sutton,15/03/2024,50472512,"6,478.84",Aspen Place,SOCIAL SERVICES DAY CARE,People's Services,Nursing Care - Ext Provider,A56025
London Borough of Sutton,15/03/2024,50472512,"6,478.84",Aspen Place,SOCIAL SERVICES DAY CARE,People's Services,Nursing Care - Ext Provider,A56025
London Borough of Sutton,15/03/2024,50472627,"5,699.00",Aspens Charities,SOCIAL SERVICES RESIDENTIAL,People's Services,Residential Care - Ext Provider,A56114
London Borough of Sutton,15/03/2024,50472627,"5,699.00",Aspens Charities,SOCIAL SERVICES RESIDENTIAL,People's Services,Residential Care - Ext Provider,A56114
London Borough of Sutton,18/03/2024,50473545,"8,475.49",Aspens Charities,SOCIAL SERVICES RESIDENTIAL,People's Services,Supported Living,A56088
London Borough of Sutton,18/03/2024,50473545,"8,475.49",Aspens Charities,SOCIAL SERVICES RESIDENTIAL,People's Services,Supported Living,A56088
London Borough of Sutton,18/03/2024,50473545,"1,598.67",Aspens Charities,SOCIAL SERVICES RESIDENTIAL,People's Services,Supported Living,A56088
London Borough of Sutton,18/03/2024,50473545,"1,598.67",Aspens Charities,SOCIAL SERVICES RESIDENTIAL,People's Services,Supported Living,A56088
London Borough of Sutton,18/03/2024,50473545,654.72,Aspens Charities,SOCIAL SERVICES RESIDENTIAL,People's Services,Supported Living,A56088
London Borough of Sutton,18/03/2024,50473545,654.72,Aspens Charities,SOCIAL SERVICES RESIDENTIAL,People's Services,Supported Living,A56088
London Borough of Sutton,29/02/2024,50467433,"8,489.46",Aspirations Care Ltd,SOCIAL SERVICES DAY CARE,People's Services,Home Care Services,A56019
London Borough of Sutton,29/02/2024,50467433,"8,489.46",Aspirations Care Ltd,SOCIAL SERVICES DAY CARE,People's Services,Home Care Services,A56019
London Borough of Sutton,29/02/2024,50467433,"2,320.00",Aspirations Care Ltd,SOCIAL SERVICES DAY CARE,People's Services,Home Care Services,A56019
London Borough of Sutton,29/02/2024,50467433,"2,320.00",Aspirations Care Ltd,SOCIAL SERVICES DAY CARE,People's Services,Home Care Services,A56019
London Borough of Sutton,15/03/2024,50473903,590.70,Aspire Care Services Ltd,SOCIAL SERVICES DAY CARE,People's Services,Home Care Services,A56019
London Borough of Sutton,15/03/2024,50473903,590.70,Aspire Care Services Ltd,SOCIAL SERVICES DAY CARE,People's Services,Home Care Services,A56019
London Borough of Sutton,23/02/2024,20070458,677.00,ASSOCIATON OF ACCOUNTING TECHNICIANS,SUBSCRIPTIONS & PUBLICATIONS,Health and Wellbeing,Examination Fees,A44200
London Borough of Sutton,15/03/2024,50472592,-878.84,Aster Grove,SOCIAL SERVICES RESIDENTIAL,People's Services,Nursing Care - 3rd party top up payment,A56023
London Borough of Sutton,15/03/2024,50472592,-878.84,Aster Grove,SOCIAL SERVICES RESIDENTIAL,People's Services,Nursing Care - 3rd party top up payment,A56023
London Borough of Sutton,15/03/2024,50472592,"4,560.00",Aster Grove,SOCIAL SERVICES RESIDENTIAL,People's Services,Nursing Care - Ext Provider,A56025
London Borough of Sutton,15/03/2024,50472592,"4,560.00",Aster Grove,SOCIAL SERVICES RESIDENTIAL,People's Services,Nursing Care - Ext Provider,A56025
London Borough of Sutton,04/03/2024,50469920,"22,744.29",Athena Housing and Support Ltd,CHILDREN'S SERVICES - RESIDENTIAL,People's Services,Residential Care-Children,A56115
London Borough of Sutton,04/03/2024,50469920,"22,744.29",Athena Housing and Support Ltd,CHILDREN'S SERVICES - RESIDENTIAL,People's Services,Residential Care-Children,A56115
London Borough of Sutton,06/03/2024,50476012,"24,312.86",Athena Housing and Support Ltd,CHILDREN'S SERVICES - RESIDENTIAL,People's Services,Residential Care-Children,A56115
London Borough of Sutton,06/03/2024,50476012,"24,312.86",Athena Housing and Support Ltd,CHILDREN'S SERVICES - RESIDENTIAL,People's Services,Residential Care-Children,A56115
London Borough of Sutton,17/08/2023,50471012,564.40,Atul Kotecha,CHILDREN'S SERVICES - SEN SERVICES,People's Services,Equipment,A61013
London Borough of Sutton,15/03/2024,50472620,"7,040.00",Autism & Aspergers Care Services,SOCIAL SERVICES RESIDENTIAL,People's Services,Residential Care - Ext Provider,A56114
London Borough of Sutton,15/03/2024,50472620,"7,040.00",Autism & Aspergers Care Services,SOCIAL SERVICES RESIDENTIAL,People's Services,Residential Care - Ext Provider,A56114
London Borough of Sutton,14/03/2024,50472452,"39,005.00",Avance Ltd  ,CHILDREN'S SERVICES - FOSTERING & ADOPTION SERVICES,People's Services,Residential Care-Children,A56115
London Borough of Sutton,14/03/2024,50472452,"39,005.00",Avance Ltd  ,CHILDREN'S SERVICES - FOSTERING & ADOPTION SERVICES,People's Services,Residential Care-Children,A56115
London Borough of Sutton,27/02/2024,50473076,"1,045.99",Avant Healthcare Services Ltd.,SOCIAL SERVICES DAY CARE,People's Services,Home Care Services,A56019
London Borough of Sutton,27/02/2024,50473076,"1,045.99",Avant Healthcare Services Ltd.,SOCIAL SERVICES DAY CARE,People's Services,Home Care Services,A56019
London Borough of Sutton,01/03/2024,20071032,"10,635.76",Avenue Primary Academy,SCHOOL FUNDS,People's Services,Payments to Contractors,C14000
London Borough of Sutton,01/03/2024,20071048,"10,345.00",Avenue Primary Academy,SCHOOL FUNDS,People's Services,Payments to Contractors,C14000
London Borough of Sutton,05/03/2024,50469021,"1,345.50",Avenue Primary Academy,SCHOOL FUNDS,People's Services,Equipment,A61013
London Borough of Sutton,12/03/2024,50469537,"4,816.74",Avenue Primary Academy,SCHOOL FUNDS,People's Services,Pupil Growth,A51014
London Borough of Sutton,14/03/2024,50471043,"1,463.90",Avenue Primary Academy,SCHOOL FUNDS,People's Services,Payment - school supplementary grant,A51062
London Borough of Sutton,15/03/2024,50471817,"18,712.51",Avenue Primary Academy,SCHOOL FUNDS,People's Services,Payment - Nursery Funding,A51056
London Borough of Sutton,21/03/2024,50475719,"2,557.80",Avenue Primary Academy,SCHOOL FUNDS,People's Services,Payment - school supplementary grant,A51062
London Borough of Sutton,25/03/2024,50477128,"1,255.80",Avenue Primary Academy,SCHOOL FUNDS,People's Services,Payment - school supplementary grant,A51062
London Borough of Sutton,26/03/2024,50477186,"138,660.99",Avenue Primary Academy,SCHOOL FUNDS,People's Services,Top-up Funding,A51016
London Borough of Sutton,26/03/2024,50477186,"329,261.44",Avenue Primary Academy,SCHOOL FUNDS,People's Services,Top-up Funding,A51016
London Borough of Sutton,25/03/2024,50477758,"4,574.10",Avenue Primary Academy,SCHOOL FUNDS,People's Services,Top-up Funding,A51016
London Borough of Sutton,18/03/2024,50473516,"14,136.00",Ayai Care Limited,SOCIAL SERVICES DAY CARE,People's Services,Supported Living,A56088
London Borough of Sutton,18/03/2024,50473516,"14,136.00",Ayai Care Limited,SOCIAL SERVICES DAY CARE,People's Services,Supported Living,A56088
London Borough of Sutton,18/03/2024,50473531,"4,845.30",Ayai Care Limited,SOCIAL SERVICES DAY CARE,People's Services,Supported Living,A56088
London Borough of Sutton,18/03/2024,50473531,"4,845.30",Ayai Care Limited,SOCIAL SERVICES DAY CARE,People's Services,Supported Living,A56088
London Borough of Sutton,18/03/2024,50473531,"2,421.10",Ayai Care Limited,SOCIAL SERVICES DAY CARE,People's Services,Supported Living,A56088
London Borough of Sutton,18/03/2024,50473531,"2,421.10",Ayai Care Limited,SOCIAL SERVICES DAY CARE,People's Services,Supported Living,A56088
London Borough of Sutton,18/03/2024,50473531,417.88,Ayai Care Limited,SOCIAL SERVICES DAY CARE,People's Services,Supported Living,A56088
London Borough of Sutton,18/03/2024,50473531,417.88,Ayai Care Limited,SOCIAL SERVICES DAY CARE,People's Services,Supported Living,A56088
London Borough of Sutton,18/03/2024,50473594,"13,604.57",Ayai Care Limited,SOCIAL SERVICES DAY CARE,People's Services,Supported Living,A56088
London Borough of Sutton,18/03/2024,50473594,"13,604.57",Ayai Care Limited,SOCIAL SERVICES DAY CARE,People's Services,Supported Living,A56088
London Borough of Sutton,29/02/2024,50476004,"22,687.32",Ayai Care Limited,SOCIAL SERVICES DAY CARE,People's Services,Residential Care-Children,A56115
London Borough of Sutton,29/02/2024,50476004,"22,687.32",Ayai Care Limited,SOCIAL SERVICES DAY CARE,People's Services,Residential Care-Children,A56115
London Borough of Sutton,29/02/2024,50476031,"26,899.95",Ayai Care Limited,SOCIAL SERVICES DAY CARE,People's Services,Residential Care-Children,A56115
London Borough of Sutton,29/02/2024,50476031,"26,899.95",Ayai Care Limited,SOCIAL SERVICES DAY CARE,People's Services,Residential Care-Children,A56115
London Borough of Sutton,31/01/2024,50476032,"28,755.12",Ayai Care Limited,SOCIAL SERVICES DAY CARE,People's Services,Residential Care-Children,A56115
London Borough of Sutton,31/01/2024,50476032,"28,755.12",Ayai Care Limited,SOCIAL SERVICES DAY CARE,People's Services,Residential Care-Children,A56115
London Borough of Sutton,31/01/2024,50476034,"6,720.00",Ayai Care Limited,SOCIAL SERVICES DAY CARE,People's Services,Approved Lodgings,A61000
London Borough of Sutton,31/01/2024,50476034,"6,720.00",Ayai Care Limited,SOCIAL SERVICES DAY CARE,People's Services,Approved Lodgings,A61000
London Borough of Sutton,29/02/2024,50476056,"45,716.43",Ayai Care Limited,SOCIAL SERVICES DAY CARE,People's Services,Residential Care-Children,A56115
London Borough of Sutton,29/02/2024,50476056,"45,716.43",Ayai Care Limited,SOCIAL SERVICES DAY CARE,People's Services,Residential Care-Children,A56115
London Borough of Sutton,31/01/2024,50476057,"48,869.29",Ayai Care Limited,SOCIAL SERVICES DAY CARE,People's Services,Residential Care-Children,A56115
London Borough of Sutton,31/01/2024,50476057,"48,869.29",Ayai Care Limited,SOCIAL SERVICES DAY CARE,People's Services,Residential Care-Children,A56115
London Borough of Sutton,31/01/2024,50476069,"24,251.96",Ayai Care Limited,SOCIAL SERVICES DAY CARE,People's Services,Residential Care-Children,A56115
London Borough of Sutton,31/01/2024,50476069,"24,251.96",Ayai Care Limited,SOCIAL SERVICES DAY CARE,People's Services,Residential Care-Children,A56115
London Borough of Sutton,20/03/2024,50476483,"1,075.00",Ayai Care Limited,SOCIAL SERVICES DAY CARE,People's Services,One to One Care,A56108
London Borough of Sutton,20/03/2024,50476483,"1,075.00",Ayai Care Limited,SOCIAL SERVICES DAY CARE,People's Services,One to One Care,A56108
London Borough of Sutton,23/02/2024,50469848,"5,385.35",Back on Track Housing Ltd,SOCIAL SERVICES - OTHER,People's Services,Approved Lodgings,A61000
London Borough of Sutton,23/02/2024,50469848,"5,385.35",Back on Track Housing Ltd,SOCIAL SERVICES - OTHER,People's Services,Approved Lodgings,A61000
London Borough of Sutton,23/02/2024,50469848,258.92,Back on Track Housing Ltd,SOCIAL SERVICES - OTHER,People's Services,Approved Lodgings,A61000
London Borough of Sutton,23/02/2024,50469848,258.92,Back on Track Housing Ltd,SOCIAL SERVICES - OTHER,People's Services,Approved Lodgings,A61000
London Borough of Sutton,23/02/2024,50469934,"5,385.47",Back on Track Housing Ltd,SOCIAL SERVICES - OTHER,People's Services,Approved Lodgings,A61000
London Borough of Sutton,23/02/2024,50469934,"5,385.47",Back on Track Housing Ltd,SOCIAL SERVICES - OTHER,People's Services,Approved Lodgings,A61000
London Borough of Sutton,23/02/2024,50469934,258.92,Back on Track Housing Ltd,SOCIAL SERVICES - OTHER,People's Services,Approved Lodgings,A61000
London Borough of Sutton,23/02/2024,50469934,258.92,Back on Track Housing Ltd,SOCIAL SERVICES - OTHER,People's Services,Approved Lodgings,A61000
London Borough of Sutton,23/02/2024,50469935,"5,800.00",Back on Track Housing Ltd,SOCIAL SERVICES - OTHER,People's Services,Approved Lodgings,A61000
London Borough of Sutton,23/02/2024,50469935,"5,800.00",Back on Track Housing Ltd,SOCIAL SERVICES - OTHER,People's Services,Approved Lodgings,A61000
London Borough of Sutton,23/02/2024,50469935,258.92,Back on Track Housing Ltd,SOCIAL SERVICES - OTHER,People's Services,Approved Lodgings,A61000
London Borough of Sutton,23/02/2024,50469935,258.92,Back on Track Housing Ltd,SOCIAL SERVICES - OTHER,People's Services,Approved Lodgings,A61000
London Borough of Sutton,28/02/2024,20070905,"5,015.00",Bags of Taste Limited,MANAGEMENT & TRAINING SERVICES,Health and Wellbeing,Provider Contract Payments,A44290
London Borough of Sutton,28/02/2024,20070905,"5,015.00",Bags of Taste Limited,MANAGEMENT & TRAINING SERVICES,Health and Wellbeing,Provider Contract Payments,A44290
London Borough of Sutton,01/03/2024,20070916,"4,088.00",Balmont Ltd,CONSTRUCTION INDUSTRY,Resources,FM - Responsive Repairs Contract - Mitie,A56098
London Borough of Sutton,25/03/2024,20073029,"243,607.00",Bandon Hill Cemetery,SUNDRY SUPPLIER - FINANCE,Environment Housing and Neighbourhoods,Idverde - Contract Payment,A56100
London Borough of Sutton,25/03/2024,20073030,"186,918.09",Bandon Hill Cemetery,SUNDRY SUPPLIER - FINANCE,Environment Housing and Neighbourhoods,Idverde - Contract Payment,A56100
London Borough of Sutton,14/03/2024,50471044,832.97,Bandon Hill Primary School (Academy),SCHOOL FUNDS,People's Services,Payment - school supplementary grant,A51062
London Borough of Sutton,15/03/2024,50471818,"10,647.50",Bandon Hill Primary School (Academy),SCHOOL FUNDS,People's Services,Payment - Nursery Funding,A51056
London Borough of Sutton,21/03/2024,50475720,"2,322.60",Bandon Hill Primary School (Academy),SCHOOL FUNDS,People's Services,Payment - school supplementary grant,A51062
London Borough of Sutton,25/03/2024,50476552,821.10,Bandon Hill Primary School (Academy),SCHOOL FUNDS,People's Services,Payment - school supplementary grant,A51062
London Borough of Sutton,25/03/2024,50477130,917.70,Bandon Hill Primary School (Academy),SCHOOL FUNDS,People's Services,Payment - school supplementary grant,A51062
London Borough of Sutton,26/03/2024,50477187,"56,111.51",Bandon Hill Primary School (Academy),SCHOOL FUNDS,People's Services,Top-up Funding,A51016
London Borough of Sutton,26/03/2024,50477234,"109,649.95",Bandon Hill Primary School (Academy),SCHOOL FUNDS,People's Services,Top-up Funding,A51016
London Borough of Sutton,26/03/2024,50477234,"392,960.16",Bandon Hill Primary School (Academy),SCHOOL FUNDS,People's Services,Top-up Funding,A51016
London Borough of Sutton,25/03/2024,50477779,713.68,Bandon Hill Primary School (Academy),SCHOOL FUNDS,People's Services,Top-up Funding,A51016
London Borough of Sutton,29/02/2024,50469887,"4,466.00",Banya,SOCIAL SERVICES RESIDENTIAL,People's Services,Foster Parents Support,A44110
London Borough of Sutton,29/02/2024,50469887,"4,466.00",Banya,SOCIAL SERVICES RESIDENTIAL,People's Services,Foster Parents Support,A44110
London Borough of Sutton,15/03/2024,50472484,"10,169.43",Barchester Healthcare Homes Ltd,SOCIAL SERVICES RESIDENTIAL,People's Services,Nursing Care - 3rd party top up payment,A56023
London Borough of Sutton,15/03/2024,50472484,"10,169.43",Barchester Healthcare Homes Ltd,SOCIAL SERVICES RESIDENTIAL,People's Services,Nursing Care - 3rd party top up payment,A56023
London Borough of Sutton,15/03/2024,50472484,"1,379.18",Barchester Healthcare Homes Ltd,SOCIAL SERVICES RESIDENTIAL,People's Services,Nursing Care - Ext Provider,A56025
London Borough of Sutton,15/03/2024,50472484,"1,379.18",Barchester Healthcare Homes Ltd,SOCIAL SERVICES RESIDENTIAL,People's Services,Nursing Care - Ext Provider,A56025
London Borough of Sutton,19/03/2024,20072469,"33,750.00",Barnardo's,CHILDREN'S SERVICES - RESIDENTIAL,People's Services,Play Groups,A56111
London Borough of Sutton,19/03/2024,20072469,"33,750.00",Barnardo's,CHILDREN'S SERVICES - RESIDENTIAL,People's Services,Play Groups,A56111
London Borough of Sutton,01/03/2024,20070980,"10,670.00",Barrow Hedges Primary School Academy,SCHOOL FUNDS,People's Services,Payments to Contractors,C14000
London Borough of Sutton,14/03/2024,50471045,"1,801.73",Barrow Hedges Primary School Academy,SCHOOL FUNDS,People's Services,Payment - school supplementary grant,A51062
London Borough of Sutton,15/03/2024,50471819,"22,051.58",Barrow Hedges Primary School Academy,SCHOOL FUNDS,People's Services,Payment - Nursery Funding,A51056
London Borough of Sutton,21/03/2024,50475721,"3,229.80",Barrow Hedges Primary School Academy,SCHOOL FUNDS,People's Services,Payment - school supplementary grant,A51062
London Borough of Sutton,25/03/2024,50476553,"1,110.90",Barrow Hedges Primary School Academy,SCHOOL FUNDS,People's Services,Payment - school supplementary grant,A51062
London Borough of Sutton,26/03/2024,50477188,"96,864.97",Barrow Hedges Primary School Academy,SCHOOL FUNDS,People's Services,Top-up Funding,A51016
London Borough of Sutton,29/02/2024,20070882,"1,440.00",BBFI CIC,CAR PARKS,Environment Housing and Neighbourhoods,Provider Contract Payments,A44290
London Borough of Sutton,29/02/2024,20070882,"1,440.00",BBFI CIC,CAR PARKS,Environment Housing and Neighbourhoods,Provider Contract Payments,A44290
London Borough of Sutton,29/01/2024,20069732,"1,650.00",BCS Learning & Development Ltd,ACADEMIC INSTNS - OTHER,Health and Wellbeing,Registration & Licence Fees Payable,A44267
London Borough of Sutton,26/02/2024,20071767,500.00,BCS Learning & Development Ltd,ACADEMIC INSTNS - OTHER,Health and Wellbeing,Registration & Licence Fees Payable,A44267
London Borough of Sutton,01/03/2024,20070965,"2,410.00",Beddington Infants School,SCHOOL FUNDS,People's Services,Payments to Contractors,C14000
London Borough of Sutton,05/03/2024,50468082,"2,300.00",Beddington Infants School,SCHOOL FUNDS,People's Services,Predictable Needs funding,A56125
London Borough of Sutton,12/03/2024,50469476,"108,196.29",Beddington Infants School,SCHOOL FUNDS,People's Services,Payments to Schools,A51013
London Borough of Sutton,14/03/2024,50471046,"1,004.86",Beddington Infants School,SCHOOL FUNDS,People's Services,Payment - school supplementary grant,A51062
London Borough of Sutton,15/03/2024,50471820,"12,844.74",Beddington Infants School,SCHOOL FUNDS,People's Services,Payments to Schools,A51013
London Borough of Sutton,21/03/2024,50475722,"2,135.70",Beddington Infants School,SCHOOL FUNDS,People's Services,Payment - school supplementary grant,A51062
London Borough of Sutton,25/03/2024,50476509,"5,054.50",Beddington Infants School,SCHOOL FUNDS,Non-Service Cost Centres,Recharge-Teaching Staff,A10600
London Borough of Sutton,25/03/2024,50476510,"5,342.04",Beddington Infants School,SCHOOL FUNDS,Non-Service Cost Centres,Recharge-Teaching Staff,A10600
London Borough of Sutton,26/03/2024,50477189,"21,129.06",Beddington Infants School,SCHOOL FUNDS,People's Services,Top-up Funding,A51016
London Borough of Sutton,12/03/2024,50469437,858.60,Beddington Park Primary (Academy),SCHOOL FUNDS,People's Services,Payment - Deprivation Pupil Premium,A51030
London Borough of Sutton,14/03/2024,50471047,"1,046.59",Beddington Park Primary (Academy),SCHOOL FUNDS,People's Services,Payment - school supplementary grant,A51062
London Borough of Sutton,15/03/2024,50471821,"13,378.18",Beddington Park Primary (Academy),SCHOOL FUNDS,People's Services,Payment - Nursery Funding,A51056
London Borough of Sutton,21/03/2024,50475481,"2,300.00",Beddington Park Primary (Academy),SCHOOL FUNDS,People's Services,Predictable Needs funding,A56125
London Borough of Sutton,21/03/2024,50475723,"2,053.80",Beddington Park Primary (Academy),SCHOOL FUNDS,People's Services,Payment - school supplementary grant,A51062
London Borough of Sutton,25/03/2024,50476555,724.50,Beddington Park Primary (Academy),SCHOOL FUNDS,People's Services,Payment - school supplementary grant,A51062
London Borough of Sutton,26/03/2024,50477190,"36,442.56",Beddington Park Primary (Academy),SCHOOL FUNDS,People's Services,Top-up Funding,A51016
London Borough of Sutton,22/02/2024,50468982,"3,155.00",Bedelsford School,SCHOOL FUNDS,People's Services,Equipment,A61013
London Borough of Sutton,22/02/2024,50468983,"3,793.00",Bedelsford School,SCHOOL FUNDS,People's Services,Equipment,A61013
London Borough of Sutton,18/03/2024,50473633,813.75,Beechcroft Care Limited,SOCIAL SERVICES RESIDENTIAL,People's Services,One to One Care,A56108
London Borough of Sutton,18/03/2024,50473633,813.75,Beechcroft Care Limited,SOCIAL SERVICES RESIDENTIAL,People's Services,One to One Care,A56108
London Borough of Sutton,18/03/2024,50473633,"6,620.71",Beechcroft Care Limited,SOCIAL SERVICES RESIDENTIAL,People's Services,Supported Living,A56088
London Borough of Sutton,18/03/2024,50473633,"6,620.71",Beechcroft Care Limited,SOCIAL SERVICES RESIDENTIAL,People's Services,Supported Living,A56088
London Borough of Sutton,17/01/2024,20067201,"1,617.92",Beeches Tree Care,AGRICULTURAL & ESTATE SERVICES,Environment Housing and Neighbourhoods,Purchases and Repairs Fixtures & Fittings,A25005
London Borough of Sutton,06/03/2024,20071367,"7,150.00",Beeches Tree Care,AGRICULTURAL & ESTATE SERVICES,Environment Housing and Neighbourhoods,Purchases and Repairs Fixtures & Fittings,A25005
London Borough of Sutton,07/03/2024,20071478,"4,553.68",Beeches Tree Care,AGRICULTURAL & ESTATE SERVICES,Environment Housing and Neighbourhoods,Maintenance of trees,A28003
London Borough of Sutton,11/03/2024,20071673,"2,972.00",Beeches Tree Care,AGRICULTURAL & ESTATE SERVICES,Environment Housing and Neighbourhoods,Plants and Shrubs,A28004
London Borough of Sutton,19/03/2024,20072390,"2,581.28",Beeches Tree Care,AGRICULTURAL & ESTATE SERVICES,Environment Housing and Neighbourhoods,Plants and Shrubs,A28004
London Borough of Sutton,25/03/2024,20072799,"1,816.68",Beeches Tree Care,AGRICULTURAL & ESTATE SERVICES,Environment Housing and Neighbourhoods,Purchases and Repairs Fixtures & Fittings,A25005
London Borough of Sutton,26/03/2024,20072898,"1,200.00",Beeches Tree Care,AGRICULTURAL & ESTATE SERVICES,Environment Housing and Neighbourhoods,Equipment And Materials Repairs & Maintenance,A40051
London Borough of Sutton,12/03/2024,50469460,858.92,Belmont Village Playgroup,ACADEMIC INSTNS - OTHER,People's Services,Disability Access Fund,A56093
London Borough of Sutton,15/03/2024,50472536,"-2,550.00",Bespoke Care Support Ltd,SOCIAL SERVICES - OTHER,People's Services,Nursing Care - 3rd party top up payment,A56023
London Borough of Sutton,15/03/2024,50472536,"-2,550.00",Bespoke Care Support Ltd,SOCIAL SERVICES - OTHER,People's Services,Nursing Care - 3rd party top up payment,A56023
London Borough of Sutton,18/03/2024,50473592,"5,646.43",Bespoke Care Support Ltd,SOCIAL SERVICES - OTHER,People's Services,Supported Living,A56088
London Borough of Sutton,18/03/2024,50473592,"5,646.43",Bespoke Care Support Ltd,SOCIAL SERVICES - OTHER,People's Services,Supported Living,A56088
London Borough of Sutton,18/03/2024,50473631,"3,985.71",Bespoke Care Support Ltd,SOCIAL SERVICES - OTHER,People's Services,Supported Living,A56088
London Borough of Sutton,18/03/2024,50473631,"3,985.71",Bespoke Care Support Ltd,SOCIAL SERVICES - OTHER,People's Services,Supported Living,A56088
London Borough of Sutton,25/02/2024,50468650,"1,024.49",Best at Home Domiciliary Care Services Ltd,SOCIAL SERVICES DAY CARE,People's Services,Home Care Services,A56019
London Borough of Sutton,25/02/2024,50468650,"1,024.49",Best at Home Domiciliary Care Services Ltd,SOCIAL SERVICES DAY CARE,People's Services,Home Care Services,A56019
London Borough of Sutton,25/02/2024,50468657,731.64,Best at Home Domiciliary Care Services Ltd,SOCIAL SERVICES DAY CARE,People's Services,Home Care Services,A56019
London Borough of Sutton,25/02/2024,50468657,731.64,Best at Home Domiciliary Care Services Ltd,SOCIAL SERVICES DAY CARE,People's Services,Home Care Services,A56019
London Borough of Sutton,25/02/2024,50468674,"3,512.88",Best at Home Domiciliary Care Services Ltd,SOCIAL SERVICES DAY CARE,People's Services,Home Care Services,A56019
London Borough of Sutton,25/02/2024,50468674,"3,512.88",Best at Home Domiciliary Care Services Ltd,SOCIAL SERVICES DAY CARE,People's Services,Home Care Services,A56019
London Borough of Sutton,25/02/2024,50468691,742.04,Best at Home Domiciliary Care Services Ltd,SOCIAL SERVICES DAY CARE,People's Services,Home Care Services,A56019
London Borough of Sutton,25/02/2024,50468691,742.04,Best at Home Domiciliary Care Services Ltd,SOCIAL SERVICES DAY CARE,People's Services,Home Care Services,A56019
London Borough of Sutton,25/02/2024,50468738,773.47,Best at Home Domiciliary Care Services Ltd,SOCIAL SERVICES DAY CARE,People's Services,Home Care Services,A56019
London Borough of Sutton,25/02/2024,50468738,773.47,Best at Home Domiciliary Care Services Ltd,SOCIAL SERVICES DAY CARE,People's Services,Home Care Services,A56019
London Borough of Sutton,03/03/2024,50470665,"1,024.49",Best at Home Domiciliary Care Services Ltd,SOCIAL SERVICES DAY CARE,People's Services,Home Care Services,A56019
London Borough of Sutton,03/03/2024,50470665,"1,024.49",Best at Home Domiciliary Care Services Ltd,SOCIAL SERVICES DAY CARE,People's Services,Home Care Services,A56019
London Borough of Sutton,03/03/2024,50470670,731.64,Best at Home Domiciliary Care Services Ltd,SOCIAL SERVICES DAY CARE,People's Services,Home Care Services,A56019
London Borough of Sutton,03/03/2024,50470670,731.64,Best at Home Domiciliary Care Services Ltd,SOCIAL SERVICES DAY CARE,People's Services,Home Care Services,A56019
London Borough of Sutton,03/03/2024,50470684,"3,512.88",Best at Home Domiciliary Care Services Ltd,SOCIAL SERVICES DAY CARE,People's Services,Home Care Services,A56019
London Borough of Sutton,03/03/2024,50470684,"3,512.88",Best at Home Domiciliary Care Services Ltd,SOCIAL SERVICES DAY CARE,People's Services,Home Care Services,A56019
London Borough of Sutton,03/03/2024,50470686,742.04,Best at Home Domiciliary Care Services Ltd,SOCIAL SERVICES DAY CARE,People's Services,Home Care Services,A56019
London Borough of Sutton,03/03/2024,50470686,742.04,Best at Home Domiciliary Care Services Ltd,SOCIAL SERVICES DAY CARE,People's Services,Home Care Services,A56019
London Borough of Sutton,03/03/2024,50470697,773.47,Best at Home Domiciliary Care Services Ltd,SOCIAL SERVICES DAY CARE,People's Services,Home Care Services,A56019
London Borough of Sutton,03/03/2024,50470697,773.47,Best at Home Domiciliary Care Services Ltd,SOCIAL SERVICES DAY CARE,People's Services,Home Care Services,A56019
London Borough of Sutton,10/03/2024,50473175,"1,024.49",Best at Home Domiciliary Care Services Ltd,SOCIAL SERVICES DAY CARE,People's Services,Home Care Services,A56019
London Borough of Sutton,10/03/2024,50473175,"1,024.49",Best at Home Domiciliary Care Services Ltd,SOCIAL SERVICES DAY CARE,People's Services,Home Care Services,A56019
London Borough of Sutton,10/03/2024,50473234,731.64,Best at Home Domiciliary Care Services Ltd,SOCIAL SERVICES DAY CARE,People's Services,Home Care Services,A56019
London Borough of Sutton,10/03/2024,50473234,731.64,Best at Home Domiciliary Care Services Ltd,SOCIAL SERVICES DAY CARE,People's Services,Home Care Services,A56019
London Borough of Sutton,10/03/2024,50473256,"3,512.88",Best at Home Domiciliary Care Services Ltd,SOCIAL SERVICES DAY CARE,People's Services,Home Care Services,A56019
London Borough of Sutton,10/03/2024,50473256,"3,512.88",Best at Home Domiciliary Care Services Ltd,SOCIAL SERVICES DAY CARE,People's Services,Home Care Services,A56019
London Borough of Sutton,10/03/2024,50473267,742.04,Best at Home Domiciliary Care Services Ltd,SOCIAL SERVICES DAY CARE,People's Services,Home Care Services,A56019
London Borough of Sutton,10/03/2024,50473267,742.04,Best at Home Domiciliary Care Services Ltd,SOCIAL SERVICES DAY CARE,People's Services,Home Care Services,A56019
London Borough of Sutton,10/03/2024,50473310,773.47,Best at Home Domiciliary Care Services Ltd,SOCIAL SERVICES DAY CARE,People's Services,Home Care Services,A56019
London Borough of Sutton,10/03/2024,50473310,773.47,Best at Home Domiciliary Care Services Ltd,SOCIAL SERVICES DAY CARE,People's Services,Home Care Services,A56019
London Borough of Sutton,29/02/2024,20071012,"5,983.50",Bestcourt UK Ltd,ACCOMMODATION BED & BREAKFAST,Environment Housing and Neighbourhoods,Bed & Breakfast,A56000
London Borough of Sutton,20/02/2024,20071164,"2,035.50",Better Families Social Work Services Ltd,SUNDRY SUPPLIER - SOCIAL SERVICES,People's Services,One to One Care,A56108
London Borough of Sutton,20/02/2024,20071164,"2,035.50",Better Families Social Work Services Ltd,SUNDRY SUPPLIER - SOCIAL SERVICES,People's Services,One to One Care,A56108
London Borough of Sutton,18/03/2024,50473566,"4,650.00",BETTER LIFE SUPPORTED LIVING LIMITED,SOCIAL SERVICES RESIDENTIAL,People's Services,One to One Care,A56108
London Borough of Sutton,18/03/2024,50473566,"4,650.00",BETTER LIFE SUPPORTED LIVING LIMITED,SOCIAL SERVICES RESIDENTIAL,People's Services,One to One Care,A56108
London Borough of Sutton,04/01/2024,50469027,"21,783.33",Beyond Autism,CHILDREN'S SERVICES - RESIDENTIAL,People's Services,Independent School Fees,A56002
London Borough of Sutton,04/01/2024,50469031,"21,783.33",Beyond Autism,CHILDREN'S SERVICES - RESIDENTIAL,People's Services,Independent School Fees,A56002
London Borough of Sutton,04/01/2024,50469032,"21,783.33",Beyond Autism,CHILDREN'S SERVICES - RESIDENTIAL,People's Services,Independent School Fees,A56002
London Borough of Sutton,04/01/2024,50469033,"23,560.00",Beyond Autism,CHILDREN'S SERVICES - RESIDENTIAL,People's Services,Independent School Fees,A56002
London Borough of Sutton,04/01/2024,50469034,"23,560.00",Beyond Autism,CHILDREN'S SERVICES - RESIDENTIAL,People's Services,Independent School Fees,A56002
London Borough of Sutton,04/01/2024,50469035,"22,872.67",Beyond Autism,CHILDREN'S SERVICES - RESIDENTIAL,People's Services,Independent School Fees,A56002
London Borough of Sutton,04/01/2024,50469036,"22,872.67",Beyond Autism,CHILDREN'S SERVICES - RESIDENTIAL,People's Services,Independent School Fees,A56002
London Borough of Sutton,04/01/2024,50469038,840.00,Beyond Autism,CHILDREN'S SERVICES - RESIDENTIAL,People's Services,Independent School Fees,A56002
London Borough of Sutton,13/03/2024,20071968,"33,107.25",Beyond the Box Consultants CIC,SUNDRY SUPPLIER - FINANCE,Resources,Other Supplies & Services,A44291
London Borough of Sutton,12/03/2024,50469273,"11,478.06",Bizzy Bees Day Nursery,ACADEMIC INSTNS - OTHER,People's Services,Payment - Nursery Funding,A51056
London Borough of Sutton,14/03/2024,50471706,941.16,Bizzy Bees Day Nursery,ACADEMIC INSTNS - OTHER,People's Services,Payment - school supplementary grant,A51062
London Borough of Sutton,14/03/2024,50472008,941.16,Bizzy Bees Day Nursery,ACADEMIC INSTNS - OTHER,People's Services,Payment - school supplementary grant,A51062
London Borough of Sutton,21/03/2024,50475590,621.60,Bizzy Bees Day Nursery,ACADEMIC INSTNS - OTHER,People's Services,Payment - school supplementary grant,A51062
London Borough of Sutton,06/03/2024,20071333,"11,000.00",Bloom Procurement Services Ltd,TEMP STAFF & CONSULTANCY,Development Growth and Regeneration,External Fees and Consultants,C20000
London Borough of Sutton,14/03/2024,20072098,"2,625.00",Bloom Procurement Services Ltd,TEMP STAFF & CONSULTANCY,Environment Housing and Neighbourhoods,External Fees and Consultants,C20000
London Borough of Sutton,15/03/2024,20072216,"4,454.50",Bloom Procurement Services Ltd,TEMP STAFF & CONSULTANCY,Resources,Professional Fees,A44066
London Borough of Sutton,29/02/2024,50467435,667.00,Blossom Healthcare Ltd.,SOCIAL SERVICES-HOME CARE,People's Services,Home Care Services,A56019
London Borough of Sutton,29/02/2024,50467435,667.00,Blossom Healthcare Ltd.,SOCIAL SERVICES-HOME CARE,People's Services,Home Care Services,A56019
London Borough of Sutton,04/01/2024,50467445,678.50,Blossom Healthcare Ltd.,SOCIAL SERVICES-HOME CARE,People's Services,Home Care Services,A56019
London Borough of Sutton,04/01/2024,50467445,678.50,Blossom Healthcare Ltd.,SOCIAL SERVICES-HOME CARE,People's Services,Home Care Services,A56019
London Borough of Sutton,12/03/2024,50470591,644.00,Blossom Healthcare Ltd.,SOCIAL SERVICES-HOME CARE,People's Services,Home Care Services,A56019
London Borough of Sutton,12/03/2024,50470591,644.00,Blossom Healthcare Ltd.,SOCIAL SERVICES-HOME CARE,People's Services,Home Care Services,A56019
London Borough of Sutton,01/03/2024,50469832,578.85,Blue Sky Fostering Ltd,CHILDREN'S SERVICES - FOSTERING & ADOPTION SERVICES,People's Services,Foster Parents Support,A44110
London Borough of Sutton,01/03/2024,50469832,578.85,Blue Sky Fostering Ltd,CHILDREN'S SERVICES - FOSTERING & ADOPTION SERVICES,People's Services,Foster Parents Support,A44110
London Borough of Sutton,01/03/2024,50469835,"6,673.19",Blue Sky Fostering Ltd,CHILDREN'S SERVICES - FOSTERING & ADOPTION SERVICES,People's Services,Foster Parents Support,A44110
London Borough of Sutton,01/03/2024,50469835,"6,673.19",Blue Sky Fostering Ltd,CHILDREN'S SERVICES - FOSTERING & ADOPTION SERVICES,People's Services,Foster Parents Support,A44110
London Borough of Sutton,01/03/2024,50469838,"1,380.66",Blue Sky Fostering Ltd,CHILDREN'S SERVICES - FOSTERING & ADOPTION SERVICES,People's Services,Foster Parents Support,A44110
London Borough of Sutton,01/03/2024,50469838,"1,380.66",Blue Sky Fostering Ltd,CHILDREN'S SERVICES - FOSTERING & ADOPTION SERVICES,People's Services,Foster Parents Support,A44110
London Borough of Sutton,01/03/2024,50476041,"7,133.41",Blue Sky Fostering Ltd,CHILDREN'S SERVICES - FOSTERING & ADOPTION SERVICES,People's Services,Foster Parents Support,A44110
London Borough of Sutton,01/03/2024,50476041,"7,133.41",Blue Sky Fostering Ltd,CHILDREN'S SERVICES - FOSTERING & ADOPTION SERVICES,People's Services,Foster Parents Support,A44110
London Borough of Sutton,15/03/2024,50472513,-735.68,Bondcare (London) Ltd,SOCIAL SERVICES RESIDENTIAL,People's Services,Nursing Care - 3rd party top up payment,A56023
London Borough of Sutton,15/03/2024,50472513,-735.68,Bondcare (London) Ltd,SOCIAL SERVICES RESIDENTIAL,People's Services,Nursing Care - 3rd party top up payment,A56023
London Borough of Sutton,15/03/2024,50472513,"3,720.16",Bondcare (London) Ltd,SOCIAL SERVICES RESIDENTIAL,People's Services,Nursing Care - Ext Provider,A56025
London Borough of Sutton,15/03/2024,50472513,"3,720.16",Bondcare (London) Ltd,SOCIAL SERVICES RESIDENTIAL,People's Services,Nursing Care - Ext Provider,A56025
London Borough of Sutton,15/03/2024,50472500,"2,400.00",Brama Care Ltd,SOCIAL SERVICES-HOME CARE,People's Services,Nursing Care - Ext Provider,A56025
London Borough of Sutton,15/03/2024,50472500,"2,400.00",Brama Care Ltd,SOCIAL SERVICES-HOME CARE,People's Services,Nursing Care - Ext Provider,A56025
London Borough of Sutton,15/03/2024,50472571,"-8,770.60",Bramley Health Ltd.,SOCIAL SERVICES RESIDENTIAL,People's Services,Nursing Care - 3rd party top up payment,A56023
London Borough of Sutton,15/03/2024,50472571,"-8,770.60",Bramley Health Ltd.,SOCIAL SERVICES RESIDENTIAL,People's Services,Nursing Care - 3rd party top up payment,A56023
London Borough of Sutton,15/03/2024,50472571,"12,529.44",Bramley Health Ltd.,SOCIAL SERVICES RESIDENTIAL,People's Services,Nursing Care - Ext Provider,A56025
London Borough of Sutton,15/03/2024,50472571,"12,529.44",Bramley Health Ltd.,SOCIAL SERVICES RESIDENTIAL,People's Services,Nursing Care - Ext Provider,A56025
London Borough of Sutton,15/03/2024,50472612,"1,237.50",Bramley Health Ltd.,SOCIAL SERVICES RESIDENTIAL,People's Services,One to One Care,A56108
London Borough of Sutton,15/03/2024,50472612,"1,237.50",Bramley Health Ltd.,SOCIAL SERVICES RESIDENTIAL,People's Services,One to One Care,A56108
London Borough of Sutton,15/03/2024,50472612,"3,483.97",Bramley Health Ltd.,SOCIAL SERVICES RESIDENTIAL,People's Services,Nursing Care - 3rd party top up payment,A56023
London Borough of Sutton,15/03/2024,50472612,"3,483.97",Bramley Health Ltd.,SOCIAL SERVICES RESIDENTIAL,People's Services,Nursing Care - 3rd party top up payment,A56023
London Borough of Sutton,15/03/2024,50472612,"-4,890.00",Bramley Health Ltd.,SOCIAL SERVICES RESIDENTIAL,People's Services,Nursing Care - 3rd party top up payment,A56023
London Borough of Sutton,15/03/2024,50472612,"-4,890.00",Bramley Health Ltd.,SOCIAL SERVICES RESIDENTIAL,People's Services,Nursing Care - 3rd party top up payment,A56023
London Borough of Sutton,15/03/2024,50472612,"6,296.02",Bramley Health Ltd.,SOCIAL SERVICES RESIDENTIAL,People's Services,Nursing Care - Ext Provider,A56025
London Borough of Sutton,15/03/2024,50472612,"6,296.02",Bramley Health Ltd.,SOCIAL SERVICES RESIDENTIAL,People's Services,Nursing Care - Ext Provider,A56025
London Borough of Sutton,15/03/2024,50472641,-878.84,Bridge House Care Centre,SOCIAL SERVICES RESIDENTIAL,People's Services,Nursing Care - 3rd party top up payment,A56023
London Borough of Sutton,15/03/2024,50472641,-878.84,Bridge House Care Centre,SOCIAL SERVICES RESIDENTIAL,People's Services,Nursing Care - 3rd party top up payment,A56023
London Borough of Sutton,15/03/2024,50472641,"4,096.12",Bridge House Care Centre,SOCIAL SERVICES RESIDENTIAL,People's Services,Nursing Care - Ext Provider,A56025
London Borough of Sutton,15/03/2024,50472641,"4,096.12",Bridge House Care Centre,SOCIAL SERVICES RESIDENTIAL,People's Services,Nursing Care - Ext Provider,A56025
London Borough of Sutton,15/03/2024,50472660,-878.84,Bridge House Care Centre,SOCIAL SERVICES RESIDENTIAL,People's Services,Nursing Care - 3rd party top up payment,A56023
London Borough of Sutton,15/03/2024,50472660,-878.84,Bridge House Care Centre,SOCIAL SERVICES RESIDENTIAL,People's Services,Nursing Care - 3rd party top up payment,A56023
London Borough of Sutton,15/03/2024,50472660,"5,278.84",Bridge House Care Centre,SOCIAL SERVICES RESIDENTIAL,People's Services,Respite Care,A56116
London Borough of Sutton,15/03/2024,50472660,"5,278.84",Bridge House Care Centre,SOCIAL SERVICES RESIDENTIAL,People's Services,Respite Care,A56116
London Borough of Sutton,15/03/2024,50472670,-878.84,Bridge House Care Centre,SOCIAL SERVICES RESIDENTIAL,People's Services,Nursing Care - 3rd party top up payment,A56023
London Borough of Sutton,15/03/2024,50472670,-878.84,Bridge House Care Centre,SOCIAL SERVICES RESIDENTIAL,People's Services,Nursing Care - 3rd party top up payment,A56023
London Borough of Sutton,15/03/2024,50472670,"4,560.00",Bridge House Care Centre,SOCIAL SERVICES RESIDENTIAL,People's Services,Nursing Care - Ext Provider,A56025
London Borough of Sutton,15/03/2024,50472670,"4,560.00",Bridge House Care Centre,SOCIAL SERVICES RESIDENTIAL,People's Services,Nursing Care - Ext Provider,A56025
London Borough of Sutton,15/03/2024,50472671,-878.84,Bridge House Care Centre,SOCIAL SERVICES RESIDENTIAL,People's Services,Nursing Care - 3rd party top up payment,A56023
London Borough of Sutton,15/03/2024,50472671,-878.84,Bridge House Care Centre,SOCIAL SERVICES RESIDENTIAL,People's Services,Nursing Care - 3rd party top up payment,A56023
London Borough of Sutton,15/03/2024,50472671,"4,096.12",Bridge House Care Centre,SOCIAL SERVICES RESIDENTIAL,People's Services,Nursing Care Short Term,A56026
London Borough of Sutton,15/03/2024,50472671,"4,096.12",Bridge House Care Centre,SOCIAL SERVICES RESIDENTIAL,People's Services,Nursing Care Short Term,A56026
London Borough of Sutton,15/03/2024,50472672,-878.84,Bridge House Care Centre,SOCIAL SERVICES RESIDENTIAL,People's Services,Nursing Care - 3rd party top up payment,A56023
London Borough of Sutton,15/03/2024,50472672,-878.84,Bridge House Care Centre,SOCIAL SERVICES RESIDENTIAL,People's Services,Nursing Care - 3rd party top up payment,A56023
London Borough of Sutton,15/03/2024,50472712,-878.84,Bridge House Care Centre,SOCIAL SERVICES RESIDENTIAL,People's Services,Nursing Care - 3rd party top up payment,A56023
London Borough of Sutton,15/03/2024,50472712,-878.84,Bridge House Care Centre,SOCIAL SERVICES RESIDENTIAL,People's Services,Nursing Care - 3rd party top up payment,A56023
London Borough of Sutton,15/03/2024,50472712,"4,558.84",Bridge House Care Centre,SOCIAL SERVICES RESIDENTIAL,People's Services,Nursing Care Short Term,A56026
London Borough of Sutton,15/03/2024,50472712,"4,558.84",Bridge House Care Centre,SOCIAL SERVICES RESIDENTIAL,People's Services,Nursing Care Short Term,A56026
London Borough of Sutton,15/03/2024,50472742,-439.42,Bridge House Care Centre,SOCIAL SERVICES RESIDENTIAL,People's Services,Nursing Care - 3rd party top up payment,A56023
London Borough of Sutton,15/03/2024,50472742,-439.42,Bridge House Care Centre,SOCIAL SERVICES RESIDENTIAL,People's Services,Nursing Care - 3rd party top up payment,A56023
London Borough of Sutton,15/03/2024,50472742,"2,280.00",Bridge House Care Centre,SOCIAL SERVICES RESIDENTIAL,People's Services,Respite Care,A56116
London Borough of Sutton,15/03/2024,50472742,"2,280.00",Bridge House Care Centre,SOCIAL SERVICES RESIDENTIAL,People's Services,Respite Care,A56116
London Borough of Sutton,15/03/2024,50472761,"4,096.12",Bridge House Care Centre,SOCIAL SERVICES RESIDENTIAL,People's Services,Nursing Care - Ext Provider,A56025
London Borough of Sutton,15/03/2024,50472761,"4,096.12",Bridge House Care Centre,SOCIAL SERVICES RESIDENTIAL,People's Services,Nursing Care - Ext Provider,A56025
London Borough of Sutton,15/03/2024,50472765,-878.84,Bridge House Care Centre,SOCIAL SERVICES RESIDENTIAL,People's Services,Nursing Care - 3rd party top up payment,A56023
London Borough of Sutton,15/03/2024,50472765,-878.84,Bridge House Care Centre,SOCIAL SERVICES RESIDENTIAL,People's Services,Nursing Care - 3rd party top up payment,A56023
London Borough of Sutton,15/03/2024,50472769,-878.84,Bridge House Care Centre,SOCIAL SERVICES RESIDENTIAL,People's Services,Nursing Care - 3rd party top up payment,A56023
London Borough of Sutton,15/03/2024,50472769,-878.84,Bridge House Care Centre,SOCIAL SERVICES RESIDENTIAL,People's Services,Nursing Care - 3rd party top up payment,A56023
London Borough of Sutton,15/03/2024,50472769,"4,560.00",Bridge House Care Centre,SOCIAL SERVICES RESIDENTIAL,People's Services,Nursing Care - Ext Provider,A56025
London Borough of Sutton,15/03/2024,50472769,"4,560.00",Bridge House Care Centre,SOCIAL SERVICES RESIDENTIAL,People's Services,Nursing Care - Ext Provider,A56025
London Borough of Sutton,15/03/2024,50472777,"4,096.12",Bridge House Care Centre,SOCIAL SERVICES RESIDENTIAL,People's Services,Nursing Care - Ext Provider,A56025
London Borough of Sutton,15/03/2024,50472777,"4,096.12",Bridge House Care Centre,SOCIAL SERVICES RESIDENTIAL,People's Services,Nursing Care - Ext Provider,A56025
London Borough of Sutton,15/03/2024,50472821,-878.84,Bridge House Care Centre,SOCIAL SERVICES RESIDENTIAL,People's Services,Nursing Care - 3rd party top up payment,A56023
London Borough of Sutton,15/03/2024,50472821,-878.84,Bridge House Care Centre,SOCIAL SERVICES RESIDENTIAL,People's Services,Nursing Care - 3rd party top up payment,A56023
London Borough of Sutton,15/03/2024,50472821,"4,096.12",Bridge House Care Centre,SOCIAL SERVICES RESIDENTIAL,People's Services,Nursing Care Short Term,A56026
London Borough of Sutton,15/03/2024,50472821,"4,096.12",Bridge House Care Centre,SOCIAL SERVICES RESIDENTIAL,People's Services,Nursing Care Short Term,A56026
London Borough of Sutton,15/03/2024,50472822,-836.76,Bridge House Care Centre,SOCIAL SERVICES RESIDENTIAL,People's Services,Nursing Care - 3rd party top up payment,A56023
London Borough of Sutton,15/03/2024,50472822,-836.76,Bridge House Care Centre,SOCIAL SERVICES RESIDENTIAL,People's Services,Nursing Care - 3rd party top up payment,A56023
London Borough of Sutton,15/03/2024,50472822,"4,978.76",Bridge House Care Centre,SOCIAL SERVICES RESIDENTIAL,People's Services,Nursing Care - Ext Provider,A56025
London Borough of Sutton,15/03/2024,50472822,"4,978.76",Bridge House Care Centre,SOCIAL SERVICES RESIDENTIAL,People's Services,Nursing Care - Ext Provider,A56025
London Borough of Sutton,15/03/2024,50472823,-878.84,Bridge House Care Centre,SOCIAL SERVICES RESIDENTIAL,People's Services,Nursing Care - 3rd party top up payment,A56023
London Borough of Sutton,15/03/2024,50472823,-878.84,Bridge House Care Centre,SOCIAL SERVICES RESIDENTIAL,People's Services,Nursing Care - 3rd party top up payment,A56023
London Borough of Sutton,15/03/2024,50472823,"4,560.00",Bridge House Care Centre,SOCIAL SERVICES RESIDENTIAL,People's Services,Nursing Care Short Term,A56026
London Borough of Sutton,15/03/2024,50472823,"4,560.00",Bridge House Care Centre,SOCIAL SERVICES RESIDENTIAL,People's Services,Nursing Care Short Term,A56026
London Borough of Sutton,15/03/2024,50472828,-878.84,Bridge House Care Centre,SOCIAL SERVICES RESIDENTIAL,People's Services,Nursing Care - 3rd party top up payment,A56023
London Borough of Sutton,15/03/2024,50472828,-878.84,Bridge House Care Centre,SOCIAL SERVICES RESIDENTIAL,People's Services,Nursing Care - 3rd party top up payment,A56023
London Borough of Sutton,15/03/2024,50472828,"4,096.12",Bridge House Care Centre,SOCIAL SERVICES RESIDENTIAL,People's Services,Nursing Care - Ext Provider,A56025
London Borough of Sutton,15/03/2024,50472828,"4,096.12",Bridge House Care Centre,SOCIAL SERVICES RESIDENTIAL,People's Services,Nursing Care - Ext Provider,A56025
London Borough of Sutton,15/03/2024,50472861,-564.97,Bridge House Care Centre,SOCIAL SERVICES RESIDENTIAL,People's Services,Nursing Care - 3rd party top up payment,A56023
London Borough of Sutton,15/03/2024,50472861,-564.97,Bridge House Care Centre,SOCIAL SERVICES RESIDENTIAL,People's Services,Nursing Care - 3rd party top up payment,A56023
London Borough of Sutton,15/03/2024,50472861,"2,931.43",Bridge House Care Centre,SOCIAL SERVICES RESIDENTIAL,People's Services,Nursing Care - Ext Provider,A56025
London Borough of Sutton,15/03/2024,50472861,"2,931.43",Bridge House Care Centre,SOCIAL SERVICES RESIDENTIAL,People's Services,Nursing Care - Ext Provider,A56025
London Borough of Sutton,15/03/2024,50472950,-878.84,Bridge House Care Centre,SOCIAL SERVICES RESIDENTIAL,People's Services,Nursing Care - 3rd party top up payment,A56023
London Borough of Sutton,15/03/2024,50472950,-878.84,Bridge House Care Centre,SOCIAL SERVICES RESIDENTIAL,People's Services,Nursing Care - 3rd party top up payment,A56023
London Borough of Sutton,15/03/2024,50472950,"4,096.12",Bridge House Care Centre,SOCIAL SERVICES RESIDENTIAL,People's Services,Nursing Care - Ext Provider,A56025
London Borough of Sutton,15/03/2024,50472950,"4,096.12",Bridge House Care Centre,SOCIAL SERVICES RESIDENTIAL,People's Services,Nursing Care - Ext Provider,A56025
London Borough of Sutton,15/03/2024,50472952,-878.84,Bridge House Care Centre,SOCIAL SERVICES RESIDENTIAL,People's Services,Nursing Care - 3rd party top up payment,A56023
London Borough of Sutton,15/03/2024,50472952,-878.84,Bridge House Care Centre,SOCIAL SERVICES RESIDENTIAL,People's Services,Nursing Care - 3rd party top up payment,A56023
London Borough of Sutton,15/03/2024,50472952,"4,096.12",Bridge House Care Centre,SOCIAL SERVICES RESIDENTIAL,People's Services,Nursing Care - Ext Provider,A56025
London Borough of Sutton,15/03/2024,50472952,"4,096.12",Bridge House Care Centre,SOCIAL SERVICES RESIDENTIAL,People's Services,Nursing Care - Ext Provider,A56025
London Borough of Sutton,15/03/2024,50472971,-878.84,Bridge House Care Centre,SOCIAL SERVICES RESIDENTIAL,People's Services,Nursing Care - 3rd party top up payment,A56023
London Borough of Sutton,15/03/2024,50472971,-878.84,Bridge House Care Centre,SOCIAL SERVICES RESIDENTIAL,People's Services,Nursing Care - 3rd party top up payment,A56023
London Borough of Sutton,15/03/2024,50472971,"4,096.12",Bridge House Care Centre,SOCIAL SERVICES RESIDENTIAL,People's Services,Nursing Care - Ext Provider,A56025
London Borough of Sutton,15/03/2024,50472971,"4,096.12",Bridge House Care Centre,SOCIAL SERVICES RESIDENTIAL,People's Services,Nursing Care - Ext Provider,A56025
London Borough of Sutton,15/03/2024,50472972,-878.84,Bridge House Care Centre,SOCIAL SERVICES RESIDENTIAL,People's Services,Nursing Care - 3rd party top up payment,A56023
London Borough of Sutton,15/03/2024,50472972,-878.84,Bridge House Care Centre,SOCIAL SERVICES RESIDENTIAL,People's Services,Nursing Care - 3rd party top up payment,A56023
London Borough of Sutton,15/03/2024,50472972,"4,560.00",Bridge House Care Centre,SOCIAL SERVICES RESIDENTIAL,People's Services,Nursing Care Short Term,A56026
London Borough of Sutton,15/03/2024,50472972,"4,560.00",Bridge House Care Centre,SOCIAL SERVICES RESIDENTIAL,People's Services,Nursing Care Short Term,A56026
London Borough of Sutton,15/03/2024,50473003,-878.84,Bridge House Care Centre,SOCIAL SERVICES RESIDENTIAL,People's Services,Nursing Care - 3rd party top up payment,A56023
London Borough of Sutton,15/03/2024,50473003,-878.84,Bridge House Care Centre,SOCIAL SERVICES RESIDENTIAL,People's Services,Nursing Care - 3rd party top up payment,A56023
London Borough of Sutton,15/03/2024,50473003,"4,096.12",Bridge House Care Centre,SOCIAL SERVICES RESIDENTIAL,People's Services,Nursing Care - Ext Provider,A56025
London Borough of Sutton,15/03/2024,50473003,"4,096.12",Bridge House Care Centre,SOCIAL SERVICES RESIDENTIAL,People's Services,Nursing Care - Ext Provider,A56025
London Borough of Sutton,15/03/2024,50473004,-878.84,Bridge House Care Centre,SOCIAL SERVICES RESIDENTIAL,People's Services,Nursing Care - 3rd party top up payment,A56023
London Borough of Sutton,15/03/2024,50473004,-878.84,Bridge House Care Centre,SOCIAL SERVICES RESIDENTIAL,People's Services,Nursing Care - 3rd party top up payment,A56023
London Borough of Sutton,15/03/2024,50473004,"4,560.00",Bridge House Care Centre,SOCIAL SERVICES RESIDENTIAL,People's Services,Nursing Care Short Term,A56026
London Borough of Sutton,15/03/2024,50473004,"4,560.00",Bridge House Care Centre,SOCIAL SERVICES RESIDENTIAL,People's Services,Nursing Care Short Term,A56026
London Borough of Sutton,15/03/2024,50473023,-878.84,Bridge House Care Centre,SOCIAL SERVICES RESIDENTIAL,People's Services,Nursing Care - 3rd party top up payment,A56023
London Borough of Sutton,15/03/2024,50473023,-878.84,Bridge House Care Centre,SOCIAL SERVICES RESIDENTIAL,People's Services,Nursing Care - 3rd party top up payment,A56023
London Borough of Sutton,15/03/2024,50473023,"4,096.12",Bridge House Care Centre,SOCIAL SERVICES RESIDENTIAL,People's Services,Nursing Care - Ext Provider,A56025
London Borough of Sutton,15/03/2024,50473023,"4,096.12",Bridge House Care Centre,SOCIAL SERVICES RESIDENTIAL,People's Services,Nursing Care - Ext Provider,A56025
London Borough of Sutton,26/02/2024,20070662,"5,152.85",Bridgestock Housing Services,CHILDREN'S SERVICES - RESIDENTIAL,People's Services,Approved Lodgings,A61000
London Borough of Sutton,26/02/2024,20070662,"5,152.85",Bridgestock Housing Services,CHILDREN'S SERVICES - RESIDENTIAL,People's Services,Approved Lodgings,A61000
London Borough of Sutton,26/02/2024,20070678,"3,202.85",Bridgestock Housing Services,CHILDREN'S SERVICES - RESIDENTIAL,People's Services,Approved Lodgings,A61000
London Borough of Sutton,26/02/2024,20070678,"3,202.85",Bridgestock Housing Services,CHILDREN'S SERVICES - RESIDENTIAL,People's Services,Approved Lodgings,A61000
London Borough of Sutton,26/02/2024,50469791,"2,678.57",Bridgestock Housing Services,CHILDREN'S SERVICES - RESIDENTIAL,People's Services,Approved Lodgings,A61000
London Borough of Sutton,26/02/2024,50469791,"2,678.57",Bridgestock Housing Services,CHILDREN'S SERVICES - RESIDENTIAL,People's Services,Approved Lodgings,A61000
London Borough of Sutton,26/02/2024,50469791,133.92,Bridgestock Housing Services,CHILDREN'S SERVICES - RESIDENTIAL,People's Services,Approved Lodgings,A61000
London Borough of Sutton,26/02/2024,50469791,133.92,Bridgestock Housing Services,CHILDREN'S SERVICES - RESIDENTIAL,People's Services,Approved Lodgings,A61000
London Borough of Sutton,20/02/2024,50469898,"2,250.00",Bridgestock Housing Services,CHILDREN'S SERVICES - RESIDENTIAL,People's Services,Approved Lodgings,A61000
London Borough of Sutton,20/02/2024,50469898,"2,250.00",Bridgestock Housing Services,CHILDREN'S SERVICES - RESIDENTIAL,People's Services,Approved Lodgings,A61000
London Borough of Sutton,20/02/2024,50469898,125.00,Bridgestock Housing Services,CHILDREN'S SERVICES - RESIDENTIAL,People's Services,Approved Lodgings,A61000
London Borough of Sutton,20/02/2024,50469898,125.00,Bridgestock Housing Services,CHILDREN'S SERVICES - RESIDENTIAL,People's Services,Approved Lodgings,A61000
London Borough of Sutton,01/02/2024,50469806,"3,272.86",Bridging Gaps Limited,CHILDREN'S SERVICES - FOSTERING & ADOPTION SERVICES,People's Services,Foster Parents Support,A44110
London Borough of Sutton,01/02/2024,50469806,"3,272.86",Bridging Gaps Limited,CHILDREN'S SERVICES - FOSTERING & ADOPTION SERVICES,People's Services,Foster Parents Support,A44110
London Borough of Sutton,01/03/2024,50476050,"3,498.57",Bridging Gaps Limited,CHILDREN'S SERVICES - FOSTERING & ADOPTION SERVICES,People's Services,Foster Parents Support,A44110
London Borough of Sutton,01/03/2024,50476050,"3,498.57",Bridging Gaps Limited,CHILDREN'S SERVICES - FOSTERING & ADOPTION SERVICES,People's Services,Foster Parents Support,A44110
London Borough of Sutton,28/02/2024,20070777,"3,121.43",Bridging the Gap,CHILDREN'S SERVICE - OTHER,People's Services,Approved Lodgings,A61000
London Borough of Sutton,28/02/2024,20070777,"3,121.43",Bridging the Gap,CHILDREN'S SERVICE - OTHER,People's Services,Approved Lodgings,A61000
London Borough of Sutton,01/02/2024,50469827,"3,446.07",Brighter Futures Foster Care Ltd,CHILDREN'S SERVICES - FOSTERING & ADOPTION SERVICES,People's Services,Foster Parents Support,A44110
London Borough of Sutton,01/02/2024,50469827,"3,446.07",Brighter Futures Foster Care Ltd,CHILDREN'S SERVICES - FOSTERING & ADOPTION SERVICES,People's Services,Foster Parents Support,A44110
London Borough of Sutton,11/01/2024,50469878,"1,214.30",Brighter Futures Foster Care Ltd,CHILDREN'S SERVICES - FOSTERING & ADOPTION SERVICES,People's Services,Foster Parents Support,A44110
London Borough of Sutton,11/01/2024,50469878,"1,214.30",Brighter Futures Foster Care Ltd,CHILDREN'S SERVICES - FOSTERING & ADOPTION SERVICES,People's Services,Foster Parents Support,A44110
London Borough of Sutton,01/02/2024,50469911,"3,260.18",Brighter Futures Foster Care Ltd,CHILDREN'S SERVICES - FOSTERING & ADOPTION SERVICES,People's Services,Foster Parents Support,A44110
London Borough of Sutton,01/02/2024,50469911,"3,260.18",Brighter Futures Foster Care Ltd,CHILDREN'S SERVICES - FOSTERING & ADOPTION SERVICES,People's Services,Foster Parents Support,A44110
London Borough of Sutton,21/12/2022,50472453,"1,800.00",Brighter Futures Foster Care Ltd,CHILDREN'S SERVICES - FOSTERING & ADOPTION SERVICES,People's Services,Foster Parents Support,A44110
London Borough of Sutton,21/12/2022,50472453,"1,800.00",Brighter Futures Foster Care Ltd,CHILDREN'S SERVICES - FOSTERING & ADOPTION SERVICES,People's Services,Foster Parents Support,A44110
London Borough of Sutton,14/03/2024,50472456,775.00,Brighter Futures Foster Care Ltd,CHILDREN'S SERVICES - FOSTERING & ADOPTION SERVICES,People's Services,Foster Parents Support,A44110
London Borough of Sutton,14/03/2024,50472456,775.00,Brighter Futures Foster Care Ltd,CHILDREN'S SERVICES - FOSTERING & ADOPTION SERVICES,People's Services,Foster Parents Support,A44110
London Borough of Sutton,01/03/2024,50476013,"3,683.73",Brighter Futures Foster Care Ltd,CHILDREN'S SERVICES - FOSTERING & ADOPTION SERVICES,People's Services,Foster Parents Support,A44110
London Borough of Sutton,01/03/2024,50476013,"3,683.73",Brighter Futures Foster Care Ltd,CHILDREN'S SERVICES - FOSTERING & ADOPTION SERVICES,People's Services,Foster Parents Support,A44110
London Borough of Sutton,01/03/2024,50476063,"3,485.02",Brighter Futures Foster Care Ltd,CHILDREN'S SERVICES - FOSTERING & ADOPTION SERVICES,People's Services,Foster Parents Support,A44110
London Borough of Sutton,01/03/2024,50476063,"3,485.02",Brighter Futures Foster Care Ltd,CHILDREN'S SERVICES - FOSTERING & ADOPTION SERVICES,People's Services,Foster Parents Support,A44110
London Borough of Sutton,15/03/2024,50472613,-875.64,British Home & Hospital For Incurables,SOCIAL SERVICES RESIDENTIAL,People's Services,Nursing Care - Client Cont ( Net paymt ),A56024
London Borough of Sutton,15/03/2024,50472613,-875.64,British Home & Hospital For Incurables,SOCIAL SERVICES RESIDENTIAL,People's Services,Nursing Care - Client Cont ( Net paymt ),A56024
London Borough of Sutton,15/03/2024,50472613,-878.84,British Home & Hospital For Incurables,SOCIAL SERVICES RESIDENTIAL,People's Services,Nursing Care - 3rd party top up payment,A56023
London Borough of Sutton,15/03/2024,50472613,-878.84,British Home & Hospital For Incurables,SOCIAL SERVICES RESIDENTIAL,People's Services,Nursing Care - 3rd party top up payment,A56023
London Borough of Sutton,15/03/2024,50472613,"4,096.12",British Home & Hospital For Incurables,SOCIAL SERVICES RESIDENTIAL,People's Services,Nursing Care - Ext Provider,A56025
London Borough of Sutton,15/03/2024,50472613,"4,096.12",British Home & Hospital For Incurables,SOCIAL SERVICES RESIDENTIAL,People's Services,Nursing Care - Ext Provider,A56025
London Borough of Sutton,14/03/2024,50471048,"1,323.14",Brookfield Primary (Academy),SCHOOL FUNDS,People's Services,Payment - school supplementary grant,A51062
London Borough of Sutton,15/03/2024,50471822,"16,194.13",Brookfield Primary (Academy),SCHOOL FUNDS,People's Services,Payment - Nursery Funding,A51056
London Borough of Sutton,21/03/2024,50475724,"2,595.60",Brookfield Primary (Academy),SCHOOL FUNDS,People's Services,Payment - school supplementary grant,A51062
London Borough of Sutton,25/03/2024,50476511,"7,379.54",Brookfield Primary (Academy),SCHOOL FUNDS,Non-Service Cost Centres,Recharge-Teaching Staff,A10600
London Borough of Sutton,25/03/2024,50476512,"3,807.82",Brookfield Primary (Academy),SCHOOL FUNDS,Non-Service Cost Centres,Recharge-Teaching Staff,A10600
London Borough of Sutton,25/03/2024,50476556,869.40,Brookfield Primary (Academy),SCHOOL FUNDS,People's Services,Payment - school supplementary grant,A51062
London Borough of Sutton,26/03/2024,50477191,"55,393.88",Brookfield Primary (Academy),SCHOOL FUNDS,People's Services,Top-up Funding,A51016
London Borough of Sutton,12/03/2024,50469173,"20,666.02",Bumpsa Daisies Nurserys,ACADEMIC INSTNS - OTHER,People's Services,Payment - Nursery Funding,A51056
London Borough of Sutton,12/03/2024,50469292,"8,663.62",Bumpsa Daisies Nurserys,ACADEMIC INSTNS - OTHER,People's Services,Payment - Nursery Funding,A51056
London Borough of Sutton,12/03/2024,50469461,"1,717.84",Bumpsa Daisies Nurserys,ACADEMIC INSTNS - OTHER,People's Services,Disability Access Fund,A56093
London Borough of Sutton,14/03/2024,50471606,"1,773.58",Bumpsa Daisies Nurserys,ACADEMIC INSTNS - OTHER,People's Services,Payment - school supplementary grant,A51062
London Borough of Sutton,14/03/2024,50471725,"3,972.96",Bumpsa Daisies Nurserys,ACADEMIC INSTNS - OTHER,People's Services,Payment - school supplementary grant,A51062
London Borough of Sutton,14/03/2024,50471908,"1,773.58",Bumpsa Daisies Nurserys,ACADEMIC INSTNS - OTHER,People's Services,Payment - school supplementary grant,A51062
London Borough of Sutton,14/03/2024,50472027,"3,972.96",Bumpsa Daisies Nurserys,ACADEMIC INSTNS - OTHER,People's Services,Payment - school supplementary grant,A51062
London Borough of Sutton,21/03/2024,50475535,"2,851.80",Bumpsa Daisies Nurserys,ACADEMIC INSTNS - OTHER,People's Services,Payment - school supplementary grant,A51062
London Borough of Sutton,15/03/2024,50472465,"-1,436.76",Bupa Care Services,SOCIAL SERVICES RESIDENTIAL,People's Services,Nursing Care - 3rd party top up payment,A56023
London Borough of Sutton,15/03/2024,50472465,"-1,436.76",Bupa Care Services,SOCIAL SERVICES RESIDENTIAL,People's Services,Nursing Care - 3rd party top up payment,A56023
London Borough of Sutton,15/03/2024,50472465,"8,091.16",Bupa Care Services,SOCIAL SERVICES RESIDENTIAL,People's Services,Nursing Care Short Term,A56026
London Borough of Sutton,15/03/2024,50472465,"8,091.16",Bupa Care Services,SOCIAL SERVICES RESIDENTIAL,People's Services,Nursing Care Short Term,A56026
London Borough of Sutton,15/03/2024,50472570,-836.76,Bupa Care Services,SOCIAL SERVICES RESIDENTIAL,People's Services,Nursing Care - 3rd party top up payment,A56023
London Borough of Sutton,15/03/2024,50472570,-836.76,Bupa Care Services,SOCIAL SERVICES RESIDENTIAL,People's Services,Nursing Care - 3rd party top up payment,A56023
London Borough of Sutton,15/03/2024,50472570,"7,084.60",Bupa Care Services,SOCIAL SERVICES RESIDENTIAL,People's Services,Nursing Care Short Term,A56026
London Borough of Sutton,15/03/2024,50472570,"7,084.60",Bupa Care Services,SOCIAL SERVICES RESIDENTIAL,People's Services,Nursing Care Short Term,A56026
London Borough of Sutton,15/03/2024,50472642,-878.84,Bupa Care Services,SOCIAL SERVICES RESIDENTIAL,People's Services,Nursing Care - 3rd party top up payment,A56023
London Borough of Sutton,15/03/2024,50472642,-878.84,Bupa Care Services,SOCIAL SERVICES RESIDENTIAL,People's Services,Nursing Care - 3rd party top up payment,A56023
London Borough of Sutton,15/03/2024,50472642,"4,096.12",Bupa Care Services,SOCIAL SERVICES RESIDENTIAL,People's Services,Nursing Care Short Term,A56026
London Borough of Sutton,15/03/2024,50472642,"4,096.12",Bupa Care Services,SOCIAL SERVICES RESIDENTIAL,People's Services,Nursing Care Short Term,A56026
London Borough of Sutton,15/03/2024,50472658,-878.84,Bupa Care Services,SOCIAL SERVICES RESIDENTIAL,People's Services,Nursing Care - 3rd party top up payment,A56023
London Borough of Sutton,15/03/2024,50472658,-878.84,Bupa Care Services,SOCIAL SERVICES RESIDENTIAL,People's Services,Nursing Care - 3rd party top up payment,A56023
London Borough of Sutton,15/03/2024,50472659,-836.76,Bupa Care Services,SOCIAL SERVICES RESIDENTIAL,People's Services,Nursing Care - 3rd party top up payment,A56023
London Borough of Sutton,15/03/2024,50472659,-836.76,Bupa Care Services,SOCIAL SERVICES RESIDENTIAL,People's Services,Nursing Care - 3rd party top up payment,A56023
London Borough of Sutton,15/03/2024,50472659,"3,821.24",Bupa Care Services,SOCIAL SERVICES RESIDENTIAL,People's Services,Nursing Care Short Term,A56026
London Borough of Sutton,15/03/2024,50472659,"3,821.24",Bupa Care Services,SOCIAL SERVICES RESIDENTIAL,People's Services,Nursing Care Short Term,A56026
London Borough of Sutton,15/03/2024,50472785,"4,096.12",Bupa Care Services,SOCIAL SERVICES RESIDENTIAL,People's Services,Nursing Care - Ext Provider,A56025
London Borough of Sutton,15/03/2024,50472785,"4,096.12",Bupa Care Services,SOCIAL SERVICES RESIDENTIAL,People's Services,Nursing Care - Ext Provider,A56025
London Borough of Sutton,15/03/2024,50472885,-878.84,Bupa Care Services,SOCIAL SERVICES RESIDENTIAL,People's Services,Nursing Care - 3rd party top up payment,A56023
London Borough of Sutton,15/03/2024,50472885,-878.84,Bupa Care Services,SOCIAL SERVICES RESIDENTIAL,People's Services,Nursing Care - 3rd party top up payment,A56023
London Borough of Sutton,15/03/2024,50472885,"4,339.24",Bupa Care Services,SOCIAL SERVICES RESIDENTIAL,People's Services,Nursing Care - Ext Provider,A56025
London Borough of Sutton,15/03/2024,50472885,"4,339.24",Bupa Care Services,SOCIAL SERVICES RESIDENTIAL,People's Services,Nursing Care - Ext Provider,A56025
London Borough of Sutton,15/03/2024,50472941,-878.84,Bupa Care Services,SOCIAL SERVICES RESIDENTIAL,People's Services,Nursing Care - 3rd party top up payment,A56023
London Borough of Sutton,15/03/2024,50472941,-878.84,Bupa Care Services,SOCIAL SERVICES RESIDENTIAL,People's Services,Nursing Care - 3rd party top up payment,A56023
London Borough of Sutton,15/03/2024,50472941,"4,339.24",Bupa Care Services,SOCIAL SERVICES RESIDENTIAL,People's Services,Nursing Care Short Term,A56026
London Borough of Sutton,15/03/2024,50472941,"4,339.24",Bupa Care Services,SOCIAL SERVICES RESIDENTIAL,People's Services,Nursing Care Short Term,A56026
London Borough of Sutton,15/03/2024,50473015,-878.84,Bupa Care Services,SOCIAL SERVICES RESIDENTIAL,People's Services,Nursing Care - 3rd party top up payment,A56023
London Borough of Sutton,15/03/2024,50473015,-878.84,Bupa Care Services,SOCIAL SERVICES RESIDENTIAL,People's Services,Nursing Care - 3rd party top up payment,A56023
London Borough of Sutton,15/03/2024,50473015,"4,096.12",Bupa Care Services,SOCIAL SERVICES RESIDENTIAL,People's Services,Nursing Care Short Term,A56026
London Borough of Sutton,15/03/2024,50473015,"4,096.12",Bupa Care Services,SOCIAL SERVICES RESIDENTIAL,People's Services,Nursing Care Short Term,A56026
London Borough of Sutton,12/03/2024,50469175,"12,137.18",Busy Bees Day Nurseries Ltd,ACADEMIC INSTNS - OTHER,People's Services,Payment - Nursery Funding,A51056
London Borough of Sutton,12/03/2024,50469176,"15,786.70",Busy Bees Day Nurseries Ltd,ACADEMIC INSTNS - OTHER,People's Services,Payment - Nursery Funding,A51056
London Borough of Sutton,12/03/2024,50469294,"1,914.43",Busy Bees Day Nurseries Ltd,ACADEMIC INSTNS - OTHER,People's Services,Payment - Nursery Funding,A51056
London Borough of Sutton,14/03/2024,50471608,"1,041.62",Busy Bees Day Nurseries Ltd,ACADEMIC INSTNS - OTHER,People's Services,Payment - school supplementary grant,A51062
London Borough of Sutton,14/03/2024,50471609,"1,354.83",Busy Bees Day Nurseries Ltd,ACADEMIC INSTNS - OTHER,People's Services,Payment - school supplementary grant,A51062
London Borough of Sutton,14/03/2024,50471727,877.92,Busy Bees Day Nurseries Ltd,ACADEMIC INSTNS - OTHER,People's Services,Payment - school supplementary grant,A51062
London Borough of Sutton,14/03/2024,50471910,"1,041.62",Busy Bees Day Nurseries Ltd,ACADEMIC INSTNS - OTHER,People's Services,Payment - school supplementary grant,A51062
London Borough of Sutton,14/03/2024,50471911,"1,354.83",Busy Bees Day Nurseries Ltd,ACADEMIC INSTNS - OTHER,People's Services,Payment - school supplementary grant,A51062
London Borough of Sutton,14/03/2024,50472029,877.92,Busy Bees Day Nurseries Ltd,ACADEMIC INSTNS - OTHER,People's Services,Payment - school supplementary grant,A51062
London Borough of Sutton,21/03/2024,50475537,"1,863.40",Busy Bees Day Nurseries Ltd,ACADEMIC INSTNS - OTHER,People's Services,Payment - school supplementary grant,A51062
London Borough of Sutton,21/03/2024,50475538,"2,672.97",Busy Bees Day Nurseries Ltd,ACADEMIC INSTNS - OTHER,People's Services,Payment - school supplementary grant,A51062
London Borough of Sutton,15/03/2024,50472486,"8,118.48",Butterfly's Care Homes Ltd,SOCIAL SERVICES RESIDENTIAL,People's Services,Residential Care - Ext Provider,A56114
London Borough of Sutton,15/03/2024,50472486,"8,118.48",Butterfly's Care Homes Ltd,SOCIAL SERVICES RESIDENTIAL,People's Services,Residential Care - Ext Provider,A56114
London Borough of Sutton,05/03/2024,20071384,"62,232.73",Buxton Building Contractors Ltd,CONSTRUCTION INDUSTRY,HRA,Payments to Contractors,C14000
London Borough of Sutton,01/03/2024,50469853,"7,208.53",By The Bridge Ltd,CHILDREN'S SERVICES - FOSTERING & ADOPTION SERVICES,People's Services,Foster Parents Support,A44110
London Borough of Sutton,01/03/2024,50469853,"7,208.53",By The Bridge Ltd,CHILDREN'S SERVICES - FOSTERING & ADOPTION SERVICES,People's Services,Foster Parents Support,A44110
London Borough of Sutton,01/03/2024,50469854,"2,783.71",By The Bridge Ltd,CHILDREN'S SERVICES - FOSTERING & ADOPTION SERVICES,People's Services,Foster Parents Support,A44110
London Borough of Sutton,01/03/2024,50469854,"2,783.71",By The Bridge Ltd,CHILDREN'S SERVICES - FOSTERING & ADOPTION SERVICES,People's Services,Foster Parents Support,A44110
London Borough of Sutton,01/03/2024,50469923,"7,208.53",By The Bridge Ltd,CHILDREN'S SERVICES - FOSTERING & ADOPTION SERVICES,People's Services,Foster Parents Support,A44110
London Borough of Sutton,01/03/2024,50469923,"7,208.53",By The Bridge Ltd,CHILDREN'S SERVICES - FOSTERING & ADOPTION SERVICES,People's Services,Foster Parents Support,A44110
London Borough of Sutton,01/03/2024,50469924,"4,365.95",By The Bridge Ltd,CHILDREN'S SERVICES - FOSTERING & ADOPTION SERVICES,People's Services,Foster Parents Support,A44110
London Borough of Sutton,01/03/2024,50469924,"4,365.95",By The Bridge Ltd,CHILDREN'S SERVICES - FOSTERING & ADOPTION SERVICES,People's Services,Foster Parents Support,A44110
London Borough of Sutton,15/03/2024,50476015,"7,705.67",By The Bridge Ltd,CHILDREN'S SERVICES - FOSTERING & ADOPTION SERVICES,People's Services,Foster Parents Support,A44110
London Borough of Sutton,15/03/2024,50476015,"7,705.67",By The Bridge Ltd,CHILDREN'S SERVICES - FOSTERING & ADOPTION SERVICES,People's Services,Foster Parents Support,A44110
London Borough of Sutton,15/03/2024,50476016,"7,705.67",By The Bridge Ltd,CHILDREN'S SERVICES - FOSTERING & ADOPTION SERVICES,People's Services,Foster Parents Support,A44110
London Borough of Sutton,15/03/2024,50476016,"7,705.67",By The Bridge Ltd,CHILDREN'S SERVICES - FOSTERING & ADOPTION SERVICES,People's Services,Foster Parents Support,A44110
London Borough of Sutton,15/03/2024,50476017,"2,975.69",By The Bridge Ltd,CHILDREN'S SERVICES - FOSTERING & ADOPTION SERVICES,People's Services,Foster Parents Support,A44110
London Borough of Sutton,15/03/2024,50476017,"2,975.69",By The Bridge Ltd,CHILDREN'S SERVICES - FOSTERING & ADOPTION SERVICES,People's Services,Foster Parents Support,A44110
London Borough of Sutton,01/03/2024,50476018,"1,525.80",By The Bridge Ltd,CHILDREN'S SERVICES - FOSTERING & ADOPTION SERVICES,People's Services,Foster Parents Support,A44110
London Borough of Sutton,01/03/2024,50476018,"1,525.80",By The Bridge Ltd,CHILDREN'S SERVICES - FOSTERING & ADOPTION SERVICES,People's Services,Foster Parents Support,A44110
London Borough of Sutton,01/03/2024,50476019,"4,729.98",By The Bridge Ltd,CHILDREN'S SERVICES - FOSTERING & ADOPTION SERVICES,People's Services,Foster Parents Support,A44110
London Borough of Sutton,01/03/2024,50476019,"4,729.98",By The Bridge Ltd,CHILDREN'S SERVICES - FOSTERING & ADOPTION SERVICES,People's Services,Foster Parents Support,A44110
London Borough of Sutton,15/03/2024,50476054,"4,667.05",By The Bridge Ltd,CHILDREN'S SERVICES - FOSTERING & ADOPTION SERVICES,People's Services,Foster Parents Support,A44110
London Borough of Sutton,15/03/2024,50476054,"4,667.05",By The Bridge Ltd,CHILDREN'S SERVICES - FOSTERING & ADOPTION SERVICES,People's Services,Foster Parents Support,A44110
London Borough of Sutton,29/02/2024,20070887,"2,420.00",Cablesheer (Asbestos) Ltd,CONSTRUCTION INDUSTRY,HRA,Payments to Contractors,C14000
London Borough of Sutton,29/02/2024,20070888,"1,600.00",Cablesheer (Asbestos) Ltd,CONSTRUCTION INDUSTRY,HRA,Payments to Contractors,C14000
London Borough of Sutton,29/02/2024,20070889,"10,891.67",Cablesheer (Asbestos) Ltd,CONSTRUCTION INDUSTRY,HRA,Payments to Contractors,C14000
London Borough of Sutton,17/10/2023,20072045,"1,470.00",Cablesheer (Asbestos) Ltd,CONSTRUCTION INDUSTRY,HRA,Payments to Contractors,C14000
London Borough of Sutton,18/01/2024,50469927,"22,802.41",Calcot Services for Children Ltd,CHILDREN'S SERVICES - FOSTERING & ADOPTION SERVICES,People's Services,Residential Care-Children,A56115
London Borough of Sutton,18/01/2024,50469927,"22,802.41",Calcot Services for Children Ltd,CHILDREN'S SERVICES - FOSTERING & ADOPTION SERVICES,People's Services,Residential Care-Children,A56115
London Borough of Sutton,13/02/2024,50476029,"24,374.99",Calcot Services for Children Ltd,CHILDREN'S SERVICES - FOSTERING & ADOPTION SERVICES,People's Services,Residential Care-Children,A56115
London Borough of Sutton,13/02/2024,50476029,"24,374.99",Calcot Services for Children Ltd,CHILDREN'S SERVICES - FOSTERING & ADOPTION SERVICES,People's Services,Residential Care-Children,A56115
London Borough of Sutton,28/02/2024,20070815,"1,200.00",Calford Seaden (Health and Safety) Ltd,LEGAL & PROFESSIONAL SERVICES,HRA,External Fees and Consultants,C20000
London Borough of Sutton,26/02/2024,50469932,"18,808.53",Cambian Childcare Ltd,CHILDREN'S SERVICES - FOSTERING & ADOPTION SERVICES,People's Services,Residential Care-Children,A56115
London Borough of Sutton,26/02/2024,50469932,"18,808.53",Cambian Childcare Ltd,CHILDREN'S SERVICES - FOSTERING & ADOPTION SERVICES,People's Services,Residential Care-Children,A56115
London Borough of Sutton,06/03/2024,20071475,733.26,Canon (UK) Ltd,REPROGRAPHICS & PHOTOGRAPHY,Resources,IT Hardware Maintenance,A45008
London Borough of Sutton,06/03/2024,20071479,"1,297.34",Canon (UK) Ltd,REPROGRAPHICS & PHOTOGRAPHY,Resources,IT Hardware Maintenance,A45008
London Borough of Sutton,15/03/2024,50472503,204.72,Canterbury Oast Trust,SOCIAL SERVICES RESIDENTIAL,People's Services,One to One Care,A56108
London Borough of Sutton,15/03/2024,50472503,204.72,Canterbury Oast Trust,SOCIAL SERVICES RESIDENTIAL,People's Services,One to One Care,A56108
London Borough of Sutton,15/03/2024,50472503,"-1,032.56",Canterbury Oast Trust,SOCIAL SERVICES RESIDENTIAL,People's Services,Residential Care - Client Cont ( Net Paymt ),A56113
London Borough of Sutton,15/03/2024,50472503,"-1,032.56",Canterbury Oast Trust,SOCIAL SERVICES RESIDENTIAL,People's Services,Residential Care - Client Cont ( Net Paymt ),A56113
London Borough of Sutton,15/03/2024,50472503,"4,060.72",Canterbury Oast Trust,SOCIAL SERVICES RESIDENTIAL,People's Services,Residential Care - Ext Provider,A56114
London Borough of Sutton,15/03/2024,50472503,"4,060.72",Canterbury Oast Trust,SOCIAL SERVICES RESIDENTIAL,People's Services,Residential Care - Ext Provider,A56114
London Borough of Sutton,29/02/2024,50469797,"5,730.11",Capstone Foster Care (South East) Ltd,CHILDREN'S SERVICES - FOSTERING & ADOPTION SERVICES,People's Services,Foster Parents Support,A44110
London Borough of Sutton,29/02/2024,50469797,"5,730.11",Capstone Foster Care (South East) Ltd,CHILDREN'S SERVICES - FOSTERING & ADOPTION SERVICES,People's Services,Foster Parents Support,A44110
London Borough of Sutton,29/02/2024,50469880,"5,591.78",Capstone Foster Care (South East) Ltd,CHILDREN'S SERVICES - FOSTERING & ADOPTION SERVICES,People's Services,Foster Parents Support,A44110
London Borough of Sutton,29/02/2024,50469880,"5,591.78",Capstone Foster Care (South East) Ltd,CHILDREN'S SERVICES - FOSTERING & ADOPTION SERVICES,People's Services,Foster Parents Support,A44110
London Borough of Sutton,18/03/2024,50473560,792.71,Care  Support Partners Ltd,SOCIAL SERVICES RESIDENTIAL,People's Services,Supported Living,A56088
London Borough of Sutton,18/03/2024,50473560,792.71,Care  Support Partners Ltd,SOCIAL SERVICES RESIDENTIAL,People's Services,Supported Living,A56088
London Borough of Sutton,18/03/2024,50473560,"2,147.86",Care  Support Partners Ltd,SOCIAL SERVICES RESIDENTIAL,People's Services,Supported Living,A56088
London Borough of Sutton,18/03/2024,50473560,"2,147.86",Care  Support Partners Ltd,SOCIAL SERVICES RESIDENTIAL,People's Services,Supported Living,A56088
London Borough of Sutton,18/03/2024,50473560,634.17,Care  Support Partners Ltd,SOCIAL SERVICES RESIDENTIAL,People's Services,Supported Living,A56088
London Borough of Sutton,18/03/2024,50473560,634.17,Care  Support Partners Ltd,SOCIAL SERVICES RESIDENTIAL,People's Services,Supported Living,A56088
London Borough of Sutton,29/02/2024,50467816,"1,684.53",Care Advocates Ltd,MANAGEMENT & TRAINING SERVICES,People's Services,Supported Living,A56088
London Borough of Sutton,29/02/2024,50467816,"1,684.53",Care Advocates Ltd,MANAGEMENT & TRAINING SERVICES,People's Services,Supported Living,A56088
London Borough of Sutton,29/02/2024,50467816,"2,306.74",Care Advocates Ltd,MANAGEMENT & TRAINING SERVICES,People's Services,Supported Living,A56088
London Borough of Sutton,29/02/2024,50467816,"2,306.74",Care Advocates Ltd,MANAGEMENT & TRAINING SERVICES,People's Services,Supported Living,A56088
London Borough of Sutton,29/02/2024,50467816,"2,407.29",Care Advocates Ltd,MANAGEMENT & TRAINING SERVICES,People's Services,Supported Living,A56088
London Borough of Sutton,29/02/2024,50467816,"2,407.29",Care Advocates Ltd,MANAGEMENT & TRAINING SERVICES,People's Services,Supported Living,A56088
London Borough of Sutton,27/02/2024,50467819,"2,491.05",Care Advocates Ltd,MANAGEMENT & TRAINING SERVICES,People's Services,Supported Living,A56088
London Borough of Sutton,27/02/2024,50467819,"2,491.05",Care Advocates Ltd,MANAGEMENT & TRAINING SERVICES,People's Services,Supported Living,A56088
London Borough of Sutton,27/02/2024,50467819,"1,454.06",Care Advocates Ltd,MANAGEMENT & TRAINING SERVICES,People's Services,Supported Living,A56088
London Borough of Sutton,27/02/2024,50467819,"1,454.06",Care Advocates Ltd,MANAGEMENT & TRAINING SERVICES,People's Services,Supported Living,A56088
London Borough of Sutton,27/02/2024,50467819,"1,162.37",Care Advocates Ltd,MANAGEMENT & TRAINING SERVICES,People's Services,Supported Living,A56088
London Borough of Sutton,27/02/2024,50467819,"1,162.37",Care Advocates Ltd,MANAGEMENT & TRAINING SERVICES,People's Services,Supported Living,A56088
London Borough of Sutton,29/02/2024,50467820,"3,657.48",Care Advocates Ltd,MANAGEMENT & TRAINING SERVICES,People's Services,Supported Living,A56088
London Borough of Sutton,29/02/2024,50467820,"3,657.48",Care Advocates Ltd,MANAGEMENT & TRAINING SERVICES,People's Services,Supported Living,A56088
London Borough of Sutton,29/02/2024,50467820,"2,784.00",Care Advocates Ltd,MANAGEMENT & TRAINING SERVICES,People's Services,Supported Living,A56088
London Borough of Sutton,29/02/2024,50467820,"2,784.00",Care Advocates Ltd,MANAGEMENT & TRAINING SERVICES,People's Services,Supported Living,A56088
London Borough of Sutton,29/02/2024,50467820,"2,407.29",Care Advocates Ltd,MANAGEMENT & TRAINING SERVICES,People's Services,Supported Living,A56088
London Borough of Sutton,29/02/2024,50467820,"2,407.29",Care Advocates Ltd,MANAGEMENT & TRAINING SERVICES,People's Services,Supported Living,A56088
London Borough of Sutton,29/02/2024,50467822,"-3,400.54",Care Advocates Ltd,MANAGEMENT & TRAINING SERVICES,People's Services,Supported Living,A56088
London Borough of Sutton,29/02/2024,50467822,"-3,400.54",Care Advocates Ltd,MANAGEMENT & TRAINING SERVICES,People's Services,Supported Living,A56088
London Borough of Sutton,29/02/2024,50467822,"6,124.80",Care Advocates Ltd,MANAGEMENT & TRAINING SERVICES,People's Services,Supported Living,A56088
London Borough of Sutton,29/02/2024,50467822,"6,124.80",Care Advocates Ltd,MANAGEMENT & TRAINING SERVICES,People's Services,Supported Living,A56088
London Borough of Sutton,29/02/2024,50467822,"2,407.29",Care Advocates Ltd,MANAGEMENT & TRAINING SERVICES,People's Services,Supported Living,A56088
London Borough of Sutton,29/02/2024,50467822,"2,407.29",Care Advocates Ltd,MANAGEMENT & TRAINING SERVICES,People's Services,Supported Living,A56088
London Borough of Sutton,15/03/2024,50472508,"-1,700.00",Care Assist Ltd.,SOCIAL SERVICES RESIDENTIAL,People's Services,Nursing Care - 3rd party top up payment,A56023
London Borough of Sutton,15/03/2024,50472508,"-1,700.00",Care Assist Ltd.,SOCIAL SERVICES RESIDENTIAL,People's Services,Nursing Care - 3rd party top up payment,A56023
London Borough of Sutton,15/03/2024,50472508,"3,400.00",Care Assist Ltd.,SOCIAL SERVICES RESIDENTIAL,People's Services,Residential Care - Ext Provider,A56114
London Borough of Sutton,15/03/2024,50472508,"3,400.00",Care Assist Ltd.,SOCIAL SERVICES RESIDENTIAL,People's Services,Residential Care - Ext Provider,A56114
London Borough of Sutton,15/03/2024,50472601,-878.84,Care Base (Redhill) Ltd,SOCIAL SERVICES - OTHER,People's Services,Nursing Care - 3rd party top up payment,A56023
London Borough of Sutton,15/03/2024,50472601,-878.84,Care Base (Redhill) Ltd,SOCIAL SERVICES - OTHER,People's Services,Nursing Care - 3rd party top up payment,A56023
London Borough of Sutton,15/03/2024,50472601,"7,078.84",Care Base (Redhill) Ltd,SOCIAL SERVICES - OTHER,People's Services,Nursing Care - Ext Provider,A56025
London Borough of Sutton,15/03/2024,50472601,"7,078.84",Care Base (Redhill) Ltd,SOCIAL SERVICES - OTHER,People's Services,Nursing Care - Ext Provider,A56025
London Borough of Sutton,15/03/2024,50472515,"3,320.32",Care Concern Group ,SOCIAL SERVICES RESIDENTIAL,People's Services,Residential Care - Ext Provider,A56114
London Borough of Sutton,15/03/2024,50472515,"3,320.32",Care Concern Group ,SOCIAL SERVICES RESIDENTIAL,People's Services,Residential Care - Ext Provider,A56114
London Borough of Sutton,18/03/2024,50473618,"2,070.36",Care Connexions UK Limited,SOCIAL SERVICES RESIDENTIAL,People's Services,One to One Care,A56108
London Borough of Sutton,18/03/2024,50473618,"2,070.36",Care Connexions UK Limited,SOCIAL SERVICES RESIDENTIAL,People's Services,One to One Care,A56108
London Borough of Sutton,15/03/2024,50472505,"3,768.36",Care Direct Uk Ltd,SOCIAL SERVICES RESIDENTIAL,People's Services,Residential Care - Ext Provider,A56114
London Borough of Sutton,15/03/2024,50472505,"3,768.36",Care Direct Uk Ltd,SOCIAL SERVICES RESIDENTIAL,People's Services,Residential Care - Ext Provider,A56114
London Borough of Sutton,25/02/2024,50468638,"1,024.47",Care More Limited,SOCIAL SERVICES RESIDENTIAL,People's Services,Home Care Services,A56019
London Borough of Sutton,25/02/2024,50468638,"1,024.47",Care More Limited,SOCIAL SERVICES RESIDENTIAL,People's Services,Home Care Services,A56019
London Borough of Sutton,25/02/2024,50468641,951.25,Care More Limited,SOCIAL SERVICES RESIDENTIAL,People's Services,Home Care Services,A56019
London Borough of Sutton,25/02/2024,50468641,951.25,Care More Limited,SOCIAL SERVICES RESIDENTIAL,People's Services,Home Care Services,A56019
London Borough of Sutton,25/02/2024,50468647,658.40,Care More Limited,SOCIAL SERVICES RESIDENTIAL,People's Services,Home Care Services,A56019
London Borough of Sutton,25/02/2024,50468647,658.40,Care More Limited,SOCIAL SERVICES RESIDENTIAL,People's Services,Home Care Services,A56019
London Borough of Sutton,25/02/2024,50468651,878.05,Care More Limited,SOCIAL SERVICES RESIDENTIAL,People's Services,Home Care Services,A56019
London Borough of Sutton,25/02/2024,50468651,878.05,Care More Limited,SOCIAL SERVICES RESIDENTIAL,People's Services,Home Care Services,A56019
London Borough of Sutton,25/02/2024,50468651,20.91,Care More Limited,SOCIAL SERVICES RESIDENTIAL,People's Services,Home Care Services,A56019
London Borough of Sutton,25/02/2024,50468651,20.91,Care More Limited,SOCIAL SERVICES RESIDENTIAL,People's Services,Home Care Services,A56019
London Borough of Sutton,25/02/2024,50468719,878.05,Care More Limited,SOCIAL SERVICES RESIDENTIAL,People's Services,Home Care Services,A56019
London Borough of Sutton,25/02/2024,50468719,878.05,Care More Limited,SOCIAL SERVICES RESIDENTIAL,People's Services,Home Care Services,A56019
London Borough of Sutton,25/02/2024,50468750,"1,024.52",Care More Limited,SOCIAL SERVICES RESIDENTIAL,People's Services,Home Care Services,A56019
London Borough of Sutton,25/02/2024,50468750,"1,024.52",Care More Limited,SOCIAL SERVICES RESIDENTIAL,People's Services,Home Care Services,A56019
London Borough of Sutton,25/02/2024,50468750,219.45,Care More Limited,SOCIAL SERVICES RESIDENTIAL,People's Services,Home Care Services,A56019
London Borough of Sutton,25/02/2024,50468750,219.45,Care More Limited,SOCIAL SERVICES RESIDENTIAL,People's Services,Home Care Services,A56019
London Borough of Sutton,03/03/2024,50469986,"1,024.52",Care More Limited,SOCIAL SERVICES RESIDENTIAL,People's Services,Home Care Services,A56019
London Borough of Sutton,03/03/2024,50469986,"1,024.52",Care More Limited,SOCIAL SERVICES RESIDENTIAL,People's Services,Home Care Services,A56019
London Borough of Sutton,03/03/2024,50469986,219.45,Care More Limited,SOCIAL SERVICES RESIDENTIAL,People's Services,Home Care Services,A56019
London Borough of Sutton,03/03/2024,50469986,219.45,Care More Limited,SOCIAL SERVICES RESIDENTIAL,People's Services,Home Care Services,A56019
London Borough of Sutton,03/03/2024,50470007,951.25,Care More Limited,SOCIAL SERVICES RESIDENTIAL,People's Services,Home Care Services,A56019
London Borough of Sutton,03/03/2024,50470007,951.25,Care More Limited,SOCIAL SERVICES RESIDENTIAL,People's Services,Home Care Services,A56019
London Borough of Sutton,03/03/2024,50470021,658.40,Care More Limited,SOCIAL SERVICES RESIDENTIAL,People's Services,Home Care Services,A56019
London Borough of Sutton,03/03/2024,50470021,658.40,Care More Limited,SOCIAL SERVICES RESIDENTIAL,People's Services,Home Care Services,A56019
London Borough of Sutton,03/03/2024,50470022,878.05,Care More Limited,SOCIAL SERVICES RESIDENTIAL,People's Services,Home Care Services,A56019
London Borough of Sutton,03/03/2024,50470022,878.05,Care More Limited,SOCIAL SERVICES RESIDENTIAL,People's Services,Home Care Services,A56019
London Borough of Sutton,03/03/2024,50470022,20.91,Care More Limited,SOCIAL SERVICES RESIDENTIAL,People's Services,Home Care Services,A56019
London Borough of Sutton,03/03/2024,50470022,20.91,Care More Limited,SOCIAL SERVICES RESIDENTIAL,People's Services,Home Care Services,A56019
London Borough of Sutton,03/03/2024,50470049,878.05,Care More Limited,SOCIAL SERVICES RESIDENTIAL,People's Services,Home Care Services,A56019
London Borough of Sutton,03/03/2024,50470049,878.05,Care More Limited,SOCIAL SERVICES RESIDENTIAL,People's Services,Home Care Services,A56019
London Borough of Sutton,10/03/2024,50471350,951.25,Care More Limited,SOCIAL SERVICES RESIDENTIAL,People's Services,Home Care Services,A56019
London Borough of Sutton,10/03/2024,50471350,951.25,Care More Limited,SOCIAL SERVICES RESIDENTIAL,People's Services,Home Care Services,A56019
London Borough of Sutton,10/03/2024,50471367,658.40,Care More Limited,SOCIAL SERVICES RESIDENTIAL,People's Services,Home Care Services,A56019
London Borough of Sutton,10/03/2024,50471367,658.40,Care More Limited,SOCIAL SERVICES RESIDENTIAL,People's Services,Home Care Services,A56019
London Borough of Sutton,10/03/2024,50471370,878.05,Care More Limited,SOCIAL SERVICES RESIDENTIAL,People's Services,Home Care Services,A56019
London Borough of Sutton,10/03/2024,50471370,878.05,Care More Limited,SOCIAL SERVICES RESIDENTIAL,People's Services,Home Care Services,A56019
London Borough of Sutton,10/03/2024,50471370,31.36,Care More Limited,SOCIAL SERVICES RESIDENTIAL,People's Services,Home Care Services,A56019
London Borough of Sutton,10/03/2024,50471370,31.36,Care More Limited,SOCIAL SERVICES RESIDENTIAL,People's Services,Home Care Services,A56019
London Borough of Sutton,10/03/2024,50471439,878.05,Care More Limited,SOCIAL SERVICES RESIDENTIAL,People's Services,Home Care Services,A56019
London Borough of Sutton,10/03/2024,50471439,878.05,Care More Limited,SOCIAL SERVICES RESIDENTIAL,People's Services,Home Care Services,A56019
London Borough of Sutton,10/03/2024,50471454,"1,024.52",Care More Limited,SOCIAL SERVICES RESIDENTIAL,People's Services,Home Care Services,A56019
London Borough of Sutton,10/03/2024,50471454,"1,024.52",Care More Limited,SOCIAL SERVICES RESIDENTIAL,People's Services,Home Care Services,A56019
London Borough of Sutton,10/03/2024,50471454,219.45,Care More Limited,SOCIAL SERVICES RESIDENTIAL,People's Services,Home Care Services,A56019
London Borough of Sutton,10/03/2024,50471454,219.45,Care More Limited,SOCIAL SERVICES RESIDENTIAL,People's Services,Home Care Services,A56019
London Borough of Sutton,11/02/2024,50473054,"1,024.47",Care More Limited,SOCIAL SERVICES RESIDENTIAL,People's Services,Home Care Services,A56019
London Borough of Sutton,11/02/2024,50473054,"1,024.47",Care More Limited,SOCIAL SERVICES RESIDENTIAL,People's Services,Home Care Services,A56019
London Borough of Sutton,11/02/2024,50473054,83.64,Care More Limited,SOCIAL SERVICES RESIDENTIAL,People's Services,Home Care Services,A56019
London Borough of Sutton,11/02/2024,50473054,83.64,Care More Limited,SOCIAL SERVICES RESIDENTIAL,People's Services,Home Care Services,A56019
London Borough of Sutton,10/03/2024,50473055,"1,024.47",Care More Limited,SOCIAL SERVICES RESIDENTIAL,People's Services,Home Care Services,A56019
London Borough of Sutton,10/03/2024,50473055,"1,024.47",Care More Limited,SOCIAL SERVICES RESIDENTIAL,People's Services,Home Care Services,A56019
London Borough of Sutton,10/03/2024,50473055,83.64,Care More Limited,SOCIAL SERVICES RESIDENTIAL,People's Services,Home Care Services,A56019
London Borough of Sutton,10/03/2024,50473055,83.64,Care More Limited,SOCIAL SERVICES RESIDENTIAL,People's Services,Home Care Services,A56019
London Borough of Sutton,28/01/2024,50473056,"1,024.47",Care More Limited,SOCIAL SERVICES RESIDENTIAL,People's Services,Home Care Services,A56019
London Borough of Sutton,28/01/2024,50473056,"1,024.47",Care More Limited,SOCIAL SERVICES RESIDENTIAL,People's Services,Home Care Services,A56019
London Borough of Sutton,28/01/2024,50473056,83.64,Care More Limited,SOCIAL SERVICES RESIDENTIAL,People's Services,Home Care Services,A56019
London Borough of Sutton,28/01/2024,50473056,83.64,Care More Limited,SOCIAL SERVICES RESIDENTIAL,People's Services,Home Care Services,A56019
London Borough of Sutton,03/03/2024,50473057,"1,024.47",Care More Limited,SOCIAL SERVICES RESIDENTIAL,People's Services,Home Care Services,A56019
London Borough of Sutton,03/03/2024,50473057,"1,024.47",Care More Limited,SOCIAL SERVICES RESIDENTIAL,People's Services,Home Care Services,A56019
London Borough of Sutton,03/03/2024,50473057,83.64,Care More Limited,SOCIAL SERVICES RESIDENTIAL,People's Services,Home Care Services,A56019
London Borough of Sutton,03/03/2024,50473057,83.64,Care More Limited,SOCIAL SERVICES RESIDENTIAL,People's Services,Home Care Services,A56019
London Borough of Sutton,18/02/2024,50473058,"1,024.47",Care More Limited,SOCIAL SERVICES RESIDENTIAL,People's Services,Home Care Services,A56019
London Borough of Sutton,18/02/2024,50473058,"1,024.47",Care More Limited,SOCIAL SERVICES RESIDENTIAL,People's Services,Home Care Services,A56019
London Borough of Sutton,18/02/2024,50473058,83.64,Care More Limited,SOCIAL SERVICES RESIDENTIAL,People's Services,Home Care Services,A56019
London Borough of Sutton,18/02/2024,50473058,83.64,Care More Limited,SOCIAL SERVICES RESIDENTIAL,People's Services,Home Care Services,A56019
London Borough of Sutton,17/12/2023,50473059,"1,108.11",Care More Limited,SOCIAL SERVICES RESIDENTIAL,People's Services,Home Care Services,A56019
London Borough of Sutton,17/12/2023,50473059,"1,108.11",Care More Limited,SOCIAL SERVICES RESIDENTIAL,People's Services,Home Care Services,A56019
London Borough of Sutton,14/01/2024,50473060,"1,024.52",Care More Limited,SOCIAL SERVICES RESIDENTIAL,People's Services,Home Care Services,A56019
London Borough of Sutton,14/01/2024,50473060,"1,024.52",Care More Limited,SOCIAL SERVICES RESIDENTIAL,People's Services,Home Care Services,A56019
London Borough of Sutton,21/01/2024,50473061,"1,108.11",Care More Limited,SOCIAL SERVICES RESIDENTIAL,People's Services,Home Care Services,A56019
London Borough of Sutton,21/01/2024,50473061,"1,108.11",Care More Limited,SOCIAL SERVICES RESIDENTIAL,People's Services,Home Care Services,A56019
London Borough of Sutton,29/11/2023,50473088,732.06,Care More Limited,SOCIAL SERVICES RESIDENTIAL,People's Services,Home Care Services,A56019
London Borough of Sutton,29/11/2023,50473088,732.06,Care More Limited,SOCIAL SERVICES RESIDENTIAL,People's Services,Home Care Services,A56019
London Borough of Sutton,18/11/2023,50473089,732.06,Care More Limited,SOCIAL SERVICES RESIDENTIAL,People's Services,Home Care Services,A56019
London Borough of Sutton,18/11/2023,50473089,732.06,Care More Limited,SOCIAL SERVICES RESIDENTIAL,People's Services,Home Care Services,A56019
London Borough of Sutton,05/06/2023,50473960,"1,022.00",Care More Limited,SOCIAL SERVICES RESIDENTIAL,People's Services,Home Care Services,A56019
London Borough of Sutton,05/06/2023,50473960,"1,022.00",Care More Limited,SOCIAL SERVICES RESIDENTIAL,People's Services,Home Care Services,A56019
London Borough of Sutton,05/06/2023,50473960,273.00,Care More Limited,SOCIAL SERVICES RESIDENTIAL,People's Services,Home Care Services,A56019
London Borough of Sutton,05/06/2023,50473960,273.00,Care More Limited,SOCIAL SERVICES RESIDENTIAL,People's Services,Home Care Services,A56019
London Borough of Sutton,21/08/2023,50473961,"1,022.00",Care More Limited,SOCIAL SERVICES RESIDENTIAL,People's Services,Home Care Services,A56019
London Borough of Sutton,21/08/2023,50473961,"1,022.00",Care More Limited,SOCIAL SERVICES RESIDENTIAL,People's Services,Home Care Services,A56019
London Borough of Sutton,21/08/2023,50473961,273.00,Care More Limited,SOCIAL SERVICES RESIDENTIAL,People's Services,Home Care Services,A56019
London Borough of Sutton,21/08/2023,50473961,273.00,Care More Limited,SOCIAL SERVICES RESIDENTIAL,People's Services,Home Care Services,A56019
London Borough of Sutton,07/01/2024,50473962,439.08,Care More Limited,SOCIAL SERVICES RESIDENTIAL,People's Services,Home Care Services,A56019
London Borough of Sutton,07/01/2024,50473962,439.08,Care More Limited,SOCIAL SERVICES RESIDENTIAL,People's Services,Home Care Services,A56019
London Borough of Sutton,07/01/2024,50473962,94.05,Care More Limited,SOCIAL SERVICES RESIDENTIAL,People's Services,Home Care Services,A56019
London Borough of Sutton,07/01/2024,50473962,94.05,Care More Limited,SOCIAL SERVICES RESIDENTIAL,People's Services,Home Care Services,A56019
London Borough of Sutton,14/01/2024,50473963,428.63,Care More Limited,SOCIAL SERVICES RESIDENTIAL,People's Services,Home Care Services,A56019
London Borough of Sutton,14/01/2024,50473963,428.63,Care More Limited,SOCIAL SERVICES RESIDENTIAL,People's Services,Home Care Services,A56019
London Borough of Sutton,14/01/2024,50473963,104.50,Care More Limited,SOCIAL SERVICES RESIDENTIAL,People's Services,Home Care Services,A56019
London Borough of Sutton,14/01/2024,50473963,104.50,Care More Limited,SOCIAL SERVICES RESIDENTIAL,People's Services,Home Care Services,A56019
London Borough of Sutton,03/12/2023,50475097,658.40,Care More Limited,SOCIAL SERVICES RESIDENTIAL,People's Services,Home Care Services,A56019
London Borough of Sutton,03/12/2023,50475097,658.40,Care More Limited,SOCIAL SERVICES RESIDENTIAL,People's Services,Home Care Services,A56019
London Borough of Sutton,03/12/2023,50475142,878.05,Care More Limited,SOCIAL SERVICES RESIDENTIAL,People's Services,Home Care Services,A56019
London Borough of Sutton,03/12/2023,50475142,878.05,Care More Limited,SOCIAL SERVICES RESIDENTIAL,People's Services,Home Care Services,A56019
London Borough of Sutton,03/12/2023,50475162,658.40,Care More Limited,SOCIAL SERVICES RESIDENTIAL,People's Services,Home Care Services,A56019
London Borough of Sutton,03/12/2023,50475162,658.40,Care More Limited,SOCIAL SERVICES RESIDENTIAL,People's Services,Home Care Services,A56019
London Borough of Sutton,03/12/2023,50475163,585.20,Care More Limited,SOCIAL SERVICES RESIDENTIAL,People's Services,Home Care Services,A56019
London Borough of Sutton,03/12/2023,50475163,585.20,Care More Limited,SOCIAL SERVICES RESIDENTIAL,People's Services,Home Care Services,A56019
London Borough of Sutton,03/12/2023,50475164,878.08,Care More Limited,SOCIAL SERVICES RESIDENTIAL,People's Services,Home Care Services,A56019
London Borough of Sutton,03/12/2023,50475164,878.08,Care More Limited,SOCIAL SERVICES RESIDENTIAL,People's Services,Home Care Services,A56019
London Borough of Sutton,03/12/2023,50475164,20.88,Care More Limited,SOCIAL SERVICES RESIDENTIAL,People's Services,Home Care Services,A56019
London Borough of Sutton,03/12/2023,50475164,20.88,Care More Limited,SOCIAL SERVICES RESIDENTIAL,People's Services,Home Care Services,A56019
London Borough of Sutton,17/03/2024,50476078,"1,024.52",Care More Limited,SOCIAL SERVICES RESIDENTIAL,People's Services,Home Care Services,A56019
London Borough of Sutton,17/03/2024,50476078,"1,024.52",Care More Limited,SOCIAL SERVICES RESIDENTIAL,People's Services,Home Care Services,A56019
London Borough of Sutton,17/03/2024,50476078,219.45,Care More Limited,SOCIAL SERVICES RESIDENTIAL,People's Services,Home Care Services,A56019
London Borough of Sutton,17/03/2024,50476078,219.45,Care More Limited,SOCIAL SERVICES RESIDENTIAL,People's Services,Home Care Services,A56019
London Borough of Sutton,17/03/2024,50476104,"1,024.47",Care More Limited,SOCIAL SERVICES RESIDENTIAL,People's Services,Home Care Services,A56019
London Borough of Sutton,17/03/2024,50476104,"1,024.47",Care More Limited,SOCIAL SERVICES RESIDENTIAL,People's Services,Home Care Services,A56019
London Borough of Sutton,17/03/2024,50476104,83.64,Care More Limited,SOCIAL SERVICES RESIDENTIAL,People's Services,Home Care Services,A56019
London Borough of Sutton,17/03/2024,50476104,83.64,Care More Limited,SOCIAL SERVICES RESIDENTIAL,People's Services,Home Care Services,A56019
London Borough of Sutton,17/03/2024,50476118,951.25,Care More Limited,SOCIAL SERVICES RESIDENTIAL,People's Services,Home Care Services,A56019
London Borough of Sutton,17/03/2024,50476118,951.25,Care More Limited,SOCIAL SERVICES RESIDENTIAL,People's Services,Home Care Services,A56019
London Borough of Sutton,17/03/2024,50476133,658.40,Care More Limited,SOCIAL SERVICES RESIDENTIAL,People's Services,Home Care Services,A56019
London Borough of Sutton,17/03/2024,50476133,658.40,Care More Limited,SOCIAL SERVICES RESIDENTIAL,People's Services,Home Care Services,A56019
London Borough of Sutton,17/03/2024,50476134,878.08,Care More Limited,SOCIAL SERVICES RESIDENTIAL,People's Services,Home Care Services,A56019
London Borough of Sutton,17/03/2024,50476134,878.08,Care More Limited,SOCIAL SERVICES RESIDENTIAL,People's Services,Home Care Services,A56019
London Borough of Sutton,17/03/2024,50476134,20.88,Care More Limited,SOCIAL SERVICES RESIDENTIAL,People's Services,Home Care Services,A56019
London Borough of Sutton,17/03/2024,50476134,20.88,Care More Limited,SOCIAL SERVICES RESIDENTIAL,People's Services,Home Care Services,A56019
London Borough of Sutton,17/03/2024,50476175,878.05,Care More Limited,SOCIAL SERVICES RESIDENTIAL,People's Services,Home Care Services,A56019
London Borough of Sutton,17/03/2024,50476175,878.05,Care More Limited,SOCIAL SERVICES RESIDENTIAL,People's Services,Home Care Services,A56019
London Borough of Sutton,15/03/2024,50472590,-563.20,Care UK Homecare Ltd,SOCIAL SERVICES RESIDENTIAL,People's Services,Residential Care - Client Cont ( Net Paymt ),A56113
London Borough of Sutton,15/03/2024,50472590,-563.20,Care UK Homecare Ltd,SOCIAL SERVICES RESIDENTIAL,People's Services,Residential Care - Client Cont ( Net Paymt ),A56113
London Borough of Sutton,15/03/2024,50472590,"4,772.96",Care UK Homecare Ltd,SOCIAL SERVICES RESIDENTIAL,People's Services,Residential Care - Ext Provider,A56114
London Borough of Sutton,15/03/2024,50472590,"4,772.96",Care UK Homecare Ltd,SOCIAL SERVICES RESIDENTIAL,People's Services,Residential Care - Ext Provider,A56114
London Borough of Sutton,15/03/2024,50472655,"4,560.00",Care UK Homecare Ltd,SOCIAL SERVICES RESIDENTIAL,People's Services,Nursing Care - Ext Provider,A56025
London Borough of Sutton,15/03/2024,50472655,"4,560.00",Care UK Homecare Ltd,SOCIAL SERVICES RESIDENTIAL,People's Services,Nursing Care - Ext Provider,A56025
London Borough of Sutton,15/03/2024,50472656,-836.76,Care UK Homecare Ltd,SOCIAL SERVICES RESIDENTIAL,People's Services,Nursing Care - 3rd party top up payment,A56023
London Borough of Sutton,15/03/2024,50472656,-836.76,Care UK Homecare Ltd,SOCIAL SERVICES RESIDENTIAL,People's Services,Nursing Care - 3rd party top up payment,A56023
London Borough of Sutton,15/03/2024,50472912,-878.84,Care UK Homecare Ltd,SOCIAL SERVICES RESIDENTIAL,People's Services,Nursing Care - 3rd party top up payment,A56023
London Borough of Sutton,15/03/2024,50472912,-878.84,Care UK Homecare Ltd,SOCIAL SERVICES RESIDENTIAL,People's Services,Nursing Care - 3rd party top up payment,A56023
London Borough of Sutton,15/03/2024,50472912,"4,560.00",Care UK Homecare Ltd,SOCIAL SERVICES RESIDENTIAL,People's Services,Nursing Care Short Term,A56026
London Borough of Sutton,15/03/2024,50472912,"4,560.00",Care UK Homecare Ltd,SOCIAL SERVICES RESIDENTIAL,People's Services,Nursing Care Short Term,A56026
London Borough of Sutton,15/03/2024,50472949,-878.84,Care UK Homecare Ltd,SOCIAL SERVICES RESIDENTIAL,People's Services,Nursing Care - 3rd party top up payment,A56023
London Borough of Sutton,15/03/2024,50472949,-878.84,Care UK Homecare Ltd,SOCIAL SERVICES RESIDENTIAL,People's Services,Nursing Care - 3rd party top up payment,A56023
London Borough of Sutton,15/03/2024,50472949,"5,458.84",Care UK Homecare Ltd,SOCIAL SERVICES RESIDENTIAL,People's Services,Nursing Care - Ext Provider,A56025
London Borough of Sutton,15/03/2024,50472949,"5,458.84",Care UK Homecare Ltd,SOCIAL SERVICES RESIDENTIAL,People's Services,Nursing Care - Ext Provider,A56025
London Borough of Sutton,15/03/2024,50473019,-878.84,Care UK Homecare Ltd,SOCIAL SERVICES RESIDENTIAL,People's Services,Nursing Care - 3rd party top up payment,A56023
London Borough of Sutton,15/03/2024,50473019,-878.84,Care UK Homecare Ltd,SOCIAL SERVICES RESIDENTIAL,People's Services,Nursing Care - 3rd party top up payment,A56023
London Borough of Sutton,15/03/2024,50473019,"4,096.12",Care UK Homecare Ltd,SOCIAL SERVICES RESIDENTIAL,People's Services,Nursing Care - Ext Provider,A56025
London Borough of Sutton,15/03/2024,50473019,"4,096.12",Care UK Homecare Ltd,SOCIAL SERVICES RESIDENTIAL,People's Services,Nursing Care - Ext Provider,A56025
London Borough of Sutton,01/02/2024,50468512,"5,931.52",Care Unlimited Domcare Ltd,SOCIAL SERVICES DAY CARE,People's Services,Supported Living,A56088
London Borough of Sutton,01/02/2024,50468512,"5,931.52",Care Unlimited Domcare Ltd,SOCIAL SERVICES DAY CARE,People's Services,Supported Living,A56088
London Borough of Sutton,05/03/2024,50468564,"-4,694.47",Care Unlimited Domcare Ltd,SOCIAL SERVICES DAY CARE,People's Services,Supported Living,A56088
London Borough of Sutton,05/03/2024,50468564,"-4,694.47",Care Unlimited Domcare Ltd,SOCIAL SERVICES DAY CARE,People's Services,Supported Living,A56088
London Borough of Sutton,05/03/2024,50468564,"1,390.56",Care Unlimited Domcare Ltd,SOCIAL SERVICES DAY CARE,People's Services,Supported Living,A56088
London Borough of Sutton,05/03/2024,50468564,"1,390.56",Care Unlimited Domcare Ltd,SOCIAL SERVICES DAY CARE,People's Services,Supported Living,A56088
London Borough of Sutton,05/03/2024,50468564,"4,173.16",Care Unlimited Domcare Ltd,SOCIAL SERVICES DAY CARE,People's Services,Supported Living,A56088
London Borough of Sutton,05/03/2024,50468564,"4,173.16",Care Unlimited Domcare Ltd,SOCIAL SERVICES DAY CARE,People's Services,Supported Living,A56088
London Borough of Sutton,04/03/2024,50469092,"3,941.53",Care4Care Services Ltd,SOCIAL SERVICES DAY CARE,People's Services,Home Care Services,A56019
London Borough of Sutton,04/03/2024,50469092,"3,941.53",Care4Care Services Ltd,SOCIAL SERVICES DAY CARE,People's Services,Home Care Services,A56019
London Borough of Sutton,04/03/2024,50469093,"3,941.53",Care4Care Services Ltd,SOCIAL SERVICES DAY CARE,People's Services,Home Care Services,A56019
London Borough of Sutton,04/03/2024,50469093,"3,941.53",Care4Care Services Ltd,SOCIAL SERVICES DAY CARE,People's Services,Home Care Services,A56019
London Borough of Sutton,04/03/2024,50469094,"3,439.69",Care4Care Services Ltd,SOCIAL SERVICES DAY CARE,People's Services,Home Care Services,A56019
London Borough of Sutton,04/03/2024,50469094,"3,439.69",Care4Care Services Ltd,SOCIAL SERVICES DAY CARE,People's Services,Home Care Services,A56019
London Borough of Sutton,04/03/2024,50469095,"1,970.77",Care4Care Services Ltd,SOCIAL SERVICES DAY CARE,People's Services,Home Care Services,A56019
London Borough of Sutton,04/03/2024,50469095,"1,970.77",Care4Care Services Ltd,SOCIAL SERVICES DAY CARE,People's Services,Home Care Services,A56019
London Borough of Sutton,04/03/2024,50469097,757.99,Care4Care Services Ltd,SOCIAL SERVICES DAY CARE,People's Services,Home Care Services,A56019
London Borough of Sutton,04/03/2024,50469097,757.99,Care4Care Services Ltd,SOCIAL SERVICES DAY CARE,People's Services,Home Care Services,A56019
London Borough of Sutton,04/03/2024,50469098,752.76,Care4Care Services Ltd,SOCIAL SERVICES DAY CARE,People's Services,Home Care Services,A56019
London Borough of Sutton,04/03/2024,50469098,752.76,Care4Care Services Ltd,SOCIAL SERVICES DAY CARE,People's Services,Home Care Services,A56019
London Borough of Sutton,04/03/2024,50470053,"7,057.94",Care4Care Services Ltd,SOCIAL SERVICES DAY CARE,People's Services,Home Care Services,A56019
London Borough of Sutton,04/03/2024,50470053,"7,057.94",Care4Care Services Ltd,SOCIAL SERVICES DAY CARE,People's Services,Home Care Services,A56019
London Borough of Sutton,15/03/2024,50472559,"4,231.40",CARELODGE GROUP LTD,SOCIAL SERVICES RESIDENTIAL,People's Services,Residential Care - Ext Provider,A56114
London Borough of Sutton,15/03/2024,50472559,"4,231.40",CARELODGE GROUP LTD,SOCIAL SERVICES RESIDENTIAL,People's Services,Residential Care - Ext Provider,A56114
London Borough of Sutton,15/03/2024,50472564,"4,443.40",CARELODGES GROUP LIMITED,SOCIAL SERVICES RESIDENTIAL,People's Services,Residential Care - Ext Provider,A56114
London Borough of Sutton,15/03/2024,50472564,"4,443.40",CARELODGES GROUP LIMITED,SOCIAL SERVICES RESIDENTIAL,People's Services,Residential Care - Ext Provider,A56114
London Borough of Sutton,15/03/2024,50472622,-508.04,CARELODGES GROUP LIMITED,SOCIAL SERVICES RESIDENTIAL,People's Services,Residential Care - Client Cont ( Net Paymt ),A56113
London Borough of Sutton,15/03/2024,50472622,-508.04,CARELODGES GROUP LIMITED,SOCIAL SERVICES RESIDENTIAL,People's Services,Residential Care - Client Cont ( Net Paymt ),A56113
London Borough of Sutton,15/03/2024,50472622,"5,159.40",CARELODGES GROUP LIMITED,SOCIAL SERVICES RESIDENTIAL,People's Services,Residential Care - Ext Provider,A56114
London Borough of Sutton,15/03/2024,50472622,"5,159.40",CARELODGES GROUP LIMITED,SOCIAL SERVICES RESIDENTIAL,People's Services,Residential Care - Ext Provider,A56114
London Borough of Sutton,04/03/2024,20071179,580.00,Caremark (Sutton),SOCIAL SERVICES DAY CARE,People's Services,One to One Care,A56108
London Borough of Sutton,04/03/2024,20071179,580.00,Caremark (Sutton),SOCIAL SERVICES DAY CARE,People's Services,One to One Care,A56108
London Borough of Sutton,11/02/2024,50467512,"1,756.44",Caremark (Sutton),SOCIAL SERVICES DAY CARE,People's Services,Home Care Services,A56019
London Borough of Sutton,11/02/2024,50467512,"1,756.44",Caremark (Sutton),SOCIAL SERVICES DAY CARE,People's Services,Home Care Services,A56019
London Borough of Sutton,11/02/2024,50467513,648.16,Caremark (Sutton),SOCIAL SERVICES DAY CARE,People's Services,Home Care Services,A56019
London Borough of Sutton,11/02/2024,50467513,648.16,Caremark (Sutton),SOCIAL SERVICES DAY CARE,People's Services,Home Care Services,A56019
London Borough of Sutton,11/02/2024,50467514,501.84,Caremark (Sutton),SOCIAL SERVICES DAY CARE,People's Services,Home Care Services,A56019
London Borough of Sutton,11/02/2024,50467514,501.84,Caremark (Sutton),SOCIAL SERVICES DAY CARE,People's Services,Home Care Services,A56019
London Borough of Sutton,11/02/2024,50467515,637.76,Caremark (Sutton),SOCIAL SERVICES DAY CARE,People's Services,Home Care Services,A56019
London Borough of Sutton,11/02/2024,50467515,637.76,Caremark (Sutton),SOCIAL SERVICES DAY CARE,People's Services,Home Care Services,A56019
London Borough of Sutton,18/02/2024,50467519,648.16,Caremark (Sutton),SOCIAL SERVICES DAY CARE,People's Services,Home Care Services,A56019
London Borough of Sutton,18/02/2024,50467519,648.16,Caremark (Sutton),SOCIAL SERVICES DAY CARE,People's Services,Home Care Services,A56019
London Borough of Sutton,18/02/2024,50467521,637.76,Caremark (Sutton),SOCIAL SERVICES DAY CARE,People's Services,Home Care Services,A56019
London Borough of Sutton,18/02/2024,50467521,637.76,Caremark (Sutton),SOCIAL SERVICES DAY CARE,People's Services,Home Care Services,A56019
London Borough of Sutton,17/12/2023,50467523,"1,756.44",Caremark (Sutton),SOCIAL SERVICES DAY CARE,People's Services,Home Care Services,A56019
London Borough of Sutton,17/12/2023,50467523,"1,756.44",Caremark (Sutton),SOCIAL SERVICES DAY CARE,People's Services,Home Care Services,A56019
London Borough of Sutton,17/12/2023,50467524,648.12,Caremark (Sutton),SOCIAL SERVICES DAY CARE,People's Services,Home Care Services,A56019
London Borough of Sutton,17/12/2023,50467524,648.12,Caremark (Sutton),SOCIAL SERVICES DAY CARE,People's Services,Home Care Services,A56019
London Borough of Sutton,17/12/2023,50467526,501.84,Caremark (Sutton),SOCIAL SERVICES DAY CARE,People's Services,Home Care Services,A56019
London Borough of Sutton,17/12/2023,50467526,501.84,Caremark (Sutton),SOCIAL SERVICES DAY CARE,People's Services,Home Care Services,A56019
London Borough of Sutton,17/12/2023,50467528,648.21,Caremark (Sutton),SOCIAL SERVICES DAY CARE,People's Services,Home Care Services,A56019
London Borough of Sutton,17/12/2023,50467528,648.21,Caremark (Sutton),SOCIAL SERVICES DAY CARE,People's Services,Home Care Services,A56019
London Borough of Sutton,11/02/2024,50467536,883.38,Caremark (Sutton),SOCIAL SERVICES DAY CARE,People's Services,Home Care Services,A56019
London Borough of Sutton,11/02/2024,50467536,883.38,Caremark (Sutton),SOCIAL SERVICES DAY CARE,People's Services,Home Care Services,A56019
London Borough of Sutton,18/02/2024,50467563,533.20,Caremark (Sutton),SOCIAL SERVICES DAY CARE,People's Services,Home Care Services,A56019
London Borough of Sutton,18/02/2024,50467563,533.20,Caremark (Sutton),SOCIAL SERVICES DAY CARE,People's Services,Home Care Services,A56019
London Borough of Sutton,17/12/2023,50467564,512.30,Caremark (Sutton),SOCIAL SERVICES DAY CARE,People's Services,Home Care Services,A56019
London Borough of Sutton,17/12/2023,50467564,512.30,Caremark (Sutton),SOCIAL SERVICES DAY CARE,People's Services,Home Care Services,A56019
London Borough of Sutton,17/12/2023,50467580,867.57,Caremark (Sutton),SOCIAL SERVICES DAY CARE,People's Services,Home Care Services,A56019
London Borough of Sutton,17/12/2023,50467580,867.57,Caremark (Sutton),SOCIAL SERVICES DAY CARE,People's Services,Home Care Services,A56019
London Borough of Sutton,17/12/2023,50467589,888.41,Caremark (Sutton),SOCIAL SERVICES DAY CARE,People's Services,Home Care Services,A56019
London Borough of Sutton,17/12/2023,50467589,888.41,Caremark (Sutton),SOCIAL SERVICES DAY CARE,People's Services,Home Care Services,A56019
London Borough of Sutton,18/02/2024,50467600,799.74,Caremark (Sutton),SOCIAL SERVICES DAY CARE,People's Services,Home Care Services,A56019
London Borough of Sutton,18/02/2024,50467600,799.74,Caremark (Sutton),SOCIAL SERVICES DAY CARE,People's Services,Home Care Services,A56019
London Borough of Sutton,17/12/2023,50467641,527.91,Caremark (Sutton),SOCIAL SERVICES DAY CARE,People's Services,Home Care Services,A56019
London Borough of Sutton,17/12/2023,50467641,527.91,Caremark (Sutton),SOCIAL SERVICES DAY CARE,People's Services,Home Care Services,A56019
London Borough of Sutton,17/12/2023,50467688,658.40,Caremark (Sutton),SOCIAL SERVICES DAY CARE,People's Services,Home Care Services,A56019
London Borough of Sutton,17/12/2023,50467688,658.40,Caremark (Sutton),SOCIAL SERVICES DAY CARE,People's Services,Home Care Services,A56019
London Borough of Sutton,17/12/2023,50467688,41.82,Caremark (Sutton),SOCIAL SERVICES DAY CARE,People's Services,Home Care Services,A56019
London Borough of Sutton,17/12/2023,50467688,41.82,Caremark (Sutton),SOCIAL SERVICES DAY CARE,People's Services,Home Care Services,A56019
London Borough of Sutton,17/12/2023,50467693,658.40,Caremark (Sutton),SOCIAL SERVICES DAY CARE,People's Services,Home Care Services,A56019
London Borough of Sutton,17/12/2023,50467693,658.40,Caremark (Sutton),SOCIAL SERVICES DAY CARE,People's Services,Home Care Services,A56019
London Borough of Sutton,17/12/2023,50467696,731.64,Caremark (Sutton),SOCIAL SERVICES DAY CARE,People's Services,Home Care Services,A56019
London Borough of Sutton,17/12/2023,50467696,731.64,Caremark (Sutton),SOCIAL SERVICES DAY CARE,People's Services,Home Care Services,A56019
London Borough of Sutton,17/12/2023,50467696,62.73,Caremark (Sutton),SOCIAL SERVICES DAY CARE,People's Services,Home Care Services,A56019
London Borough of Sutton,17/12/2023,50467696,62.73,Caremark (Sutton),SOCIAL SERVICES DAY CARE,People's Services,Home Care Services,A56019
London Borough of Sutton,25/02/2024,50468483,512.30,Caremark (Sutton),SOCIAL SERVICES DAY CARE,People's Services,Home Care Services,A56019
London Borough of Sutton,25/02/2024,50468483,512.30,Caremark (Sutton),SOCIAL SERVICES DAY CARE,People's Services,Home Care Services,A56019
London Borough of Sutton,25/02/2024,50468486,"1,758.18",Caremark (Sutton),SOCIAL SERVICES DAY CARE,People's Services,Home Care Services,A56019
London Borough of Sutton,25/02/2024,50468486,"1,758.18",Caremark (Sutton),SOCIAL SERVICES DAY CARE,People's Services,Home Care Services,A56019
London Borough of Sutton,25/02/2024,50468497,867.57,Caremark (Sutton),SOCIAL SERVICES DAY CARE,People's Services,Home Care Services,A56019
London Borough of Sutton,25/02/2024,50468497,867.57,Caremark (Sutton),SOCIAL SERVICES DAY CARE,People's Services,Home Care Services,A56019
London Borough of Sutton,25/02/2024,50468501,783.86,Caremark (Sutton),SOCIAL SERVICES DAY CARE,People's Services,Home Care Services,A56019
London Borough of Sutton,25/02/2024,50468501,783.86,Caremark (Sutton),SOCIAL SERVICES DAY CARE,People's Services,Home Care Services,A56019
London Borough of Sutton,25/02/2024,50468548,658.42,Caremark (Sutton),SOCIAL SERVICES DAY CARE,People's Services,Home Care Services,A56019
London Borough of Sutton,25/02/2024,50468548,658.42,Caremark (Sutton),SOCIAL SERVICES DAY CARE,People's Services,Home Care Services,A56019
London Borough of Sutton,25/02/2024,50468548,41.80,Caremark (Sutton),SOCIAL SERVICES DAY CARE,People's Services,Home Care Services,A56019
London Borough of Sutton,25/02/2024,50468548,41.80,Caremark (Sutton),SOCIAL SERVICES DAY CARE,People's Services,Home Care Services,A56019
London Borough of Sutton,25/02/2024,50468550,731.64,Caremark (Sutton),SOCIAL SERVICES DAY CARE,People's Services,Home Care Services,A56019
London Borough of Sutton,25/02/2024,50468550,731.64,Caremark (Sutton),SOCIAL SERVICES DAY CARE,People's Services,Home Care Services,A56019
London Borough of Sutton,25/02/2024,50468550,62.73,Caremark (Sutton),SOCIAL SERVICES DAY CARE,People's Services,Home Care Services,A56019
London Borough of Sutton,25/02/2024,50468550,62.73,Caremark (Sutton),SOCIAL SERVICES DAY CARE,People's Services,Home Care Services,A56019
London Borough of Sutton,25/02/2024,50468614,527.91,Caremark (Sutton),SOCIAL SERVICES DAY CARE,People's Services,Home Care Services,A56019
London Borough of Sutton,25/02/2024,50468614,527.91,Caremark (Sutton),SOCIAL SERVICES DAY CARE,People's Services,Home Care Services,A56019
London Borough of Sutton,25/02/2024,50468615,658.40,Caremark (Sutton),SOCIAL SERVICES DAY CARE,People's Services,Home Care Services,A56019
London Borough of Sutton,25/02/2024,50468615,658.40,Caremark (Sutton),SOCIAL SERVICES DAY CARE,People's Services,Home Care Services,A56019
London Borough of Sutton,25/02/2024,50470540,648.14,Caremark (Sutton),SOCIAL SERVICES DAY CARE,People's Services,Home Care Services,A56019
London Borough of Sutton,25/02/2024,50470540,648.14,Caremark (Sutton),SOCIAL SERVICES DAY CARE,People's Services,Home Care Services,A56019
London Borough of Sutton,25/02/2024,50470541,501.84,Caremark (Sutton),SOCIAL SERVICES DAY CARE,People's Services,Home Care Services,A56019
London Borough of Sutton,25/02/2024,50470541,501.84,Caremark (Sutton),SOCIAL SERVICES DAY CARE,People's Services,Home Care Services,A56019
London Borough of Sutton,25/02/2024,50470542,637.76,Caremark (Sutton),SOCIAL SERVICES DAY CARE,People's Services,Home Care Services,A56019
London Borough of Sutton,25/02/2024,50470542,637.76,Caremark (Sutton),SOCIAL SERVICES DAY CARE,People's Services,Home Care Services,A56019
London Borough of Sutton,03/03/2024,50471366,533.20,Caremark (Sutton),SOCIAL SERVICES DAY CARE,People's Services,Home Care Services,A56019
